Workbook

Sheet SSSLIB検証 (その1)
A1: 関数ライブラリ（ＳＳＳＬＩＢ）の検証（その１） | F1: スクリプトによる計算式は、黄色のセルに入力されている。
A3: 1 | B3: 三角関数
B4: 角度 | C4: sin | D4: cos | E4: Actand | F4: Arcosd | G4: Arsind | H4: Artand
B5: 0 | C5: =SIN(rad(B5)) -> 0 | D5: =COS(rad(B5)) -> 1 | E5: =actand(C5,D5) -> 0 | F5: =arcosd(D5) -> 0 | G5: =arsind(C5) -> 0 | H5: =Artand(C5,D5) -> 0
B6: 30 | C6: 0.5 | D6: 0.8660254038 | E6: 30 | F6: 30 | G6: 30 | H6: 30
B7: 60 | C7: 0.8660254038 | D7: 0.5 | E7: 60 | F7: 60 | G7: 60 | H7: 60
B8: 90 | C8: 1 | D8: 8.720997015e-15 | E8: 90 | F8: 90 | G8: 90 | H8: 90
B9: 120 | C9: 0.8660254038 | D9: -0.5 | E9: 120 | F9: 120 | G9: 60 | H9: 120
B10: 150 | C10: 0.5 | D10: -0.8660254038 | E10: 150 | F10: 150 | G10: 30 | H10: 150
B11: 180 | C11: 1.744199403e-14 | D11: -1 | E11: 180 | F11: 180 | G11: 9.993526442e-13 | H11: 180
B12: =180+0.00000000001 -> 180 | C12: -1.570850654e-13 | D12: -1 | E12: 180 | F12: 180 | G12: -9.000311274e-12 | H12: -180
B13: 210 | C13: -0.5 | D13: -0.8660254038 | E13: 210 | F13: 150 | G13: -30 | H13: -150
B14: 240 | C14: -0.8660254038 | D14: -0.5 | E14: 240 | F14: 120 | G14: -60 | H14: -120
B15: 270 | C15: -1 | D15: -2.594094644e-14 | E15: 270 | F15: 90 | G15: -90 | H15: -90
B16: 300 | C16: -0.8660254038 | D16: 0.5 | E16: 300 | F16: 60 | G16: -60 | H16: -60
B17: 330 | C17: -0.5 | D17: 0.8660254038 | E17: 330 | F17: 30 | G17: -30 | H17: -30
B18: 360 | C18: -3.488398806e-14 | D18: 1 | E18: 360 | F18: 0 | G18: -1.998705288e-12 | H18: -1.998705288e-12
A20: =A3+1 -> 2 | B20: ベクトル | N20: ベクトルの回転
B21: a | C21: b | D21: c | E21: d | F21: e | G21: f | H21: g | I21: h | J21: 外積の大きさ | K21: 内積の大きさ | M21: p | N21: q | O21: r | P21: s
D22: =exe("VctNrm(a)",D23:D25=vctnrm(B23:B25)) -> VctNrm(a) | E22: =exe("VctNrm(b)",E23:E25=vctnrm(C23:C25)) -> VctNrm(b) | F22: =exe("VctAng(c,d)",F23=vctang(D23:D25,E23:E25)) -> VctAng(c,d) | G22: =exe("VctCrp(c,d)",G23:G25=vctcrp(D23:D25,E23:E25)) -> VctCrp(c,d) | H22: =exe("VctInp(c,d)",H23=vctinp(D23:D25,E23:E25)) -> VctInp(c,d) | I22: =exe("VctMag(a)",I23=vctmag(B23:B25)) -> VctMag(a) | J22: =exe("(sin内角)",J23=arsind(vctmag(G23:G25))) -> (sin内角) | K22: =exe("(cos内角)",K23=arcosd(H23)) -> (cos内角) | N22: =exe("VctRtn(p,45,1)",N23:N25=vctrtn(M23:M25,45,1)) -> VctRtn(p,45,1) | O22: =exe("VctRtn(p,45,2)",O23:O25=vctrtn(M23:M25,45,2)) -> VctRtn(p,45,2) | P22: =exe("VctRtn(p,45,3)",P23:P25=vctrtn(M23:M25,45,3)) -> VctRtn(p,45,3)
B23: 2 | C23: 3 | D23: 0.3244428423 | E23: 0.4242640687 | F23: 19.84667517 | G23: -0.298240454 | H23: 0.9406045089 | I23: 6.164414003 | J23: 19.84667517 | K23: 19.84667517 | M23: =1/SQRT(3) -> 0.5773502692 | N23: 0.5773502692 | O23: 0.8164965809 | P23: 3.525445994e-15
B24: 3 | C24: 5 | D24: 0.4866642634 | E24: 0.7071067812 | G24: 0.1605910137 | M24: =1/SQRT(3) -> 0.5773502692 | N24: 3.525445994e-15 | O24: 0.5773502692 | P24: 0.8164965809
B25: 5 | C25: 4 | D25: 0.8111071057 | E25: 0.5656854249 | G25: 0.02294157339 | M25: =1/SQRT(3) -> 0.5773502692 | N25: 0.8164965809 | O25: 3.525445994e-15 | P25: 0.5773502692
A27: =A20+1 -> 3 | B27: マトリクス
B28: A | E28: B | H28: C | K28: D | N28: E | Q28: F
B29: =exe("RtnMat",B30:D32=rtnmat(C29,D29)) -> RtnMat | C29: 12 | D29: 1 | E29: =exe("RtnMat",E30:G32=rtnmat(F29,G29)) -> RtnMat | F29: 23 | G29: 2 | H29: =exe("RtnMat",H30:J32=rtnmat(I29,J29)) -> RtnMat | I29: 34 | J29: 3 | K29: =exe("Mx33Mp(Mx33Mp(A,B),C)",K30:M32=Mx33Mp(Mx33Mp(B30:D32,E30:G32),H30:J32)) -> Mx33Mp(Mx33Mp(A,B),C) | O29: =exe("Mx33Iv(D)",N30:P32=mx33iv(K30:M32)) -> Mx33Iv(D) | R29: =exe("Mx33Tp(D)",Q30:S32=mx33tp(K30:M32)) -> Mx33Tp(D)
B30: 1 | C30: 0 | D30: 0 | E30: 0.9205048535 | F30: 0 | G30: 0.3907311285 | H30: 0.8290375726 | I30: -0.5591929035 | J30: 0 | K30: 0.7631331092 | L30: -0.5147397817 | M30: 0.3907311285 | N30: 0.7631331092 | O30: 0.6143221944 | P30: -0.2005893794 | Q30: 0.7631331092 | R30: 0.6143221944 | S30: -0.2005893794
B31: 0 | C31: 0.9781476007 | D31: -0.2079116908 | E31: 0 | F31: 1 | G31: 0 | H31: 0.5591929035 | I31: 0.8290375726 | J31: 0 | K31: 0.6143221944 | L31: 0.7654936401 | M31: -0.1913837205 | N31: -0.5147397817 | O31: 0.7654936401 | P31: 0.3860860579 | Q31: -0.5147397817 | R31: 0.7654936401 | S31: 0.3860860579
B32: 0 | C32: 0.2079116908 | D32: 0.9781476007 | E32: -0.3907311285 | F32: 0 | G32: 0.9205048535 | H32: 0 | I32: 0 | J32: 1 | K32: -0.2005893794 | L32: 0.3860860579 | M32: 0.9003896139 | N32: 0.3907311285 | O32: -0.1913837205 | P32: 0.9003896139 | Q32: 0.3907311285 | R32: -0.1913837205 | S32: 0.9003896139
B34: 回転順序 | F34: 回転角 | I34: マトリクスの回転 | R34: 回転順どおりの角 | U34: オイラー角
B35: 番号 | C35: １回目 | D35: ２回目 | E35: ３回目 | F35: １回目 | G35: ２回目 | H35: ３回目 | I35: G | R35: =exe("OdrAng(G,No)", R37:T37=odrang(I37:Q37,B37), R38:T38=odrang(I38:Q38,B38), R39:T39=odrang(I39:Q39,B39), R40:T40=odrang(I40:Q40,B40), R41:T41=odrang(I41:Q41,B41), R42:T42=odrang(I42:Q42,B42), R43:T43=odrang(I43:Q43,B43), R44:T44=odrang(I44:Q44,B44), R45:T45=odrang(I45:Q45,B45), R46:T46=odrang(I46:Q46,B46), R47:T47=odrang(I47:Q47,B47), R48:T48=odrang(I48:Q48,B48)) -> OdrAng(G,No) | U35: =exe("RtnAng(G,No)", U37:W37=rtnang(I37:Q37,B37), U38:W38=rtnang(I38:Q38,B38), U39:W39=rtnang(I39:Q39,B39), U40:W40=rtnang(I40:Q40,B40), U41:W41=rtnang(I41:Q41,B41), U42:W42=rtnang(I42:Q42,B42)) -> RtnAng(G,No)
B36: No | C36: I1 | D36: I2 | E36: I3 | F36: A1 | G36: A2 | H36: A3 | I36: =exe("G=MatRtn(MatRtn(RtnMat(A1,I1),A2,I2),A3,I3)", I37:Q37=matrtn(matrtn(rtnmat(F37,C37),G37,D37),H37,E37), I38:Q38=matrtn(matrtn(rtnmat(F38,C38),G38,D38),H38,E38), I39:Q39=matrtn(matrtn(rtnmat(F39,C39),G39,D39),H39,E39), I40:Q40=matrtn(matrtn(rtnmat(F40,C40),G40,D40),H40,E40), I41:Q41=matrtn(matrtn(rtnmat(F41,C41),G41,D41),H41,E41), I42:Q42=matrtn(matrtn(rtnmat(F42,C42),G42,D42),H42,E42), I43:Q43=matrtn(matrtn(rtnmat(F43,C43),G43,D43),H43,E43), I44:Q44=matrtn(matrtn(rtnmat(F44,C44),G44,D44),H44,E44), I45:Q45=matrtn(matrtn(rtnmat(F45,C45),G45,D45),H45,E45), I46:Q46=matrtn(matrtn(rtnmat(F46,C46),G46,D46),H46,E46), I47:Q47=matrtn(matrtn(rtnmat(F47,C47),G47,D47),H47,E47), I48:Q48=matrtn(matrtn(rtnmat(F48,C48),G48,D48),H48,E48)) -> G=MatRtn(MatRtn(RtnMat(A1,I1),A2,I2),A3,I3) | R36: １回目 | S36: ２回目 | T36: ３回目 | U36: １回目 | V36: ２回目 | W36: ３回目
B37: 1 | C37: 1 | D37: 2 | E37: 3 | F37: 10 | G37: 20 | H37: 30 | I37: 0.8137976813 | J37: 0.5438381425 | K37: -0.2048741287 | L37: -0.4698463104 | M37: 0.8231729446 | N37: 0.3187957776 | O37: 0.3420201433 | P37: -0.1631759112 | Q37: 0.9254165784 | R37: 10 | S37: 20 | T37: 30 | U37: 10 | V37: 20 | W37: 30
B38: 2 | C38: 2 | D38: 3 | E38: 1 | F38: =F37 -> 10 | G38: 20 | H38: 30 | I38: 0.9254165784 | J38: 0.3420201433 | K38: -0.1631759112 | L38: -0.2048741287 | M38: 0.8137976813 | N38: 0.5438381425 | O38: 0.3187957776 | P38: -0.4698463104 | Q38: 0.8231729446 | R38: 10 | S38: 20 | T38: 30 | U38: 30 | V38: 10 | W38: 20
B39: 3 | C39: 3 | D39: 1 | E39: 2 | F39: 10 | G39: 20 | H39: 30 | I39: 0.8231729446 | J39: 0.3187957776 | K39: -0.4698463104 | L39: -0.1631759112 | M39: 0.9254165784 | N39: 0.3420201433 | O39: 0.5438381425 | P39: -0.2048741287 | Q39: 0.8137976813 | R39: 10 | S39: 20 | T39: 30 | U39: 20 | V39: 30 | W39: 10
B40: 4 | C40: 3 | D40: 2 | E40: 1 | F40: 10 | G40: 20 | H40: 30 | I40: 0.9254165784 | J40: 0.1631759112 | K40: -0.3420201433 | L40: 0.01802831124 | M40: 0.8825641193 | N40: 0.4698463104 | O40: 0.3785223064 | P40: -0.4409696105 | Q40: 0.8137976813 | R40: 10 | S40: 20 | T40: 30 | U40: 30 | V40: 20 | W40: 10
B41: 5 | C41: 1 | D41: 3 | E41: 2 | F41: 10 | G41: 20 | H41: 30 | I41: 0.8137976813 | J41: 0.3785223064 | K41: -0.4409696105 | L41: -0.3420201433 | M41: 0.9254165784 | N41: 0.1631759112 | O41: 0.4698463104 | P41: 0.01802831124 | Q41: 0.8825641193 | R41: 10 | S41: 20 | T41: 30 | U41: 10 | V41: 30 | W41: 20
B42: 6 | C42: 2 | D42: 1 | E42: 3 | F42: 10 | G42: 20 | H42: 30 | I42: 0.8825641193 | J42: 0.4698463104 | K42: 0.01802831124 | L42: -0.4409696105 | M42: 0.8137976813 | N42: 0.3785223064 | O42: 0.1631759112 | P42: -0.3420201433 | Q42: 0.9254165784 | R42: 10 | S42: 20 | T42: 30 | U42: 20 | V42: 10 | W42: 30
B43: 7 | C43: 1 | D43: 2 | E43: 1 | F43: 10 | G43: 20 | H43: 30 | I43: 0.9396926208 | J43: 0.05939117461 | K43: -0.3368240888 | L43: 0.1710100717 | M43: 0.7712805764 | N43: 0.6130920224 | O43: 0.2961981327 | P43: -0.6337183609 | Q43: 0.7146101771 | R43: 10 | S43: 20 | T43: 30
B44: 8 | C44: 2 | D44: 3 | E44: 2 | F44: 10 | G44: 20 | H44: 30 | I44: 0.7146101771 | J44: 0.2961981327 | K44: -0.6337183609 | L44: -0.3368240888 | M44: 0.9396926208 | N44: 0.05939117461 | O44: 0.6130920224 | P44: 0.1710100717 | Q44: 0.7712805764 | R44: 10 | S44: 20 | T44: 30
B45: 9 | C45: 3 | D45: 1 | E45: 3 | F45: 10 | G45: 20 | H45: 30 | I45: 0.7712805764 | J45: 0.6130920224 | K45: 0.1710100717 | L45: -0.6337183609 | M45: 0.7146101771 | N45: 0.2961981327 | O45: 0.05939117461 | P45: -0.3368240888 | Q45: 0.9396926208 | R45: 10 | S45: 20 | T45: 30
B46: 10 | C46: 3 | D46: 2 | E46: 3 | F46: 10 | G46: 20 | H46: 30 | I46: 0.7146101771 | J46: 0.6337183609 | K46: -0.2961981327 | L46: -0.6130920224 | M46: 0.7712805764 | N46: 0.1710100717 | O46: 0.3368240888 | P46: 0.05939117461 | Q46: 0.9396926208 | R46: 10 | S46: 20 | T46: 30
B47: 11 | C47: 1 | D47: 3 | E47: 1 | F47: 10 | G47: 20 | H47: 30 | I47: 0.9396926208 | J47: 0.3368240888 | K47: 0.05939117461 | L47: -0.2961981327 | M47: 0.7146101771 | N47: 0.6337183609 | O47: 0.1710100717 | P47: -0.6130920224 | Q47: 0.7712805764 | R47: 10 | S47: 20 | T47: 30
B48: 12 | C48: 2 | D48: 1 | E48: 2 | F48: 10 | G48: 20 | H48: 30 | I48: 0.7712805764 | J48: 0.1710100717 | K48: -0.6130920224 | L48: 0.05939117461 | M48: 0.9396926208 | N48: 0.3368240888 | O48: 0.6337183609 | P48: -0.2961981327 | Q48: 0.7146101771 | R48: 10 | S48: 20 | T48: 30
B50: 回転順序 | F50: 回転角 | I50: マトリクスの回転 | R50: 回転順どおりの角 | U50: オイラー角
B51: 番号 | C51: １回目 | D51: ２回目 | E51: ３回目 | F51: １回目 | G51: ２回目 | H51: ３回目 | I51: G | R51: =exe("OdrAng(G,No)", R53:T53=odrang(I53:Q53,B53), R54:T54=odrang(I54:Q54,B54), R55:T55=odrang(I55:Q55,B55), R56:T56=odrang(I56:Q56,B56), R57:T57=odrang(I57:Q57,B57), R58:T58=odrang(I58:Q58,B58), R59:T59=odrang(I59:Q59,B59), R60:T60=odrang(I60:Q60,B60), R61:T61=odrang(I61:Q61,B61), R62:T62=odrang(I62:Q62,B62), R63:T63=odrang(I63:Q63,B63), R64:T64=odrang(I64:Q64,B64)) -> OdrAng(G,No) | U51: =exe("RtnAng(G,No)", U53:W53=rtnang(I53:Q53,B53), U54:W54=rtnang(I54:Q54,B54), U55:W55=rtnang(I55:Q55,B55), U56:W56=rtnang(I56:Q56,B56), U57:W57=rtnang(I57:Q57,B57), U58:W58=rtnang(I58:Q58,B58)) -> RtnAng(G,No)
B52: No | C52: I1 | D52: I2 | E52: I3 | F52: A1 | G52: A2 | H52: A3 | I52: =exe("G=AngMat(A1～A3,I1～I3)", I53:Q53=AngMat(F53:H53,C53:E53), I54:Q54=AngMat(F54:H54,C54:E54), I55:Q55=AngMat(F55:H55,C55:E55), I56:Q56=AngMat(F56:H56,C56:E56), I57:Q57=AngMat(F57:H57,C57:E57), I58:Q58=AngMat(F58:H58,C58:E58), I59:Q59=AngMat(F59:H59,C59:E59), I60:Q60=AngMat(F60:H60,C60:E60), I61:Q61=AngMat(F61:H61,C61:E61), I62:Q62=AngMat(F62:H62,C62:E62), I63:Q63=AngMat(F63:H63,C63:E63), I64:Q64=AngMat(F64:H64,C64:E64)) -> G=AngMat(A1～A3,I1～I3) | R52: １回目 | S52: ２回目 | T52: ３回目 | U52: １回目 | V52: ２回目 | W52: ３回目
B53: 1 | C53: 1 | D53: 2 | E53: 3 | F53: 10 | G53: 20 | H53: 30 | I53: 0.8137976813 | J53: 0.5438381425 | K53: -0.2048741287 | L53: -0.4698463104 | M53: 0.8231729446 | N53: 0.3187957776 | O53: 0.3420201433 | P53: -0.1631759112 | Q53: 0.9254165784 | R53: 10 | S53: 20 | T53: 30 | U53: 10 | V53: 20 | W53: 30
B54: 2 | C54: 2 | D54: 3 | E54: 1 | F54: =F53 -> 10 | G54: =G53 -> 20 | H54: =H53 -> 30 | I54: 0.9254165784 | J54: 0.3420201433 | K54: -0.1631759112 | L54: -0.2048741287 | M54: 0.8137976813 | N54: 0.5438381425 | O54: 0.3187957776 | P54: -0.4698463104 | Q54: 0.8231729446 | R54: 10 | S54: 20 | T54: 30 | U54: 30 | V54: 10 | W54: 20
B55: 3 | C55: 3 | D55: 1 | E55: 2 | F55: 10 | G55: 20 | H55: 30 | I55: 0.8231729446 | J55: 0.3187957776 | K55: -0.4698463104 | L55: -0.1631759112 | M55: 0.9254165784 | N55: 0.3420201433 | O55: 0.5438381425 | P55: -0.2048741287 | Q55: 0.8137976813 | R55: 10 | S55: 20 | T55: 30 | U55: 20 | V55: 30 | W55: 10
B56: 4 | C56: 3 | D56: 2 | E56: 1 | F56: 10 | G56: 20 | H56: 30 | I56: 0.9254165784 | J56: 0.1631759112 | K56: -0.3420201433 | L56: 0.01802831124 | M56: 0.8825641193 | N56: 0.4698463104 | O56: 0.3785223064 | P56: -0.4409696105 | Q56: 0.8137976813 | R56: 10 | S56: 20 | T56: 30 | U56: 30 | V56: 20 | W56: 10
B57: 5 | C57: 1 | D57: 3 | E57: 2 | F57: 10 | G57: 20 | H57: 30 | I57: 0.8137976813 | J57: 0.3785223064 | K57: -0.4409696105 | L57: -0.3420201433 | M57: 0.9254165784 | N57: 0.1631759112 | O57: 0.4698463104 | P57: 0.01802831124 | Q57: 0.8825641193 | R57: 10 | S57: 20 | T57: 30 | U57: 10 | V57: 30 | W57: 20
B58: 6 | C58: 2 | D58: 1 | E58: 3 | F58: 10 | G58: 20 | H58: 30 | I58: 0.8825641193 | J58: 0.4698463104 | K58: 0.01802831124 | L58: -0.4409696105 | M58: 0.8137976813 | N58: 0.3785223064 | O58: 0.1631759112 | P58: -0.3420201433 | Q58: 0.9254165784 | R58: 10 | S58: 20 | T58: 30 | U58: 20 | V58: 10 | W58: 30
B59: 7 | C59: 1 | D59: 2 | E59: 1 | F59: 10 | G59: 20 | H59: 30 | I59: 0.9396926208 | J59: 0.05939117461 | K59: -0.3368240888 | L59: 0.1710100717 | M59: 0.7712805764 | N59: 0.6130920224 | O59: 0.2961981327 | P59: -0.6337183609 | Q59: 0.7146101771 | R59: 10 | S59: 20 | T59: 30
B60: 8 | C60: 2 | D60: 3 | E60: 2 | F60: 10 | G60: 20 | H60: 30 | I60: 0.7146101771 | J60: 0.2961981327 | K60: -0.6337183609 | L60: -0.3368240888 | M60: 0.9396926208 | N60: 0.05939117461 | O60: 0.6130920224 | P60: 0.1710100717 | Q60: 0.7712805764 | R60: 10 | S60: 20 | T60: 30
B61: 9 | C61: 3 | D61: 1 | E61: 3 | F61: 10 | G61: 20 | H61: 30 | I61: 0.7712805764 | J61: 0.6130920224 | K61: 0.1710100717 | L61: -0.6337183609 | M61: 0.7146101771 | N61: 0.2961981327 | O61: 0.05939117461 | P61: -0.3368240888 | Q61: 0.9396926208 | R61: 10 | S61: 20 | T61: 30
B62: 10 | C62: 3 | D62: 2 | E62: 3 | F62: 10 | G62: 20 | H62: 30 | I62: 0.7146101771 | J62: 0.6337183609 | K62: -0.2961981327 | L62: -0.6130920224 | M62: 0.7712805764 | N62: 0.1710100717 | O62: 0.3368240888 | P62: 0.05939117461 | Q62: 0.9396926208 | R62: 10 | S62: 20 | T62: 30
B63: 11 | C63: 1 | D63: 3 | E63: 1 | F63: 10 | G63: 20 | H63: 30 | I63: 0.9396926208 | J63: 0.3368240888 | K63: 0.05939117461 | L63: -0.2961981327 | M63: 0.7146101771 | N63: 0.6337183609 | O63: 0.1710100717 | P63: -0.6130920224 | Q63: 0.7712805764 | R63: 10 | S63: 20 | T63: 30
B64: 12 | C64: 2 | D64: 1 | E64: 2 | F64: 10 | G64: 20 | H64: 30 | I64: 0.7712805764 | J64: 0.1710100717 | K64: -0.6130920224 | L64: 0.05939117461 | M64: 0.9396926208 | N64: 0.3368240888 | O64: 0.6337183609 | P64: -0.2961981327 | Q64: 0.7146101771 | R64: 10 | S64: 20 | T64: 30
B66: 上記の計算式を１行づつ入力（通常のエクセルの計算式と同様に、コピーするとセル範囲が自動的に調整される）。
B67: 回転順序 | F67: 回転角 | I67: マトリクスの回転 | S67: 回転順どおりの角 | W67: オイラー角
B68: 番号 | C68: １回目 | D68: ２回目 | E68: ３回目 | F68: １回目 | G68: ２回目 | H68: ３回目 | I68: G | S68: OdrAng(G,No) | W68: RtnAng(G,No)
B69: No | C69: I1 | D69: I2 | E69: I3 | F69: A1 | G69: A2 | H69: A3 | I69: AngMat=MatRtn(MatRtn(RtnMat(A1,I1),A2,I2),A3,I3) | R69: No | S69: １回目 | T69: ２回目 | U69: ３回目 | V69: No | W69: １回目 | X69: ２回目 | Y69: ３回目
B70: =exe(ROW()-ROW(A$69),I70:Q70=matrtn(matrtn(rtnmat(F70,C70),G70,D70),H70,E70)) -> 1 | C70: 1 | D70: 2 | E70: 3 | F70: 10 | G70: 20 | H70: 30 | I70: 0.8137976813 | J70: 0.5438381425 | K70: -0.2048741287 | L70: -0.4698463104 | M70: 0.8231729446 | N70: 0.3187957776 | O70: 0.3420201433 | P70: -0.1631759112 | Q70: 0.9254165784 | R70: =exe("1",S70:U70=odrang(I70:Q70,B70)) -> 1 | S70: 10 | T70: 20 | U70: 30 | V70: =exe("1",W70:Y70=rtnang(I70:Q70,B70)) -> 1 | W70: 10 | X70: 20 | Y70: 30
B71: 2 | C71: 2 | D71: 3 | E71: 1 | F71: =F70 -> 10 | G71: 20 | H71: 30 | I71: 0.9254165784 | J71: 0.3420201433 | K71: -0.1631759112 | L71: -0.2048741287 | M71: 0.8137976813 | N71: 0.5438381425 | O71: 0.3187957776 | P71: -0.4698463104 | Q71: 0.8231729446 | R71: =exe("2",S71:U71=odrang(I71:Q71,B71)) -> 2 | S71: 10 | T71: 20 | U71: 30 | V71: =exe("2",W71:Y71=rtnang(I71:Q71,B71)) -> 2 | W71: 30 | X71: 10 | Y71: 20
B72: 3 | C72: 3 | D72: 1 | E72: 2 | F72: 10 | G72: 20 | H72: 30 | I72: 0.8231729446 | J72: 0.3187957776 | K72: -0.4698463104 | L72: -0.1631759112 | M72: 0.9254165784 | N72: 0.3420201433 | O72: 0.5438381425 | P72: -0.2048741287 | Q72: 0.8137976813 | R72: =exe("3",S72:U72=odrang(I72:Q72,B72)) -> 3 | S72: 10 | T72: 20 | U72: 30 | V72: =exe("3",W72:Y72=rtnang(I72:Q72,B72)) -> 3 | W72: 20 | X72: 30 | Y72: 10
B73: 4 | C73: 3 | D73: 2 | E73: 1 | F73: 10 | G73: 20 | H73: 30 | I73: 0.9254165784 | J73: 0.1631759112 | K73: -0.3420201433 | L73: 0.01802831124 | M73: 0.8825641193 | N73: 0.4698463104 | O73: 0.3785223064 | P73: -0.4409696105 | Q73: 0.8137976813 | R73: =exe("4",S73:U73=odrang(I73:Q73,B73)) -> 4 | S73: 10 | T73: 20 | U73: 30 | V73: =exe("4",W73:Y73=rtnang(I73:Q73,B73)) -> 4 | W73: 30 | X73: 20 | Y73: 10
B74: 5 | C74: 1 | D74: 3 | E74: 2 | F74: 10 | G74: 20 | H74: 30 | I74: 0.8137976813 | J74: 0.3785223064 | K74: -0.4409696105 | L74: -0.3420201433 | M74: 0.9254165784 | N74: 0.1631759112 | O74: 0.4698463104 | P74: 0.01802831124 | Q74: 0.8825641193 | R74: =exe("5",S74:U74=odrang(I74:Q74,B74)) -> 5 | S74: 10 | T74: 20 | U74: 30 | V74: =exe("5",W74:Y74=rtnang(I74:Q74,B74)) -> 5 | W74: 10 | X74: 30 | Y74: 20
B75: 6 | C75: 2 | D75: 1 | E75: 3 | F75: 10 | G75: 20 | H75: 30 | I75: 0.8825641193 | J75: 0.4698463104 | K75: 0.01802831124 | L75: -0.4409696105 | M75: 0.8137976813 | N75: 0.3785223064 | O75: 0.1631759112 | P75: -0.3420201433 | Q75: 0.9254165784 | R75: =exe("6",S75:U75=odrang(I75:Q75,B75)) -> 6 | S75: 10 | T75: 20 | U75: 30 | V75: =exe("6",W75:Y75=rtnang(I75:Q75,B75)) -> 6 | W75: 20 | X75: 10 | Y75: 30
B76: 7 | C76: 1 | D76: 2 | E76: 1 | F76: 10 | G76: 20 | H76: 30 | I76: 0.9396926208 | J76: 0.05939117461 | K76: -0.3368240888 | L76: 0.1710100717 | M76: 0.7712805764 | N76: 0.6130920224 | O76: 0.2961981327 | P76: -0.6337183609 | Q76: 0.7146101771 | R76: =exe("7",S76:U76=odrang(I76:Q76,B76)) -> 7 | S76: 10 | T76: 20 | U76: 30
B77: 8 | C77: 2 | D77: 3 | E77: 2 | F77: 10 | G77: 20 | H77: 30 | I77: 0.7146101771 | J77: 0.2961981327 | K77: -0.6337183609 | L77: -0.3368240888 | M77: 0.9396926208 | N77: 0.05939117461 | O77: 0.6130920224 | P77: 0.1710100717 | Q77: 0.7712805764 | R77: =exe("8",S77:U77=odrang(I77:Q77,B77)) -> 8 | S77: 10 | T77: 20 | U77: 30
B78: 9 | C78: 3 | D78: 1 | E78: 3 | F78: 10 | G78: 20 | H78: 30 | I78: 0.7712805764 | J78: 0.6130920224 | K78: 0.1710100717 | L78: -0.6337183609 | M78: 0.7146101771 | N78: 0.2961981327 | O78: 0.05939117461 | P78: -0.3368240888 | Q78: 0.9396926208 | R78: =exe("9",S78:U78=odrang(I78:Q78,B78)) -> 9 | S78: 10 | T78: 20 | U78: 30
B79: 10 | C79: 3 | D79: 2 | E79: 3 | F79: 10 | G79: 20 | H79: 30 | I79: 0.7146101771 | J79: 0.6337183609 | K79: -0.2961981327 | L79: -0.6130920224 | M79: 0.7712805764 | N79: 0.1710100717 | O79: 0.3368240888 | P79: 0.05939117461 | Q79: 0.9396926208 | R79: =exe("10",S79:U79=odrang(I79:Q79,B79)) -> 10 | S79: 10 | T79: 20 | U79: 30
B80: 11 | C80: 1 | D80: 3 | E80: 1 | F80: 10 | G80: 20 | H80: 30 | I80: 0.9396926208 | J80: 0.3368240888 | K80: 0.05939117461 | L80: -0.2961981327 | M80: 0.7146101771 | N80: 0.6337183609 | O80: 0.1710100717 | P80: -0.6130920224 | Q80: 0.7712805764 | R80: =exe("11",S80:U80=odrang(I80:Q80,B80)) -> 11 | S80: 10 | T80: 20 | U80: 30
B81: 12 | C81: 2 | D81: 1 | E81: 2 | F81: 10 | G81: 20 | H81: 30 | I81: 0.7712805764 | J81: 0.1710100717 | K81: -0.6130920224 | L81: 0.05939117461 | M81: 0.9396926208 | N81: 0.3368240888 | O81: 0.6337183609 | P81: -0.2961981327 | Q81: 0.7146101771 | R81: =exe("12",S81:U81=odrang(I81:Q81,B81)) -> 12 | S81: 10 | T81: 20 | U81: 30
B83: G | F83: m | J83: =exe("Q*a*cnj(Q)",J84:J87=qtqqmp(Qtqvmp(B92:B95,B23:B25),qtncnj(B92:B95))) -> Q*a*cnj(Q) | K83: =exe("R*a*cnj(R)",K84:K87=qtqqmp(Qtqvmp(C92:C95,B23:B25),qtncnj(C92:C95))) -> R*a*cnj(R) | L83: =exe("S*a*cnj(S)",L84:L87=qtqqmp(Qtqvmp(D92:D95,B23:B25),qtncnj(D92:D95))) -> S*a*cnj(S) | M83: =exe("T*a*cnj(T)",M84:M87=qtqqmp(Qtqvmp(E92:E95,B23:B25),qtncnj(E92:E95))) -> T*a*cnj(T) | N83: =exe("vctrtn(12,1)",N85:N87=vctrtn(B23:B25,12,1)) -> vctrtn(12,1) | O83: =exe("vctrtn(23,2)",O85:O87=vctrtn(B23:B25,23,2)) -> vctrtn(23,2) | P83: =exe("vctrtn(34,3)",P85:P87=vctrtn(B23:B25,34,3)) -> vctrtn(34,3) | Q83: =exe("vctrtn(34,3)→vctrtn(23,2)→vctrtn(12,1)",Q85:Q87=vctrtn(vctrtn(vctrtn(B23:B25,34,3),23,2),12,1)) -> vctrtn(34,3)→vctrtn(23,2)→vctrtn(12,1)
B84: =exe("MatRtn(MatRtn(RtnMat(12,1),23,2),34,3)",B85:D87=matrtn(matrtn(rtnmat(12,1),23,2),34,3)) -> MatRtn(MatRtn(RtnMat(12,1),23,2),34,3) | F84: =exe("Mx31Mp(A,a)",F85:F87=mx31mp(B30:D32,B23:B25)) -> Mx31Mp(A,a) | G84: =exe("Mx31Mp(B,a)",G85:G87=mx31mp(E30:G32,B23:B25)) -> Mx31Mp(B,a) | H84: =exe("Mx31Mp(C,a)",H85:H87=mx31mp(H30:J32,B23:B25)) -> Mx31Mp(C,a) | I84: =exe("Mx31Mp(D,a)",I85:I87=mx31mp(K30:M32,B23:B25)) -> Mx31Mp(D,a) | J84: 0 | K84: 7.654467338e-17 | L84: -1.829049065e-16 | M84: -1.315137235e-16
B85: 0.7631331092 | C85: -0.5147397817 | D85: 0.3907311285 | F85: 2 | G85: 3.794665349 | H85: -0.0195035653 | I85: 1.935702516 | J85: 2 | K85: 3.794665349 | L85: -0.0195035653 | M85: 1.935702516 | N85: 2 | O85: 3.794665349 | P85: -0.0195035653 | Q85: 1.935702516
B86: 0.6143221944 | C86: 0.7654936401 | D86: -0.1913837205 | F86: 1.894884348 | G86: 3 | H86: 3.605498525 | I86: 2.568206707 | J86: 1.894884348 | K86: 3 | L86: 3.605498525 | M86: 2.568206707 | N86: 1.894884348 | O86: 3 | P86: 3.605498525 | Q86: 2.568206707
B87: -0.2005893794 | C87: 0.3860860579 | D87: 0.9003896139 | F87: 5.514473076 | G87: 3.82106201 | H87: 5 | I87: 5.259027484 | J87: 5.514473076 | K87: 3.82106201 | L87: 5 | M87: 5.259027484 | N87: 5.514473076 | O87: 3.82106201 | P87: 5 | Q87: 5.259027484
A89: =A27+1 -> 4 | B89: 四元数
B90: Q | C90: R | D90: S | E90: T=Q*R*S | F90: U | G90: V | H90: W | Y90: D
B91: =exe("RtnQtn(12,1)",B92:B95=rtnqtn(12,1)) -> RtnQtn(12,1) | C91: =exe("RtnQtn(23,2)",C92:C95=rtnqtn(23,2)) -> RtnQtn(23,2) | D91: =exe("RtnQtn(34,3)",D92:D95=rtnqtn(34,3)) -> RtnQtn(34,3) | E91: =exe("QtqqMp",E92:E95=qtqqmp(qtqqmp(B92:B95,C92:C95),D92:D95)) -> QtqqMp | F91: =exe("QtnCnj(T)",F92:F95=qtncnj(E92:E95)) -> QtnCnj(T) | G91: =exe("DcmQtn(D)",G92:G95=DcmQtn(K30:M32)) -> DcmQtn(D) | H91: =exe("AngQtn",H92:H95=QtnRtn(QtnRtn(rtnqtn(12,1),23,2),34,3)) -> AngQtn | Y91: =exe("QtnDcm(T)",Y92:AA94=QtnDcm(E92:E95)) -> QtnDcm(T)
B92: 0.9945218954 | C92: 0.9799247046 | D92: 0.956304756 | E92: 0.9258801709 | F92: 0.9258801709 | G92: 0.9258801709 | H92: 0.9258801709 | Y92: 0.7631331092 | Z92: -0.5147397817 | AA92: 0.3907311285
B93: 0.1045284633 | C93: 0 | D93: 0 | E93: 0.1559245453 | F93: -0.1559245453 | G93: 0.1559245453 | H93: 0.1559245453 | Y93: 0.6143221944 | Z93: 0.7654936401 | AA93: -0.1913837205
B94: 0 | C94: 0.1993679344 | D94: 0 | E94: 0.159664427 | F94: -0.159664427 | G94: 0.159664427 | H94: 0.159664427 | Y94: -0.2005893794 | Z94: 0.3860860579 | AA94: 0.9003896139
B95: 0 | C95: 0 | D95: 0.2923717047 | E95: 0.3048617984 | F95: -0.3048617984 | G95: 0.3048617984 | H95: 0.3048617984
B97: 回転順序 | F97: 回転角 | I97: 四元数の回転 | M97: 回転順の角 | P97: オイラー角
B98: 番号 | C98: １回目 | D98: ２回目 | E98: ３回目 | F98: １回目 | G98: ２回目 | H98: ３回目 | I98: G | M98: =exe("OdrAng(G,No)", M100:O100=odrang(QtnDcm(I100:L100),B100), M101:O101=odrang(QtnDcm(I101:L101),B101), M102:O102=odrang(QtnDcm(I102:L102),B102), M103:O103=odrang(QtnDcm(I103:L103),B103), M104:O104=odrang(QtnDcm(I104:L104),B104), M105:O105=odrang(QtnDcm(I105:L105),B105), M106:O106=odrang(QtnDcm(I106:L106),B106), M107:O107=odrang(QtnDcm(I107:L107),B107), M108:O108=odrang(QtnDcm(I108:L108),B108), M109:O109=odrang(QtnDcm(I109:L109),B109), M110:O110=odrang(QtnDcm(I110:L110),B110), M111:O111=odrang(QtnDcm(I111:L111),B111)) -> OdrAng(G,No) | P98: =exe("RtnAng(G,No)", P100:R100=rtnang(QtnDcm(I100:L100),B100), P101:R101=rtnang(QtnDcm(I101:L101),B101), P102:R102=rtnang(QtnDcm(I102:L102),B102), P103:R103=rtnang(QtnDcm(I103:L103),B103), P104:R104=rtnang(QtnDcm(I104:L104),B104), P105:R105=rtnang(QtnDcm(I105:L105),B105)) -> RtnAng(G,No)
B99: No | C99: I1 | D99: I2 | E99: I3 | F99: A1 | G99: A2 | H99: A3 | I99: =exe("G=QtnRtn(QtnRtn(RtnQtn(A1,I1),A2,I2),A3,I3)", I100:L100=QtnRtn(QtnRtn(rtnqtn(F100,C100),G100,D100),H100,E100), I101:L101=QtnRtn(QtnRtn(rtnqtn(F101,C101),G101,D101),H101,E101), I102:L102=QtnRtn(QtnRtn(rtnqtn(F102,C102),G102,D102),H102,E102), I103:L103=QtnRtn(QtnRtn(rtnqtn(F103,C103),G103,D103),H103,E103), I104:L104=QtnRtn(QtnRtn(rtnqtn(F104,C104),G104,D104),H104,E104), I105:L105=QtnRtn(QtnRtn(rtnqtn(F105,C105),G105,D105),H105,E105), I106:L106=QtnRtn(QtnRtn(rtnqtn(F106,C106),G106,D106),H106,E106), I107:L107=QtnRtn(QtnRtn(rtnqtn(F107,C107),G107,D107),H107,E107), I108:L108=QtnRtn(QtnRtn(rtnqtn(F108,C108),G108,D108),H108,E108), I109:L109=QtnRtn(QtnRtn(rtnqtn(F109,C109),G109,D109),H109,E109), I110:L110=QtnRtn(QtnRtn(rtnqtn(F110,C110),G110,D110),H110,E110), I111:L111=QtnRtn(QtnRtn(rtnqtn(F111,C111),G111,D111),H111,E111)) -> G=QtnRtn(QtnRtn(RtnQtn(A1,I1),A2,I2),A3,I3) | M99: １回目 | N99: ２回目 | O99: ３回目 | P99: １回目 | Q99: ２回目 | R99: ３回目
B100: 1 | C100: 1 | D100: 2 | E100: 3 | F100: 10 | G100: 20 | H100: 30 | I100: 0.9437143641 | J100: 0.1276794407 | K100: 0.1448781254 | L100: 0.2685358228 | M100: 10 | N100: 20 | O100: 30 | P100: 10 | Q100: 20 | R100: 30
B101: 2 | C101: 2 | D101: 3 | E101: 1 | F101: =F100 -> 10 | G101: 20 | H101: 30 | I101: 0.9437143641 | J101: 0.2685358228 | K101: 0.1276794407 | L101: 0.1448781254 | M101: 10 | N101: 20 | O101: 30 | P101: 30 | Q101: 10 | R101: 20
B102: 3 | C102: 3 | D102: 1 | E102: 2 | F102: 10 | G102: 20 | H102: 30 | I102: 0.9437143641 | J102: 0.1448781254 | K102: 0.2685358228 | L102: 0.1276794407 | M102: 10 | N102: 20 | O102: 30 | P102: 20 | Q102: 30 | R102: 10
B103: 4 | C103: 3 | D103: 2 | E103: 1 | F103: 10 | G103: 20 | H103: 30 | I103: 0.9515485246 | J103: 0.2392983377 | K103: 0.1893078574 | L103: 0.03813457647 | M103: 10 | N103: 20 | O103: 30 | P103: 30 | Q103: 20 | R103: 10
B104: 5 | C104: 1 | D104: 3 | E104: 2 | F104: 10 | G104: 20 | H104: 30 | I104: 0.9515485246 | J104: 0.03813457647 | K104: 0.2392983377 | L104: 0.1893078574 | M104: 10 | N104: 20 | O104: 30 | P104: 10 | Q104: 30 | R104: 20
B105: 6 | C105: 2 | D105: 1 | E105: 3 | F105: 10 | G105: 20 | H105: 30 | I105: 0.9515485246 | J105: 0.1893078574 | K105: 0.03813457647 | L105: 0.2392983377 | M105: 10 | N105: 20 | O105: 30 | P105: 20 | Q105: 10 | R105: 30
B106: 7 | C106: 1 | D106: 2 | E106: 1 | F106: 10 | G106: 20 | H106: 30 | I106: 0.9254165784 | J106: 0.3368240888 | K106: 0.1710100717 | L106: -0.03015368961 | M106: 10 | N106: 20 | O106: 30
B107: 8 | C107: 2 | D107: 3 | E107: 2 | F107: 10 | G107: 20 | H107: 30 | I107: 0.9254165784 | J107: -0.03015368961 | K107: 0.3368240888 | L107: 0.1710100717 | M107: 10 | N107: 20 | O107: 30
B108: 9 | C108: 3 | D108: 1 | E108: 3 | F108: 10 | G108: 20 | H108: 30 | I108: 0.9254165784 | J108: 0.1710100717 | K108: -0.03015368961 | L108: 0.3368240888 | M108: 10 | N108: 20 | O108: 30
B109: 10 | C109: 3 | D109: 2 | E109: 3 | F109: 10 | G109: 20 | H109: 30 | I109: 0.9254165784 | J109: 0.03015368961 | K109: 0.1710100717 | L109: 0.3368240888 | M109: 10 | N109: 20 | O109: 30
B110: 11 | C110: 1 | D110: 3 | E110: 1 | F110: 10 | G110: 20 | H110: 30 | I110: 0.9254165784 | J110: 0.3368240888 | K110: 0.03015368961 | L110: 0.1710100717 | M110: 10 | N110: 20 | O110: 30
B111: 12 | C111: 2 | D111: 1 | E111: 2 | F111: 10 | G111: 20 | H111: 30 | I111: 0.9254165784 | J111: 0.1710100717 | K111: 0.3368240888 | L111: 0.03015368961 | M111: 10 | N111: 20 | O111: 30
B113: 回転順序 | F113: 回転角 | I113: 四元数の回転 | M113: 回転順の角 | P113: オイラー角
B114: 番号 | C114: １回目 | D114: ２回目 | E114: ３回目 | F114: １回目 | G114: ２回目 | H114: ３回目 | I114: G | M114: =exe("OdrAng(G,No)", M116:O116=odrang(QtnDcm(I116:L116),B116), M117:O117=odrang(QtnDcm(I117:L117),B117), M118:O118=odrang(QtnDcm(I118:L118),B118), M119:O119=odrang(QtnDcm(I119:L119),B119), M120:O120=odrang(QtnDcm(I120:L120),B120), M121:O121=odrang(QtnDcm(I121:L121),B121), M122:O122=odrang(QtnDcm(I122:L122),B122), M123:O123=odrang(QtnDcm(I123:L123),B123), M124:O124=odrang(QtnDcm(I124:L124),B124), M125:O125=odrang(QtnDcm(I125:L125),B125), M126:O126=odrang(QtnDcm(I126:L126),B126), M127:O127=odrang(QtnDcm(I127:L127),B127)) -> OdrAng(G,No) | P114: =exe("RtnAng(G,No)", P116:R116=rtnang(QtnDcm(I116:L116),B116), P117:R117=rtnang(QtnDcm(I117:L117),B117), P118:R118=rtnang(QtnDcm(I118:L118),B118), P119:R119=rtnang(QtnDcm(I119:L119),B119), P120:R120=rtnang(QtnDcm(I120:L120),B120), P121:R121=rtnang(QtnDcm(I121:L121),B121)) -> RtnAng(G,No)
B115: No | C115: I1 | D115: I2 | E115: I3 | F115: A1 | G115: A2 | H115: A3 | I115: =exe("G=AngQtn(A1～A3,I1～I3)", I116:L116=angqtn(F116:H116,C116:E116), I117:L117=angqtn(F117:H117,C117:E117), I118:L118=angqtn(F118:H118,C118:E118), I119:L119=angqtn(F119:H119,C119:E119), I120:L120=angqtn(F120:H120,C120:E120), I121:L121=angqtn(F121:H121,C121:E121), I122:L122=angqtn(F122:H122,C122:E122), I123:L123=angqtn(F123:H123,C123:E123), I124:L124=angqtn(F124:H124,C124:E124), I125:L125=angqtn(F125:H125,C125:E125), I126:L126=angqtn(F126:H126,C126:E126), I127:L127=angqtn(F127:H127,C127:E127)) -> G=AngQtn(A1～A3,I1～I3) | M115: １回目 | N115: ２回目 | O115: ３回目 | P115: １回目 | Q115: ２回目 | R115: ３回目
B116: 1 | C116: 1 | D116: 2 | E116: 3 | F116: 10 | G116: 20 | H116: 30 | I116: 0.9437143641 | J116: 0.1276794407 | K116: 0.1448781254 | L116: 0.2685358228 | M116: 10 | N116: 20 | O116: 30 | P116: 10 | Q116: 20 | R116: 30
B117: 2 | C117: 2 | D117: 3 | E117: 1 | F117: =F116 -> 10 | G117: =G116 -> 20 | H117: =H116 -> 30 | I117: 0.9437143641 | J117: 0.2685358228 | K117: 0.1276794407 | L117: 0.1448781254 | M117: 10 | N117: 20 | O117: 30 | P117: 30 | Q117: 10 | R117: 20
B118: 3 | C118: 3 | D118: 1 | E118: 2 | F118: 10 | G118: 20 | H118: 30 | I118: 0.9437143641 | J118: 0.1448781254 | K118: 0.2685358228 | L118: 0.1276794407 | M118: 10 | N118: 20 | O118: 30 | P118: 20 | Q118: 30 | R118: 10
B119: 4 | C119: 3 | D119: 2 | E119: 1 | F119: 10 | G119: 20 | H119: 30 | I119: 0.9515485246 | J119: 0.2392983377 | K119: 0.1893078574 | L119: 0.03813457647 | M119: 10 | N119: 20 | O119: 30 | P119: 30 | Q119: 20 | R119: 10
B120: 5 | C120: 1 | D120: 3 | E120: 2 | F120: 10 | G120: 20 | H120: 30 | I120: 0.9515485246 | J120: 0.03813457647 | K120: 0.2392983377 | L120: 0.1893078574 | M120: 10 | N120: 20 | O120: 30 | P120: 10 | Q120: 30 | R120: 20
B121: 6 | C121: 2 | D121: 1 | E121: 3 | F121: 10 | G121: 20 | H121: 30 | I121: 0.9515485246 | J121: 0.1893078574 | K121: 0.03813457647 | L121: 0.2392983377 | M121: 10 | N121: 20 | O121: 30 | P121: 20 | Q121: 10 | R121: 30
B122: 7 | C122: 1 | D122: 2 | E122: 1 | F122: 10 | G122: 20 | H122: 30 | I122: 0.9254165784 | J122: 0.3368240888 | K122: 0.1710100717 | L122: -0.03015368961 | M122: 10 | N122: 20 | O122: 30
B123: 8 | C123: 2 | D123: 3 | E123: 2 | F123: 10 | G123: 20 | H123: 30 | I123: 0.9254165784 | J123: -0.03015368961 | K123: 0.3368240888 | L123: 0.1710100717 | M123: 10 | N123: 20 | O123: 30
B124: 9 | C124: 3 | D124: 1 | E124: 3 | F124: 10 | G124: 20 | H124: 30 | I124: 0.9254165784 | J124: 0.1710100717 | K124: -0.03015368961 | L124: 0.3368240888 | M124: 10 | N124: 20 | O124: 30
B125: 10 | C125: 3 | D125: 2 | E125: 3 | F125: 10 | G125: 20 | H125: 30 | I125: 0.9254165784 | J125: 0.03015368961 | K125: 0.1710100717 | L125: 0.3368240888 | M125: 10 | N125: 20 | O125: 30
B126: 11 | C126: 1 | D126: 3 | E126: 1 | F126: 10 | G126: 20 | H126: 30 | I126: 0.9254165784 | J126: 0.3368240888 | K126: 0.03015368961 | L126: 0.1710100717 | M126: 10 | N126: 20 | O126: 30
B127: 12 | C127: 2 | D127: 1 | E127: 2 | F127: 10 | G127: 20 | H127: 30 | I127: 0.9254165784 | J127: 0.1710100717 | K127: 0.3368240888 | L127: 0.03015368961 | M127: 10 | N127: 20 | O127: 30
A129: =A89+1 -> 5 | B129: 回転と座標変換
B130: 慣性座標系(I系) | E130: 局地座標系(L系)（上－東－北） | K130: ノミナル機体座標系(Bn系) | P130: 機体座標系(B系) | AC130: 方向余弦マトリクス | AF130: 四元数 | AH130: ベクトル | AJ130: 回転 | AK130: 座標変換 | AM130: 回転 | AN130: 座標変換
B131: DII | G131: =exe("DIL",G133:I135=matrtn(rtnmat(F134,3),-F135,2)) -> DIL | J131: =exe("QIL",J132:J135=QtnRtn(rtnqtn(F134,3),-F135,2)) -> QIL | K131: オイラー角 | L131: =exe("DIBn",L133:N135=Mx33Mp(G133:I135,matrtn(matrtn(rtnmat(K133,1),K134,2),K135,3))) -> DIBn | O131: =exe("QIBn",O132:O135=qtqqmp(J132:J135,QtnRtn(QtnRtn(rtnqtn(K133,1),K134,2),K135,3))) -> QIBn | P131: 姿勢誤差 | Q131: =exe("DIB",Q133:S135=Mx33Mp(L133:N135,ravdcm(P133:P135))) -> DIB | T131: =exe("QIB",T132:T135=qtqqmp(O132:O135,ravqtn(P133:P135))) -> QIB | AC131: 0.5438381425 | AD131: 0.8231729446 | AE131: -0.1631759112 | AF131: 0.1276794407 | AH131: 1 | AJ131: 0.9001654905 | AK131: 1.28685158 | AM131: 0.9001654905 | AN131: 1.28685158
B132: XI | C132: YI | D132: ZI | G132: XL | H132: YL | I132: ZL | J132: 0.4194492944 | L132: XBn | M132: YBn | N132: ZBn | O132: 0.6872946684 | Q132: XB | R132: YB | S132: ZB | T132: 0.7098848332 | AC132: -0.2048741287 | AD132: 0.3187957776 | AE132: 0.9254165784 | AF132: 0.1448781254 | AH132: 2 | AJ132: 1.700656298 | AK132: 2.132886912 | AM132: 1.700656298 | AN132: 2.132886912
B133: 1 | C133: 0 | D133: 0 | E133: 時間 | F133: 100 | G133: -0.6481026693 | H133: -0.007292051229 | I133: -0.7615180602 | J133: 0.003309801939 | K133: -105 | L133: -0.0544468937 | M133: 0.8829772508 | N133: -0.4662474776 | O133: -0.02006469274 | P133: 1 | Q133: 0.008180051889 | R133: 0.8759074039 | S133: -0.4824098948 | T133: -0.01239151208 | AF133: 0.2685358228 | AH133: 3 | AJ133: 3.208967162 | AK133: 2.791918056 | AM133: 3.208967162 | AN133: 2.791918056
B134: 0 | C134: 1 | D134: 0 | E134: 自転 | F134: =wer()*F133 -> 0.4178074622 | G134: -0.004726123521 | H134: 0.9999734126 | I134: -0.005553176351 | J134: -0.9077714447 | K134: 60 | L134: -0.8542736347 | M134: 0.2005583315 | N134: 0.4795757633 | O134: -0.3576383711 | P134: 2 | Q134: -0.8585373468 | R134: 0.2534930488 | S134: 0.4457071891 | T134: -0.3504426458
B135: 0 | C135: 0 | D135: 1 | E135: 測地緯度 | F135: 130.4 | G135: 0.7615383075 | H135: 0 | I135: -0.6481199011 | J135: 0.001529343202 | K135: 30 | L135: 0.5169643052 | M135: 0.4244143379 | N135: 0.7433844072 | O135: -0.6319163254 | P135: 3 | Q135: 0.5126857819 | R135: 0.4105210032 | S135: 0.7540728048 | T135: -0.6108190616 | AC135: 局地座標系 | AF135: 機体座標系 | AI135: 誤差角 | AJ135: 誤差を有する機体座標系 | AN135: 機体座標系から見た誤差 | AO135: 局地座標系から見た誤差
B137: ベクトルの回転と座標変換
B138: ベクトル | D138: 回転 | E138: 座標変換 | G138: 回転 | H138: 座標変換 | AC138: =exe("DIL",AC139:AE141=matrtn(matrtn(rtnmat(15,3),-130.4,2),-105,1)) -> DIL | AF138: =exe("DIB",AF139:AH141=Mx33Mp(AC139:AE141,matrtn(matrtn(rtnmat(1,1),2,2),3,3))) -> DIB | AI138: e | AJ138: =exe("DIB'",AJ139:AL141=Mx33Mp(AF139:AH141,ravdcm(AI139:AI141))) -> DIB' | AN138: =exe("eB",AN139:AN141=matang(AF139:AH141,AF139:AH141,AJ139:AL141)) -> eB | AO138: =exe("eL",AO139:AO141=matang(AC139:AE141,AF139:AH141,AJ139:AL141)) -> eL
B139: aI | D139: =exe("DIL･aI",D141:D143=mx31mp(G133:I135,B141:B143)) -> DIL･aI | E139: =exe("DIL^T･aI",E141:E143=mx31mp(mx33tp(G133:I135),B141:B143)) -> DIL^T･aI | G139: =exe("QIL･aI･QIL^*",G140:G143=qtqqmp(qtqqmp(J132:J135,B140:B143),qtncnj(J132:J135))) -> QIL･aI･QIL^* | H139: =exe("QIL^*･aI･QIL",H140:H143=qtqqmp(qtqqmp(qtncnj(J132:J135),B140:B143),J132:J135)) -> QIL^*･aI･QIL | AC139: -0.626035751 | AD139: 0.777512212 | AE139: -0.05961542312 | AF139: -0.581615455 | AG139: 0.8078999604 | AH139: -0.09497955844 | AI139: 1 | AJ139: -0.5346770896 | AK139: 0.8351811671 | AL139: -0.1288131514 | AN139: 1 | AO139: 0.9981115375
G140: -3.778402219e-18 | H140: -1.677781686e-17 | AC140: -0.1677457739 | AD140: -0.05961542312 | AE140: 0.9840260955 | AF140: -0.2039605834 | AG140: -0.03180183117 | AH140: 0.9784624285 | AI140: 2 | AJ140: -0.2389141076 | AK140: -0.003184649325 | AL140: 0.971035482 | AN140: 2 | AO140: 1.99750203
B141: 1 | D141: -2.947240952 | E141: 1.627060006 | G141: -2.947240952 | H141: 1.627060006 | AC141: 0.7615383075 | AD141: 0.626035751 | AE141: 0.1677457739 | AF141: 0.7874792333 | AG141: 0.5884609567 | AH141: 0.1832761838 | AI141: 3 | AJ141: 0.8105803224 | AK141: 0.5499657045 | AL141: 0.2012393222 | AN141: 3 | AO141: 3.002292291
B142: 2 | D142: 1.978561173 | E142: 1.992654774 | G142: 1.978561173 | H142: 1.992654774
B143: 3 | D143: -1.182821396 | E143: -2.716984116 | G143: -1.182821396 | H143: -2.716984116 | AD143: =exe("QIL",AD146:AD153=DcmQtn(AC139:AE141)) -> QIL | AG143: =exe("QIB",AG146:AG153=DcmQtn(AF139:AH141)) -> QIB | AK143: =exe("QIB'",AK146:AK153=qtqqmp(AG146:AG153,ravqtn(AI139:AI141))) -> QIB' | AN143: =exe("eB",AN146:AN151=qtnang(AG146:AG153,AG146:AG153,AK146:AK153)) -> eB | AO143: =exe("eL",AO146:AO151=qtnang(AD146:AD153,AG146:AG153,AK146:AK153)) -> eL
B145: 回転マトリクスによる座標系の回転表現
B146: I系で見たL系からB系への回転角 | F146: 機体座標系(B系) | J146: I系で見たL系からB系への回転マトリクス | N146: 局地座標系(L系)（上－東－北） | AD146: 0.3471651624 | AG146: 0.3774449952 | AK146: 0 | AN146: 0 | AO146: 0
B147: 回転角ベクトル | F147: DIB | J147: (DLB)^I | N147: DIL | AD147: -0.2577954122 | AG147: -0.2583167592 | AK147: 0 | AN147: 0 | AO147: 0
C148: =exe("Rav",C149:C151=matang(B133:D135,G133:I135,Q133:S135)) -> Rav | F148: =exe("XB",F149:F151=mx31mp(J149:L151,N149:N151)) -> XB | G148: =exe("YB",G149:G151=mx31mp(J149:L151,O149:O151)) -> YB | H148: =exe("ZB",H149:H151=mx31mp(J149:L151,P149:P151)) -> ZB | K148: =exe("RavDcm",J149:L151=ravdcm(C149:C151)) -> RavDcm | N148: XL | O148: YL | P148: ZL | AD148: -0.5913278604 | AG148: -0.5844949615 | AK148: 0 | AN148: 0 | AO148: 0
C149: 72.27648899 | F149: 0.008180051889 | G149: 0.8759074039 | H149: -0.4824098948 | J149: 0.3556751722 | K149: 0.8785243631 | L149: 0.3188888762 | N149: =G133 -> -0.6481026693 | O149: -0.007292051229 | P149: -0.7615180602 | AD149: -0.6806976105 | AG149: -0.6702039745 | AK149: 0
C150: 65.93302345 | F150: -0.8585373468 | G150: 0.2534930488 | H150: 0.4457071891 | I150: ＝ | J150: 0.2151577877 | K150: 0.255068772 | L150: -0.9426807773 | M150: ・ | N150: -0.004726123521 | O150: 0.9999734126 | P150: -0.005553176351 | AD150: -0.2577954122 | AG150: -0.2583167592 | AK150: -0.2584899599 | AN150: 2 | AO150: 1.99750203
C151: -35.6056042 | F151: 0.5126857819 | G151: 0.4105210032 | H151: 0.7540728048 | J151: -0.9095066235 | K151: 0.4038995729 | L151: -0.09829972899 | N151: 0.7615383075 | O151: 0 | P151: -0.6481199011 | AD151: -0.5913278604 | AG151: -0.5844949615 | AK151: -0.5766829974 | AN151: 3 | AO151: 3.002292291
B153: 方向余弦マトリクスによる座標系の回転表現 | AD153: -0.6806976105 | AG153: -0.6702039745 | AK153: -0.659374905
F154: 機体座標系(B系) | J154: 局地座標系(L系) | N154: L系で見た機体座標系(B系)
F155: DIB | J155: DIL | N155: DLB
F156: =exe("XB",F157:F159=mx31mp(J157:L159,N157:N159)) -> XB | G156: =exe("YB",G157:G159=mx31mp(J157:L159,O157:O159)) -> YB | H156: =exe("ZB",H157:H159=mx31mp(J157:L159,P157:P159)) -> ZB | J156: XL | K156: YL | L156: ZL | O156: =exe("(DIL)^T・DLB",N157:P159=Mx33Mp(mx33tp(G133:I135),Q133:S135)) -> (DIL)^T・DLB
F157: 0.008180051889 | G157: 0.8759074039 | H157: -0.4824098948 | J157: =G133 -> -0.6481026693 | K157: -0.007292051229 | L157: -0.7615180602 | N157: 0.3891859027 | O157: -0.256248496 | P157: 0.8848000008
F158: -0.8585373468 | G158: 0.2534930488 | H158: 0.4457071891 | I158: ＝ | J158: -0.004726123521 | K158: 0.9999734126 | L158: -0.005553176351 | M158: ・ | N158: -0.8585741699 | O158: 0.2470991474 | P158: 0.4492130966
F159: 0.5126857819 | G159: 0.4105210032 | H159: 0.7540728048 | J159: 0.7615383075 | K159: 0 | L159: -0.6481199011 | N159: -0.3337435062 | O159: -0.9344938307 | P159: -0.1238408349
B161: 回転角
B162: I系で見たBn系に対するB系の姿勢誤差 | I162: L系で見たBn系に対するB系の姿勢誤差 | P162: Bn系で見たBn系に対するB系の姿勢誤差
B163: (DBnB)^I | E163: (QBnB)^I | I163: (DBnB)^L | L163: (QBnB)^L | P163: (DBnB)^Bn | S163: (QBnB)^Bn
B164: =exe("DIB･DIBn^T",C165:C167=matang(B133:D135,L133:N135,Q133:S135)) -> DIB･DIBn^T | E164: =exe("QIB･QIBn^T",F165:F167=qtnang(ravqtn(vct3d(0,0,0)),O132:O135,T132:T135)) -> QIB･QIBn^T | I164: =exe("DIL^T･DIB･DIBn^T･DIL",J165:J167=matang(G133:I135,L133:N135,Q133:S135)) -> DIL^T･DIB･DIBn^T･DIL | L164: =exe("QIL^T･QIB･QIBn^T･QIL",M165:M167=qtnang(J132:J135,O132:O135,T132:T135)) -> QIL^T･QIB･QIBn^T･QIL | P164: =exe("DIBn^T･DIB･DIBn^T･DIBn",Q165:Q167=matang(L133:N135,L133:N135,Q133:S135)) -> DIBn^T･DIB･DIBn^T･DIBn | S164: =exe("QIBn^T･QIB･QIBn^T･QIBn",T165:T167=qtnang(O132:O135,O132:O135,T132:T135)) -> QIBn^T･QIB･QIBn^T･QIBn
C165: 0.3127651752 | F165: 0.3127651752 | J165: 2.531088913 | M165: 2.531088913 | Q165: 1 | T165: 1
C166: 0.9855703182 | F166: 0.9855703182 | J166: 0.9832634148 | M166: 0.9832634148 | Q166: 2 | T166: 2
C167: 3.595946203 | F167: 3.595946203 | J167: -2.574253672 | M167: -2.574253672 | Q167: 3 | T167: 3
A169: =A129+1 -> 6 | B169: 微係数
B170: 方向余弦マトリクス
B171: Da | E171: 回転角と | F171: Db | J171: Db-Da | N171: Ddot
B172: =exe("RtnMat",B173:D175=matrtn(matrtn(rtnmat(30,1),30,2),30,3)) -> RtnMat | E172: 回転軸 | F172: =exe("matrtnt",F173:H175=matrtn(B173:D175,E173,E174)) -> matrtnt | J172: 差分 | N172: 回転レート | O172: =exe("微係数",O173:Q175=drvdcm(B173:D175,N173:N175)) -> 微係数
B173: 0.75 | C173: -0.4330127019 | D173: 0.5 | E173: 0.1 | F173: 0.75 | G173: -0.4321393782 | H173: 0.5007549878 | J173: =F173-B173 -> 0 | K173: 0.0008733236988 | L173: 0.0007549878081 | N173: 0.1 | O173: 0 | P173: 0.000872664626 | Q173: 0.0007557497351
B174: 0.6495190528 | C174: 0.625 | D174: -0.4330127019 | E174: 1 | F174: 0.6495190528 | G174: 0.6242432987 | H174: -0.4341028726 | J174: 0 | K174: -0.0007567012806 | L174: -0.001090170713 | N174: 0 | O174: 0 | P174: -0.0007557497351 | Q174: -0.001090830782
B175: -0.125 | C175: 0.6495190528 | D175: 0.75 | F175: -0.125 | G175: 0.6508270598 | H175: 0.7488652337 | J175: 0 | K175: 0.001308007001 | L175: -0.001134766342 | N175: 0 | O175: 0 | P175: 0.001308996939 | Q175: -0.001133624603
B177: Da | E177: 回転角と | F177: Db | J177: Db-Da | N177: Ddot
E178: 回転軸 | F178: =exe("matrtnt",F179:H181=matrtn(B179:D181,E179,E180)) -> matrtnt | J178: 差分 | N178: 回転レート | O178: =exe("微係数",O179:Q181=drvdcm(B179:D181,N179:N181)) -> 微係数
B179: =B173 -> 0.75 | C179: -0.4330127019 | D179: 0.5 | E179: 0.1 | F179: 0.7491261935 | G179: -0.4330127019 | H179: 0.5013082347 | J179: =F179-B179 -> -0.000873806498 | K179: 0 | L179: 0.001308234731 | N179: 0 | O179: -0.000872664626 | P179: 0 | Q179: 0.001308996939
B180: 0.6495190528 | C180: 0.625 | D180: -0.4330127019 | E180: 2 | F180: 0.6502738129 | G180: 0.625 | H180: -0.4318784183 | J180: 0.0007547600776 | K180: 0 | L180: 0.001134283543 | N180: 0.1 | O180: 0.0007557497351 | P180: 0 | Q180: 0.001133624603
B181: -0.125 | C181: 0.6495190528 | D181: 0.75 | F181: -0.1263088059 | G181: 0.6495190528 | H181: 0.7497806916 | J181: -0.001308805889 | K181: 0 | L181: -0.0002193083608 | N181: 0 | O181: -0.001308996939 | P181: 0 | Q181: -0.0002181661565
B183: Da | E183: 回転角と | F183: Db | J183: Db-Da | N183: Ddot
E184: 回転軸 | F184: =exe("matrtnt",F185:H187=matrtn(B185:D187,E185,E186)) -> matrtnt | J184: 差分 | N184: 回転レート | O184: =exe("微係数",O185:Q187=drvdcm(B185:D187,N185:N187)) -> 微係数
B185: =B179 -> 0.75 | C185: -0.4330127019 | D185: 0.5 | E185: 0.1 | F185: 0.7492431083 | G185: -0.4343210387 | H185: 0.5 | J185: =F185-B185 -> -0.0007568916664 | K185: -0.001308336759 | L185: 0 | N185: 0 | O185: -0.0007557497351 | P185: -0.001308996939 | Q185: 0
B186: 0.6495190528 | C186: 0.625 | D186: -0.4330127019 | E186: 3 | F186: 0.6506088938 | G186: 0.623865424 | H186: -0.4330127019 | J186: 0.001089840955 | K186: -0.001134575956 | L186: 0 | N186: 0 | O186: 0.001090830782 | P186: -0.001133624603 | Q186: 0
B187: -0.125 | C187: 0.6495190528 | D187: 0.75 | F187: -0.1238661856 | G187: 0.6497362296 | H187: 0.75 | J187: 0.001133814413 | K187: 0.0002171767719 | L187: 0 | N187: 0.1 | O187: 0.001133624603 | P187: 0.0002181661565 | Q187: 0
B189: 四元数
B190: Qa | F190: Qb | J190: Qb-Qa | O190: Qdot
B191: =exe("DcmQtn",B192:E192=DcmQtn(B173:D175)) -> DcmQtn | F191: =exe("DcmQtn",F192:I192=DcmQtn(F173:H175)) -> DcmQtn | J191: 差分 | O191: =exe("微係数",O192:R192=drvqtn(B192:E192,N173:N175)) -> 微係数
B192: 0.8838834765 | C192: 0.3061862178 | D192: 0.1767766953 | E192: 0.3061862178 | F192: 0.8836159421 | G192: 0.306957435 | H192: 0.1770438258 | I192: 0.3060318345 | J192: =F192-B192 -> -0.0002675344052 | K192: =G192-C192 -> 0.0007712171585 | L192: =H192-D192 -> 0.0002671305358 | M192: =I192-E192 -> -0.0001543833362 | O192: -0.0002671978813 | P192: 0.0007713338434 | Q192: 0.0002671978813 | R192: -0.0001542667687
B194: Qa | F194: Qb | J194: Qb-Qa | O194: Qdot
B195: =exe("DcmQtn",B196:E196=DcmQtn(B179:D181)) -> DcmQtn | F195: =exe("DcmQtn",F196:I196=DcmQtn(F179:H181)) -> DcmQtn | J195: 差分 | O195: =exe("微係数",O196:R196=drvqtn(B196:E196,N179:N181)) -> 微係数
B196: 0.8838834765 | C196: 0.3061862178 | D196: 0.1767766953 | E196: 0.3061862178 | F196: 0.8837288732 | G196: 0.3059189034 | H196: 0.1775479617 | I196: 0.3064532991 | J196: =F196-B196 -> -0.000154603307 | K196: =G196-C196 -> -0.0002673144344 | L196: =H196-D196 -> 0.000771266434 | M196: =I196-E196 -> 0.0002670812603 | O196: -0.0001542667687 | P196: -0.0002671978813 | Q196: 0.0007713338434 | R196: 0.0002671978813
D197: 0 | F197: RtnMat | H197: 0
B198: Qa | F198: Qb | J198: Qb-Qa | O198: Qdot
B199: =exe("DcmQtn",B200:E200=DcmQtn(B185:D187)) -> DcmQtn | F199: =exe("DcmQtn",F200:I200=DcmQtn(F185:H187)) -> DcmQtn | J199: 差分 | O199: =exe("微係数",O200:R200=drvqtn(B200:E200,N185:N187)) -> 微係数
B200: 0.8838834765 | C200: 0.3061862178 | D200: 0.1767766953 | E200: 0.3061862178 | F200: 0.8836159421 | G200: 0.306340368 | H200: 0.1765094301 | I200: 0.306957435 | J200: =F200-B200 -> -0.0002675344052 | K200: =G200-C200 -> 0.000154150162 | L200: =H200-D200 -> -0.0002672651589 | M200: =I200-E200 -> 0.0007712171585 | O200: -0.0002671978813 | P200: 0.0001542667687 | Q200: -0.0002671978813 | R200: 0.0007713338434
A202: =A169+1 -> 7 | B202: 連立方程式
B203: Ｌｎｅｑｓｌの入力データ | H203: =exe("Ｌｎｅｑｓｌの結果",H205:L208=Lneqsl(B205:F208,4,5)) -> Ｌｎｅｑｓｌの結果 | N203: 解の検証
B204: X1 | C204: X2 | D204: X3 | E204: X4 | F204: Y | H204: X1 | I204: X2 | J204: X3 | K204: X4 | L204: 解 | N204: Y
B205: 3 | C205: 2 | D205: 1 | E205: 4 | F205: 10 | H205: 1 | I205: 0 | J205: 0 | K205: 0 | L205: -20 | N205: =B205*$L$205+C205*$L$206+D205*$L$207+E205*$L$208 -> 10
B206: 1 | C206: 4 | D206: 2 | E206: 3 | F206: 20 | H206: 0 | I206: 1 | J206: 0 | K206: 0 | L206: -18 | N206: =B206*$L$205+C206*$L$206+D206*$L$207+E206*$L$208 -> 20
B207: 2 | C207: 3 | D207: 4 | E207: 1 | F207: 30 | H207: 0 | I207: 0 | J207: 1 | K207: 0 | L207: 26 | N207: =B207*$L$205+C207*$L$206+D207*$L$207+E207*$L$208 -> 30
B208: 4 | C208: 1 | D208: 3 | E208: 3 | F208: 40 | H208: 0 | I208: 0 | J208: 0 | K208: 1 | L208: 20 | N208: =B208*$L$205+C208*$L$206+D208*$L$207+E208*$L$208 -> 40
B210: 逆行列の計算
B211: Ｌｎｅｑｓｌの入力データ | I211: =exe("Ｌｎｅｑｓｌの結果",I213:N215=Lneqsl(B213:G215,3,6)) -> Ｌｎｅｑｓｌの結果 | P211: =exe("Mx33Iv(元の行列)",P213:R215=mx33iv(B213:D215)) -> Mx33Iv(元の行列)
B212: 元の行列 | L212: 逆行列 | P212: 逆行列
B213: 0.7631331092 | C213: -0.5147397817 | D213: 0.3907311285 | E213: 1 | F213: 0 | G213: 0 | I213: 1 | J213: 0 | K213: 0 | L213: 0.7631331092 | M213: 0.6143221944 | N213: -0.2005893794 | P213: 0.7631331092 | Q213: 0.6143221944 | R213: -0.2005893794
B214: 0.6143221944 | C214: 0.7654936401 | D214: -0.1913837205 | E214: 0 | F214: 1 | G214: 0 | I214: 0 | J214: 1 | K214: 0 | L214: -0.5147397817 | M214: 0.7654936401 | N214: 0.3860860579 | P214: -0.5147397817 | Q214: 0.7654936401 | R214: 0.3860860579
B215: -0.2005893794 | C215: 0.3860860579 | D215: 0.9003896139 | E215: 0 | F215: 0 | G215: 1 | I215: 0 | J215: 0 | K215: 1 | L215: 0.3907311285 | M215: -0.1913837205 | N215: 0.9003896139 | P215: 0.3907311285 | Q215: -0.1913837205 | R215: 0.9003896139
A217: =A202+1 -> 8 | B217: 多項式近似 ： 戻り値格納範囲＝ＬｓｑＰｏｌ（独立変数列範囲、従属変数行列範囲、次数） （次数を指定しないと、最良次数の多項式を求める）
D218: 戻り値格納範囲：先頭が次数、２番目以降が係数格納領域で、最良次数を自動決定するのでなければ、先頭に次数を設定しておく
D219: 従属変数行列範囲：従属変数の数は任意で、範囲指定された列数から認識する
D220: ３番目の引数を省略すると最良次数を決定し、戻り値格納範囲の先頭に設定する
C221: 生データ計算用 | E221: 次数/近似多項式 | G221: 近似データ | I221: 残差 | K221: 次数 | L221: 近似 | M221: 残差 | N221: 次数 | O221: 近似 | P221: 残差 | Q221: 次数 | R221: 近似 | S221: 残差
B222: X | C222: Y1 | D222: Y2 | E222: =exe("Y1係数",E224:F253=LsqPol(B223:B253,C223:D253,E223)) -> Y1係数 | F222: Y2係数 | G222: Y1 | H222: Y2 | I222: Y1 | J222: Y2 | K222: =exe("Y1係数",K224:K253=LsqPol(B223:B253,C223:C253,K223)) -> Y1係数 | L222: Y1 | M222: Y1 | N222: =exe("Y1係数",N224:N253=LsqPol(B223:B253,C223:C253,N223)) -> Y1係数 | O222: Y1 | P222: Y1 | Q222: =exe("Y1係数",Q223:Q253=Lsqbep(B223:B253,C223:C253)) -> Y1係数 | R222: Y1 | S222: Y1
B223: 0 | C223: =B223+stdrnd()/5+SIN(B223) -> -0.2257759776 | D223: =B223+stdrnd()/5+COS(B223) -> 0.8440913688 | E223: 1 | G223: =spolyex(E$224:E$253,$E$223,$B223) -> 0.4726026263 | H223: 1.088859386 | I223: =G223-C223 -> 0.6983786039 | J223: 0.2447680168 | K223: 2 | L223: =spolyex(K$224:K$253,$K$223,$B223) -> -0.1800515115 | M223: =L223-C223 -> 0.04572446608 | N223: 3 | O223: =spolyex(N$224:N$253,$N$223,$B223) -> -0.08979240979 | P223: =O223-C223 -> 0.1359835678 | Q223: 11 | R223: =spolyex(Q$224:Q$253,$Q$223,$B223) -> -0.2712485158 | S223: =R223-C223 -> -0.04547253815
... 282 more rows

Sheet SSSLIB検証(その2)
A1: 関数ライブラリ（ＳＳＳＬＩＢ）の検証（その２） | F1: スクリプトによる計算式は、黄色のセルに入力されている。
A3: 1 | B3: 地球楕円体モデルの変換
F4: C-7系からWGS84系へ
B5: C-7系データ | F5: =exe("Cd7Wgs",F9:K9=cd7Wgs(B9:D9,B14:D14)) -> Cd7Wgs
B6: 位置 r | F6: 位置 r | I6: 速度 v
B7: x | C7: y | D7: z | F7: x | G7: y | H7: z | I7: Vx | J7: Vy | K7: Vz
B8: [m] | C8: [m] | D8: [m] | E8: → | F8: [m] | G8: [m] | H8: [m] | I8: [m/s] | J8: [m/s] | K8: [m/s]
B9: -4826194.842 | C9: 3692236.113 | D9: 2768681.871 | F9: -4826205.85 | G9: 3692229.986 | H9: 2768670.997 | I9: -4991.119663 | J9: -2741.637061 | K9: -5107.825045
B11: 速度 v | F11: WGS84系からC-7系へ
B12: Vx | C12: Vy | D12: Vz | F12: =exe("WgsCd7",F16:K16=WgsCd7(F9:H9,I9:K9)) -> WgsCd7
B13: [m/s] | C13: [m/s] | D13: [m/s] | E13: ← | F13: 位置 r | I13: 速度 v
B14: -4991.125897 | C14: -2741.623035 | D14: -5107.823889 | F14: x | G14: y | H14: z | I14: Vx | J14: Vy | K14: Vz
F15: [m] | G15: [m] | H15: [m] | I15: [m/s] | J15: [m/s] | K15: [m/s]
F16: -4826194.842 | G16: 3692236.113 | H16: 2768681.871 | I16: -4991.125897 | J16: -2741.623035 | K16: -5107.823889
E17: 誤差 | F17: =F16-B9 -> 0 | G17: =G16-C9 -> 0 | H17: =H16-D9 -> 0 | I17: =I16-B14 -> 0 | J17: =J16-C14 -> 0 | K17: =K16-D14 -> 0
B19: レーダ局
B20: C-7 | F20: =exe("WGS",G22:G24=cd7Wgs(E22:E24,vct3d(0,0,0))) -> WGS | J20: =exe("C-7",K22:K24=WgsCd7(G22:G24,vct3d(0,0,0))) -> C-7 | N20: 誤差
B21: 地理 | D21: =exe("カルテシアン",E22:E24=geoCar(C22,C23,C24)) -> カルテシアン | F21: カルテシアン | H21: =exe("地理",I22:I24=cargeo(G22:G24)) -> 地理 | J21: カルテシアン | L21: =exe("地理",M22:M24=cargeo(K22:K24)) -> 地理 | N21: 地理 | P21: カルテシアン
B22: 測地緯度 | C22: 30.55533 | D22: x | E22: -3607820.92 | F22: x | G22: -3607832.876 | H22: 測地緯度 | I22: 30.55522372 | J22: x | K22: -3607820.92 | L22: 測地緯度 | M22: 30.55533385 | N22: 測地緯度 | O22: =M22-C22 -> 3.852490764e-06 | P22: x | Q22: =K22-E22 -> 0
B23: 経度 | C23: 131.01708 | D23: y | E23: 4147825.303 | F23: y | G23: 4147822.552 | H23: 経度 | I23: 131.0171928 | J23: y | K23: 4147825.303 | L23: 経度 | M23: 131.01708 | N23: 経度 | O23: =M23-C23 -> -7.105427358e-13 | P23: y | Q23: =K23-E23 -> 0
B24: 高度 | C24: 145.484 | D24: z | E24: 3223614.587 | F24: z | G24: 3223603.816 | H24: 高度 | I24: 144.9782735 | J24: z | K24: 3223614.587 | L24: 高度 | M24: 145.4846269 | N24: 高度 | O24: =M24-C24 -> 0.0006269196756 | P24: z | Q24: =K24-E24 -> 0
B26: WGS | F26: =exe("C-7",G28:G30=WgsCd7(E28:E30,vct3d(0,0,0))) -> C-7 | J26: =exe("WGS",K28:K30=cd7Wgs(G28:G30,vct3d(0,0,0))) -> WGS | N26: 誤差
B27: 地理 | D27: =exe("カルテシアン",E28:E30=geoCar(C28,C29,C30)) -> カルテシアン | F27: カルテシアン | H27: =exe("地理",I28:I30=cargeo(G28:G30)) -> 地理 | J27: カルテシアン | L27: =exe("地理",M28:M30=cargeo(K28:K30)) -> 地理 | N27: 地理 | P27: カルテシアン
B28: 測地緯度 | C28: =I22 -> 30.55522372 | D28: x | E28: -3607832.734 | F28: x | G28: -3607820.779 | H28: 測地緯度 | I28: 30.55533769 | J28: x | K28: -3607832.734 | L28: 測地緯度 | M28: 30.55522756 | N28: 測地緯度 | O28: =M28-C28 -> 3.839091345e-06 | P28: x | Q28: =K28-E28 -> 0
B29: 経度 | C29: =I23 -> 131.0171928 | D29: y | E29: 4147822.389 | F29: y | G29: 4147825.14 | H29: 経度 | I29: 131.01708 | J29: y | K29: 4147822.389 | L29: 経度 | M29: 131.0171928 | N29: 経度 | O29: =M29-C29 -> -7.389644452e-13 | P29: y | Q29: =K29-E29 -> 0
B30: 高度 | C30: =I24 -> 144.9782735 | D30: z | E30: 3223604.183 | F30: z | G30: 3223614.953 | H30: 高度 | I30: 145.4852525 | J30: z | K30: 3223604.183 | L30: 高度 | M30: 144.9788982 | N30: 高度 | O30: =M30-C30 -> 0.0006247382846 | P30: z | Q30: =K30-E30 -> 0
A32: =A3+1 -> 2 | B32: 測地線
B33: 第1地点 | C33: 測地緯度 | D33: 7.512 | E33: 度 | F33: 第1地点 | G33: 測地緯度 | H33: 0 | I33: 度 | J33: 第1地点 | K33: 測地緯度 | L33: 0 | M33: 度 | N33: 第1地点 | O33: 測地緯度 | P33: 0 | Q33: 度 | R33: 第1地点 | S33: 測地緯度 | T33: 30 | U33: 度 | V33: 第1地点 | W33: 測地緯度 | X33: 30 | Y33: 度 | Z33: 第1地点 | AA33: 測地緯度 | AB33: 30 | AC33: 度 | AD33: 第1地点 | AE33: 測地緯度 | AF33: 90 | AG33: 度 | AH33: 第1地点 | AI33: 測地緯度 | AJ33: 90 | AK33: 度
C34: 経度 | D34: 155.27 | E34: 度 | G34: 経度 | H34: 0 | I34: 度 | K34: 経度 | L34: 0 | M34: 度 | O34: 経度 | P34: 0 | Q34: 度 | S34: 経度 | T34: 0 | U34: 度 | W34: 経度 | X34: 0 | Y34: 度 | AA34: 経度 | AB34: 0 | AC34: 度 | AE34: 経度 | AF34: 0 | AG34: 度 | AI34: 経度 | AJ34: 0 | AK34: 度
B35: 第2地点 | C35: 測地緯度 | D35: 10.32 | E35: 度 | F35: 第2地点 | G35: 測地緯度 | H35: 0 | I35: 度 | J35: 第2地点 | K35: 測地緯度 | L35: 0 | M35: 度 | N35: 第2地点 | O35: 測地緯度 | P35: 0 | Q35: 度 | R35: 第2地点 | S35: 測地緯度 | T35: -30 | U35: 度 | V35: 第2地点 | W35: 測地緯度 | X35: 30 | Y35: 度 | Z35: 第2地点 | AA35: 測地緯度 | AB35: -30 | AC35: 度 | AD35: 第2地点 | AE35: 測地緯度 | AF35: -90 | AG35: 度 | AH35: 第2地点 | AI35: 測地緯度 | AJ35: 90 | AK35: 度
C36: 経度 | D36: 153.4073 | E36: 度 | G36: 経度 | H36: 179 | I36: 度 | K36: 経度 | L36: 180 | M36: 度 | O36: 経度 | P36: 181 | Q36: 度 | S36: 経度 | T36: 180 | U36: 度 | W36: 経度 | X36: 180 | Y36: 度 | AA36: 経度 | AB36: 0 | AC36: 度 | AE36: 経度 | AF36: 180 | AG36: 度 | AI36: 経度 | AJ36: 180 | AK36: 度
B37: ダウンレンジ（測地線） | D37: =GeoDes(D33,D34,D35,D36) -> 372039.8445 | E37: [m] | F37: ダウンレンジ（測地線） | H37: =GeoDes(H33,H34,H35,H36) -> 19926204.47 | I37: [m] | J37: ダウンレンジ（測地線） | L37: =GeoDes(L33,L34,L35,L36) -> 20037524.05 | M37: [m] | N37: ダウンレンジ（測地線） | P37: =GeoDes(P33,P34,P35,P36) -> 20148843.63 | Q37: [m] | R37: ダウンレンジ（測地線） | T37: =GeoDes(T33,T34,T35,T36) -> 20029169.3 | U37: [m] | V37: ダウンレンジ（測地線） | X37: =GeoDes(X33,X34,X35,X36) -> 13363715.18 | Y37: [m] | Z37: ダウンレンジ（測地線） | AB37: =GeoDes(AB33,AB34,AB35,AB36) -> 6640231.711 | AC37: [m] | AD37: ダウンレンジ（測地線） | AF37: =GeoDes(AF33,AF34,AF35,AF36) -> 20003946.89 | AG37: [m] | AH37: ダウンレンジ（測地線） | AJ37: =GeoDes(AJ33,AJ34,AJ35,AJ36) -> 1.116214172e-07 | AK37: [m]
B38: =exe("第1地心半径",C38:E38=geoCar(D33,D34,0)) -> 第1地心半径 | C38: -5743806.362 | D38: 2645500.317 | E38: 828304.2879 | F38: =exe("第1地心半径",G38:I38=geoCar(H33,H34,0)) -> 第1地心半径 | G38: 6378142 | H38: 0 | I38: 0 | J38: =exe("第1地心半径",K38:M38=geoCar(L33,L34,0)) -> 第1地心半径 | K38: 6378142 | L38: 0 | M38: 0 | N38: =exe("第1地心半径",O38:Q38=geoCar(P33,P34,0)) -> 第1地心半径 | O38: 6378142 | P38: 0 | Q38: 0 | R38: =exe("第1地心半径",S38:U38=geoCar(T33,T34,0)) -> 第1地心半径 | S38: 5528261.008 | T38: 0 | U38: 3170376.081 | V38: =exe("第1地心半径",W38:Y38=geoCar(X33,X34,0)) -> 第1地心半径 | W38: 5528261.008 | X38: 0 | Y38: 3170376.081 | Z38: =exe("第1地心半径",AA38:AC38=geoCar(AB33,AB34,0)) -> 第1地心半径 | AA38: 5528261.008 | AB38: 0 | AC38: 3170376.081 | AD38: =exe("第1地心半径",AE38:AG38=geoCar(AF33,AF34,0)) -> 第1地心半径 | AE38: 5.58107086e-08 | AF38: 0 | AG38: 6356757.138 | AH38: =exe("第1地心半径",AI38:AK38=geoCar(AJ33,AJ34,0)) -> 第1地心半径 | AI38: 5.58107086e-08 | AJ38: 0 | AK38: 6356757.138
B39: =exe("第2地心半径",C39:E39=geoCar(D35,D36,0)) -> 第2地心半径 | C39: -5611742.879 | D39: 2809257.281 | E39: 1135089.138 | F39: =exe("第2地心半径",G39:I39=geoCar(H35,H36,0)) -> 第2地心半径 | G39: -6377170.578 | H39: 111313.9265 | I39: 0 | J39: =exe("第2地心半径",K39:M39=geoCar(L35,L36,0)) -> 第2地心半径 | K39: -6378142 | L39: 1.112471689e-07 | M39: 0 | N39: =exe("第2地心半径",O39:Q39=geoCar(P35,P36,0)) -> 第2地心半径 | O39: -6377170.578 | P39: -111313.9265 | Q39: 0 | R39: =exe("第2地心半径",S39:U39=geoCar(T35,T36,0)) -> 第2地心半径 | S39: -5528261.008 | T39: 9.64235958e-08 | U39: -3170376.081 | V39: =exe("第2地心半径",W39:Y39=geoCar(X35,X36,0)) -> 第2地心半径 | W39: -5528261.008 | X39: 9.64235958e-08 | Y39: 3170376.081 | Z39: =exe("第2地心半径",AA39:AC39=geoCar(AB35,AB36,0)) -> 第2地心半径 | AA39: 5528261.008 | AB39: 0 | AC39: -3170376.081 | AD39: =exe("第2地心半径",AE39:AG39=geoCar(AF35,AF36,0)) -> 第2地心半径 | AE39: -5.58107086e-08 | AF39: 9.734470206e-22 | AG39: -6356757.138 | AH39: =exe("第2地心半径",AI39:AK39=geoCar(AJ35,AJ36,0)) -> 第2地心半径 | AI39: -5.58107086e-08 | AJ39: 9.734470206e-22 | AK39: 6356757.138
B40: ダウンレンジ（地心半径） | D40: =0.5*(SQRT(SUMSQ(C38:E38))+SQRT(SUMSQ(C39:E39)))*ACOS(SUMPRODUCT(C38:E38,C39:E39)/SQRT(SUMSQ(C38:E38))/SQRT(SUMSQ(C39:E39))) -> 372039.2409 | E40: [m] | F40: ダウンレンジ（地心半径） | H40: =0.5*(SQRT(SUMSQ(G38:I38))+SQRT(SUMSQ(G39:I39)))*ACOS(SUMPRODUCT(G38:I38,G39:I39)/SQRT(SUMSQ(G38:I38))/SQRT(SUMSQ(G39:I39))) -> 19926204.47 | I40: [m] | J40: ダウンレンジ（地心半径） | L40: =0.5*(SQRT(SUMSQ(K38:M38))+SQRT(SUMSQ(K39:M39)))*ACOS(SUMPRODUCT(K38:M38,K39:M39)/SQRT(SUMSQ(K38:M38))/SQRT(SUMSQ(K39:M39))) -> 20037524.05 | M40: [m] | N40: ダウンレンジ（地心半径） | P40: =0.5*(SQRT(SUMSQ(O38:Q38))+SQRT(SUMSQ(O39:Q39)))*ACOS(SUMPRODUCT(O38:Q38,O39:Q39)/SQRT(SUMSQ(O38:Q38))/SQRT(SUMSQ(O39:Q39))) -> 19926204.47 | Q40: [m] | R40: ダウンレンジ（地心半径） | T40: =0.5*(SQRT(SUMSQ(S38:U38))+SQRT(SUMSQ(S39:U39)))*ACOS(SUMPRODUCT(S38:U38,S39:U39)/SQRT(SUMSQ(S38:U38))/SQRT(SUMSQ(S39:U39))) -> 20020833.95 | U40: [m] | V40: ダウンレンジ（地心半径） | X40: =0.5*(SQRT(SUMSQ(W38:Y38))+SQRT(SUMSQ(W39:Y39)))*ACOS(SUMPRODUCT(W38:Y38,W39:Y39)/SQRT(SUMSQ(W38:Y38))/SQRT(SUMSQ(W39:Y39))) -> 13384231.24 | Y40: [m] | Z40: ダウンレンジ（地心半径） | AB40: =0.5*(SQRT(SUMSQ(AA38:AC38))+SQRT(SUMSQ(AA39:AC39)))*ACOS(SUMPRODUCT(AA38:AC38,AA39:AC39)/SQRT(SUMSQ(AA38:AC38))/SQRT(SUMSQ(AA39:AC39))) -> 6636602.71 | AC40: [m] | AD40: ダウンレンジ（地心半径） | AF40: =0.5*(SQRT(SUMSQ(AE38:AG38))+SQRT(SUMSQ(AE39:AG39)))*ACOS(SUMPRODUCT(AE38:AG38,AE39:AG39)/SQRT(SUMSQ(AE38:AG38))/SQRT(SUMSQ(AE39:AG39))) -> 19970341.53 | AG40: [m] | AH40: ダウンレンジ（地心半径） | AJ40: =0.5*(SQRT(SUMSQ(AI38:AK38))+SQRT(SUMSQ(AI39:AK39)))*ACOS(SUMPRODUCT(AI38:AK38,AI39:AK39)/SQRT(SUMSQ(AI38:AK38))/SQRT(SUMSQ(AI39:AK39))) -> 0 | AK40: [m]
C41: 差 | D41: =D40-D37 -> -0.6035848295 | E41: [m] | G41: 差 | H41: =H40-H37 -> 8.594244719e-06 | I41: [m] | K41: 差 | L41: =L40-L37 -> 8.709728718e-06 | M41: [m] | O41: 差 | P41: =P40-P37 -> -222639.1561 | Q41: [m] | S41: 差 | T41: =T40-T37 -> -8335.346983 | U41: [m] | W41: 差 | X41: =X40-X37 -> 20516.06364 | Y41: [m] | AA41: 差 | AB41: =AB40-AB37 -> -3629.00103 | AC41: [m] | AE41: 差 | AF41: =AF40-AF37 -> -33605.36448 | AG41: [m] | AI41: 差 | AJ41: =AJ40-AJ37 -> -1.116214172e-07 | AK41: [m]
A43: =A32+1 -> 3 | B43: 飛行パラメータ、ケプラー軌道要素
B44: （UTC） 発射日時 | C44: 2009 | D44: 年
C45: 9 | D45: 月
C46: 10 | D46: 日 | F46: =exe("発射日時の設定",setTime(C44:C46,C47:C49)) -> 発射日時の設定
C47: 17 | D47: 時
C48: 1 | D48: 分
C49: 46.4 | D49: 秒
B51: LO後秒時 | D51: 位置 r | G51: 速度 v | J51: 機体姿勢 四元数 Qib | N51: =exe("機体姿勢 方向余弦マトリクス Dib",N54:V54=QtnDcm(J54:M54)) -> 機体姿勢 方向余弦マトリクス Dib
B52: t | D52: x | E52: y | F52: z | G52: Vx | H52: Vy | I52: Vz | J52: q0 | K52: q1 | L52: q2 | M52: q3 | N52: Xbx | O52: Xby | P52: Xbz | Q52: Ybx | R52: Yby | S52: Ybz | T52: Zbx | U52: Zby | V52: Zbz
B53: [s] | D53: [m] | E53: [m] | F53: [m] | G53: [m/s] | H53: [m/s] | I53: [m/s] | J53: [ND] | K53: [ND] | L53: [ND] | M53: [ND] | N53: [ND] | O53: [ND] | P53: [ND] | Q53: [ND] | R53: [ND] | S53: [ND] | T53: [ND] | U53: [ND] | V53: [ND]
B54: 865.3 | D54: -6206573.293 | E54: 2339855.535 | F54: 668525.4029 | G54: -2227.538897 | H54: -4294.171938 | I54: -6002.733642 | J54: 0.01915770954 | K54: -0.219424282 | L54: -0.1179239688 | M54: 0.968287098 | N54: -0.9029719333 | O54: 0.0888510903 | P54: -0.4204130962 | Q54: 0.0146504384 | R54: -0.9714538395 | S54: -0.2367758483 | T54: -0.4294497088 | U54: -0.2199611817 | V54: 0.8758938441
L56: =exe("射点データの設定",L60:O60=lchpad(2)) -> 射点データの設定
D57: 慣性座標系識別コード | F57: 1 | G57: ND | L57: 高度 | M57: 測地緯度 | N57: 経度 | O57: 射点方位角
D58: 慣性座標系Ｘ軸 0：射点子午線基準、 1：グリニッジ子午線基準、 2：平均春分点基準 | L58: h | M58: φL | N58: λL | O58: μL
L59: [m] | M59: [度] | N59: [度] | O59: [度]
D60: =exe("慣性座標系基準の設定",setref(F57,0)) -> 慣性座標系基準の設定 | L60: 93.958 | M60: 30.40104008 | N60: 130.9754578 | O60: 125
B62: 飛行パラメータ | D62: =exe("GeoPos(t、SarVar（r、v、Qib）)",D66:O66=geopos(B54,stavar(D54:F54,G54:I54,J54:M54))) -> GeoPos(t、SarVar（r、v、Qib）) | P62: ここより下のセルで射点データや座標系が変更されていると、左のGeoPos()計算式がダブルクリックなどで再計算されたときに正しく計算されない。
D63: 地心半径 | E63: 地心緯度 | F63: 慣性基準 からの経度 | G63: 高度 | H63: 測地緯度 | I63: 経度 | J63: 慣性速度 | K63: 慣性速度 上下角 | L63: 慣性速度 方位角 | M63: 機軸上下角 | N63: 機軸方位角 | O63: バンク角
D64: Ri | E64: Vltc | F64: Vlni | G64: Alt | H64: Vlat | I64: Vlng | J64: Vi | K64: Fpvi | L64: Azvi | M64: Atli | N64: Amis | O64: Rlat
D65: [m] | E65: [度] | F65: [度] | G65: [m] | H65: [度] | I65: [度] | J65: [m/s] | K65: [度] | L65: [度] | M65: [度] | N65: [度] | O65: [度]
D66: 6666588.496 | E66: 5.755293554 | F66: 159.3437397 | G66: 288662.6195 | H66: 5.793818622 | I66: 155.7284517 | J66: 7709.387352 | K66: -0.2623575507 | L66: 141.4549066 | M66: 33.93306936 | N66: 155.0590934 | O66: 137.330497
J67: 検証 | K67: 誤差 | L67: LOG（割合）
D68: 地心半径＝位置ベクトルの絶対値＝ | J68: =SQRT(SUMSQ(D54:F54)) -> 6666588.496 | K68: =J68-D66 -> 0 | L68: =IF(K68/J68=0,0,IF(LOG(ABS(K68/J68))>0,ROUNDUP(LOG(ABS(K68/J68))+0.00000000000001,0),ROUNDUP(LOG(ABS(K68/J68)),0))) -> 0
D69: 地心緯度＝Z軸と赤道投影線との角＝ | J69: =DEGREES(ATAN2(SQRT(D54^2+E54^2),F54)) -> 5.755293554 | K69: =J69-E66 -> 0 | L69: =IF(K69/J69=0,0,IF(LOG(ABS(K69/J69))>0,ROUNDUP(LOG(ABS(K69/J69))+0.00000000000001,0),ROUNDUP(LOG(ABS(K69/J69)),0))) -> 0 | N69: R | O69: =D54/SQRT(SUMSQ($D54:$F54)) -> -0.9309969104 | P69: =E54/SQRT(SUMSQ($D54:$F54)) -> 0.3509824457 | Q69: =F54/SQRT(SUMSQ($D54:$F54)) -> 0.1002799863
D70: 慣性基準からの経度＝X軸とY軸との角＝ | J70: =DEGREES(ATAN2(D54,E54)) -> 159.3437397 | K70: =J70-F66 -> 0 | L70: 0 | N70: T | O70: =E54/SQRT(SUMSQ($D54:$F54))*(G54*E54-H54*D54)/SQRT((H54*F54-I54*E54)^2+(I54*D54-G54*F54)^2+(G54*E54-H54*D54)^2)-F54/SQRT(SUMSQ($D54:$F54))*(I54*D54-G54*F54)/SQRT((H54*F54-I54*E54)^2+(I54*D54-G54*F54)^2+(G54*E54-H54*D54)^2) -> -0.293204607 | P70: =F54/SQRT(SUMSQ($D54:$F54))*(H54*F54-I54*E54)/SQRT((H54*F54-I54*E54)^2+(I54*D54-G54*F54)^2+(G54*E54-H54*D54)^2)-D54/SQRT(SUMSQ($D54:$F54))*(G54*E54-H54*D54)/SQRT((H54*F54-I54*E54)^2+(I54*D54-G54*F54)^2+(G54*E54-H54*D54)^2) -> -0.5554042799 | Q70: =D54/SQRT(SUMSQ($D54:$F54))*(I54*D54-G54*F54)/SQRT((H54*F54-I54*E54)^2+(I54*D54-G54*F54)^2+(G54*E54-H54*D54)^2)-(H54*F54-I54*E54)/SQRT((H54*F54-I54*E54)^2+(I54*D54-G54*F54)^2+(G54*E54-H54*D54)^2)*E54/SQRT(SUMSQ($D54:$F54)) -> -0.7781755228
D71: 高度＝ | J71: =SQRT((SQRT(D54^2+E54^2)-rer()/SQRT(1-er()^2*sind(J72)^2)*cosd(J72))^2+(F54-rer()/SQRT(1-er()^2*sind(J72)^2)*sind(J72)*(1-er()^2))^2) -> 288662.6195 | K71: =J71-G66 -> 0 | L71: 0 | N71: N | O71: =(H54*F54-I54*E54)/SQRT((H54*F54-I54*E54)^2+(I54*D54-G54*F54)^2+(G54*E54-H54*D54)^2) -> 0.2174300146 | P71: =(I54*D54-G54*F54)/SQRT((H54*F54-I54*E54)^2+(I54*D54-G54*F54)^2+(G54*E54-H54*D54)^2) -> 0.7538815615 | Q71: =(G54*E54-H54*D54)/SQRT((H54*F54-I54*E54)^2+(I54*D54-G54*F54)^2+(G54*E54-H54*D54)^2) -> -0.6199893387
D72: 測地緯度＝ | J72: =DEGREES(ATAN2((1-er()^2)*SQRT(D54^2+E54^2),F54)) -> 5.793818622 | K72: =J72-H66 -> 0 | L72: 0
D73: 経度＝グリニッジから慣性基準までの経度（ゼロ）＋慣性基準からの経度－自転角＝ | J73: =F66-wer()*B54 -> 155.7284517 | K73: =J73-I66 -> 0 | L73: 0
D74: 慣性速度＝速度ベクトルの絶対値＝ | J74: =SQRT(SUMSQ(G54:I54)) -> 7709.387352 | K74: =J74-J66 -> 0 | L74: 0
D75: 慣性速度上下角＝地心半径ベクトル垂直面と速度ベクトルとの成す角＝ | J75: =DEGREES(ATAN2(G54*O70+H54*P70+I54*Q70,G54*O69+H54*P69+I54*Q69)) -> -0.2623575507 | K75: =J75-K66 -> 5.551115123e-16 | L75: -15
D76: 慣性速度方位角＝位置ベクトル垂直面投影速度を北から東回りに測った角＝ | J76: =DEGREES(ATAN2(E54*(E54*I54-F54*H54)-D54*(F54*G54-D54*I54),SQRT(SUMSQ(D54:F54))*(D54*H54-E54*G54))) -> 141.4549066 | K76: =J76-L66 -> 0 | L76: 0
D77: 機軸上下角＝位置ベクトル垂直面と機体ｘＢ軸との成す角＝ | J77: =DEGREES(ACOS(N54*O69+O54*P69+P54*Q69)) -> 33.93306936 | K77: =J77-M66 -> 0 | L77: 0
D78: 機軸方位角＝位置ベクトル垂直面投影の機体ｘＢ軸を北から東回りに測った角＝ | J78: =DEGREES(ATAN2(P69*(P69*P54-Q69*O54)-O69*(Q69*N54-O69*P54),(O69*O54-P69*N54))) -> 155.0590934 | K78: =J78-N66 -> 0 | L78: 0
D79: バンク角＝機体ｘＢ軸垂直面投影位置ベクトルをｙＢ軸から時計回りに測った角＝ | J79: =DEGREES(ATAN2(-(O69*T54+P69*U54+Q69*V54),-(O69*Q54+P69*R54+Q69*S54))) -> 137.330497 | K79: =J79-O66 -> 0 | L79: 0
B81: 飛行パラメータ（その１） | D81: =exe("GeoPos(t、SarVar（r、v、Qib）)、SetRef()、SetPad()",D85:O85=geopos(B54,stavar(D54:F54,G54:I54,J54:M54)), setref(F57,0), setpad(L60,M60,N60,O60)) -> GeoPos(t、SarVar（r、v、Qib）)、SetRef()、SetPad() | P81: 上記の問題が起きないようにGeoPos()の前に必ずSetPad()及びSetRef()が実行されるよう、一緒のセルに式を入れておく。実行順序は後ろの式から実行される。
D82: 地心半径 | E82: 地心緯度 | F82: 慣性基準 からの経度 | G82: 高度 | H82: 測地緯度 | I82: 経度 | J82: 慣性速度 | K82: 慣性速度 上下角 | L82: 慣性速度 方位角 | M82: 機軸上下角 | N82: 機軸方位角 | O82: バンク角
D83: Ri | E83: Vltc | F83: Vlni | G83: Alt | H83: Vlat | I83: Vlng | J83: Vi | K83: Fpvi | L83: Azvi | M83: Atli | N83: Amis | O83: Rlat
D84: [m] | E84: [度] | F84: [度] | G84: [m] | H84: [度] | I84: [度] | J84: [m/s] | K84: [度] | L84: [度] | M84: [度] | N84: [度] | O84: [度]
D85: 6666588.496 | E85: 5.755293554 | F85: 159.3437397 | G85: 288662.6195 | H85: 5.793818622 | I85: 155.7284517 | J85: 7709.387352 | K85: -0.2623575507 | L85: 141.4549066 | M85: 33.93306936 | N85: 155.0590934 | O85: 137.330497
J86: 検証 | K86: 誤差 | L86: LOG（割合）
D87: 地心半径＝位置ベクトルの絶対値＝ | J87: =SQRT(SUMSQ(D54:F54)) -> 6666588.496 | K87: =J87-D85 -> 0 | L87: =IF(K87/J87=0,0,IF(LOG(ABS(K87/J87))>0,ROUNDUP(LOG(ABS(K87/J87))+0.00000000000001,0),ROUNDUP(LOG(ABS(K87/J87)),0))) -> 0
D88: 地心緯度＝Z軸と赤道投影線との角＝ | J88: =DEGREES(ATAN2(SQRT(D54^2+E54^2),F54)) -> 5.755293554 | K88: =J88-E85 -> 0 | L88: =IF(K88/J88=0,0,IF(LOG(ABS(K88/J88))>0,ROUNDUP(LOG(ABS(K88/J88))+0.00000000000001,0),ROUNDUP(LOG(ABS(K88/J88)),0))) -> 0 | N88: R | O88: =D54/SQRT(SUMSQ($D54:$F54)) -> -0.9309969104 | P88: =E54/SQRT(SUMSQ($D54:$F54)) -> 0.3509824457 | Q88: =F54/SQRT(SUMSQ($D54:$F54)) -> 0.1002799863
D89: 慣性基準からの経度＝X軸とY軸との角＝ | J89: =DEGREES(ATAN2(D54,E54)) -> 159.3437397 | K89: =J89-F85 -> 0 | L89: 0 | N89: T | O89: =E54/SQRT(SUMSQ($D54:$F54))*(G54*E54-H54*D54)/SQRT((H54*F54-I54*E54)^2+(I54*D54-G54*F54)^2+(G54*E54-H54*D54)^2)-F54/SQRT(SUMSQ($D54:$F54))*(I54*D54-G54*F54)/SQRT((H54*F54-I54*E54)^2+(I54*D54-G54*F54)^2+(G54*E54-H54*D54)^2) -> -0.293204607 | P89: =F54/SQRT(SUMSQ($D54:$F54))*(H54*F54-I54*E54)/SQRT((H54*F54-I54*E54)^2+(I54*D54-G54*F54)^2+(G54*E54-H54*D54)^2)-D54/SQRT(SUMSQ($D54:$F54))*(G54*E54-H54*D54)/SQRT((H54*F54-I54*E54)^2+(I54*D54-G54*F54)^2+(G54*E54-H54*D54)^2) -> -0.5554042799 | Q89: =D54/SQRT(SUMSQ($D54:$F54))*(I54*D54-G54*F54)/SQRT((H54*F54-I54*E54)^2+(I54*D54-G54*F54)^2+(G54*E54-H54*D54)^2)-(H54*F54-I54*E54)/SQRT((H54*F54-I54*E54)^2+(I54*D54-G54*F54)^2+(G54*E54-H54*D54)^2)*E54/SQRT(SUMSQ($D54:$F54)) -> -0.7781755228
D90: 高度＝ | J90: =SQRT((SQRT(D54^2+E54^2)-rer()/SQRT(1-er()^2*sind(J72)^2)*cosd(J72))^2+(F54-rer()/SQRT(1-er()^2*sind(J72)^2)*sind(J72)*(1-er()^2))^2) -> 288662.6195 | K90: =J90-G85 -> 0 | L90: 0 | N90: N | O90: =(H54*F54-I54*E54)/SQRT((H54*F54-I54*E54)^2+(I54*D54-G54*F54)^2+(G54*E54-H54*D54)^2) -> 0.2174300146 | P90: =(I54*D54-G54*F54)/SQRT((H54*F54-I54*E54)^2+(I54*D54-G54*F54)^2+(G54*E54-H54*D54)^2) -> 0.7538815615 | Q90: =(G54*E54-H54*D54)/SQRT((H54*F54-I54*E54)^2+(I54*D54-G54*F54)^2+(G54*E54-H54*D54)^2) -> -0.6199893387
D91: 測地緯度＝ | J91: =DEGREES(ATAN2((1-er()^2)*SQRT(D54^2+E54^2),F54)) -> 5.793818622 | K91: =J91-H85 -> 0 | L91: 0
D92: 経度＝グリニッジから慣性基準までの経度（ゼロ）＋慣性基準からの経度－自転角＝ | J92: =F66-wer()*B54 -> 155.7284517 | K92: =J92-I85 -> 0 | L92: 0
D93: 慣性速度＝速度ベクトルの絶対値＝ | J93: =SQRT(SUMSQ(G54:I54)) -> 7709.387352 | K93: =J93-J85 -> 0 | L93: 0
D94: 慣性速度上下角＝地心半径ベクトル垂直面と速度ベクトルとの成す角＝ | J94: =DEGREES(ATAN2(G54*O70+H54*P70+I54*Q70,G54*O69+H54*P69+I54*Q69)) -> -0.2623575507 | K94: =J94-K85 -> 5.551115123e-16 | L94: -15
D95: 慣性速度方位角＝位置ベクトル垂直面投影速度を北から東回りに測った角＝ | J95: =DEGREES(ATAN2(E54*(E54*I54-F54*H54)-D54*(F54*G54-D54*I54),SQRT(SUMSQ(D54:F54))*(D54*H54-E54*G54))) -> 141.4549066 | K95: =J95-L85 -> 0 | L95: 0
D96: 機軸上下角＝位置ベクトル垂直面と機体ｘＢ軸との成す角＝ | J96: =DEGREES(ACOS(N54*O69+O54*P69+P54*Q69)) -> 33.93306936 | K96: =J96-M85 -> 0 | L96: 0
D97: 機軸方位角＝位置ベクトル垂直面投影の機体ｘＢ軸を北から東回りに測った角＝ | J97: =DEGREES(ATAN2(P69*(P69*P54-Q69*O54)-O69*(Q69*N54-O69*P54),(O69*O54-P69*N54))) -> 155.0590934 | K97: =J97-N85 -> 0 | L97: 0
D98: バンク角＝機体ｘＢ軸垂直面投影位置ベクトルをｙＢ軸から時計回りに測った角＝ | J98: =DEGREES(ATAN2(-(O69*T54+P69*U54+Q69*V54),-(O69*Q54+P69*R54+Q69*S54))) -> 137.330497 | K98: =J98-O85 -> 0 | L98: 0
B100: 飛行パラメータから逆算 | D100: =exe("GeoXyz(GeoPos)",D104:V104=geoxyz(D66:O66)) -> GeoXyz(GeoPos)
D101: 位置 r | G101: 速度 v | J101: 機体姿勢 四元数 Qib | N101: =exe("機体姿勢 方向余弦マトリクス Dib",N104:V104=QtnDcm(J104:M104)) -> 機体姿勢 方向余弦マトリクス Dib
D102: x | E102: y | F102: z | G102: Vx | H102: Vy | I102: Vz | J102: q0 | K102: q1 | L102: q2 | M102: q3 | N102: Xbx | O102: Xby | P102: Xbz | Q102: Ybx | R102: Yby | S102: Ybz | T102: Zbx | U102: Zby | V102: Zbz
D103: [m] | E103: [m] | F103: [m] | G103: [m/s] | H103: [m/s] | I103: [m/s] | J103: [ND] | K103: [ND] | L103: [ND] | M103: [ND] | N103: [ND] | O103: [ND] | P103: [ND] | Q103: [ND] | R103: [ND] | S103: [ND] | T103: [ND] | U103: [ND] | V103: [ND]
D104: -6206573.293 | E104: 2339855.535 | F104: 668525.4029 | G104: -2227.538897 | H104: -4294.171938 | I104: -6002.733642 | J104: 0.01915770954 | K104: -0.219424282 | L104: -0.1179239688 | M104: 0.968287098 | N104: -0.9029719333 | O104: 0.0888510903 | P104: -0.4204130962 | Q104: 0.0146504384 | R104: -0.9714538395 | S104: -0.2367758483 | T104: -0.4294497088 | U104: -0.2199611817 | V104: 0.8758938441
C105: 誤差 | D105: =D104-D54 -> 3.539025784e-08 | E105: =E104-E54 -> 9.499490261e-08 | F105: -3.84170562e-09 | G105: -8.549250197e-11 | H105: -4.547473509e-11 | I105: 6.457412383e-11 | J105: 3.788636072e-15 | K105: -9.520162436e-15 | L105: -4.218847494e-15 | M105: 4.884981308e-14 | N105: -9.126033262e-14 | O105: 1.329492072e-14 | P105: -3.885780586e-14 | Q105: -5.112230084e-15 | R105: -9.758860386e-14 | S105: -2.170486013e-14 | T105: -4.096722961e-14 | U105: -1.765254609e-14 | V105: 8.959499809e-14
C106: LOG（割合） | D106: =IF(D105/D104=0,0,IF(LOG(ABS(D105/D104))>0,ROUNDUP(LOG(ABS(D105/D104))+0.00000000000001,0),ROUNDUP(LOG(ABS(D105/D104)),0))) -> -15 | E106: =IF(E105/E104=0,0,IF(LOG(ABS(E105/E104))>0,ROUNDUP(LOG(ABS(E105/E104))+0.00000000000001,0),ROUNDUP(LOG(ABS(E105/E104)),0))) -> -14 | F106: -15 | G106: -14 | H106: -14 | I106: -14 | J106: -13 | K106: -14 | L106: -14 | M106: -14 | N106: -13 | O106: -13 | P106: -14 | Q106: -13 | R106: -13 | S106: -14 | T106: -14 | U106: -14 | V106: -13
B108: ケプラー軌道要素（その１） | D108: =exe("OrbElm(ｔ、StaVar(r、v、QibDummy))、SetRef()、SetPad()",D112:V112=orbelm(B54,stavar(D54:F54,G54:I54,ravqtn(vct3d(0,0,0)))), setref(F57,0), setpad(L60,M60,N60,O60)) -> OrbElm(ｔ、StaVar(r、v、QibDummy))、SetRef()、SetPad()
D109: 軌道長半径 | E109: 離心率 | F109: 軌道傾斜角 | G109: 昇降点経度 | H109: 近地点引数 | I109: 緯度引数 | J109: 遠地点高度 | K109: 近地点高度 | L109: 昇降点赤経 | M109: 真近点離角 | N109: 離心 近点離角 | O109: 平均 近点離角 | P109: 遠地点半径 | Q109: 近地点半径 | R109: 遠地点速度 | S109: 近地点速度 | T109: 軌道 エネルギー | U109: 周期 | V109: 半通径
D110: A | E110: Ecc | F110: Ainc | G110: Asnd | H110: Argp | I110: Argl | J110: Apg | K110: Prg | L110: Raan | M110: Ant | N110: Ane | O110: Anm | P110: Apf | Q110: Prf | R110: Vapf | S110: Vprf | T110: Envv | U110: Perd | V110: P
D111: [m] | E111: [ND] | F111: [度] | G111: [度] | H111: [度] | I111: [度] | J111: [m] | K111: [m] | L111: [度] | M111: [度] | N111: [度] | O111: [度] | P111: [m] | Q111: [m] | R111: [m/s] | S111: [m/s] | T111: [m^2/s^2] | U111: [s] | V111: [m]
D112: 6627109.835 | E112: 0.007513585491 | F112: 51.68464407 | G112: 340.296409 | H112: -44.62875713 | I112: 172.6570183 | J112: 298761.1918 | K112: 199174.4792 | L112: 50.89215476 | M112: 217.2857754 | N112: 217.5473515 | O112: 217.8097035 | P112: 6676903.192 | Q112: 6577316.479 | R112: 7697.396944 | S112: 7813.942721 | T112: -30073509.41 | U112: 5369.044254 | V112: 6626735.709
J113: 検証 | K113: 誤差 | L113: LOG（割合）
D114: 軌道長半径 | J114: =1/(2/O115-O116^2/gmu()) -> 6627109.835 | K114: =J114-D112 -> 0 | L114: =IF(K114/J114=0,0,IF(LOG(ABS(K114/J114))>0,ROUNDUP(LOG(ABS(K114/J114))+0.00000000000001,0),ROUNDUP(LOG(ABS(K114/J114)),0))) -> 0
D115: 離心率 | J115: =SQRT(1-J132*(2/O115-O116^2/gmu())) -> 0.007513585491 | K115: =J115-E112 -> 2.467123728e-14 | L115: -12 | N115: r | O115: =SQRT(SUMSQ(D54:F54)) -> 6666588.496
D116: 軌道傾斜角 | J116: =DEGREES(ATAN2(O119,SQRT(O117^2+O118^2))) -> 51.68464407 | K116: =J116-F112 -> 0 | L116: 0 | N116: v | O116: =SQRT(SUMSQ(G54:I54)) -> 7709.387352
D117: 昇降点経度 | J117: =IF(DEGREES(ATAN2(-O118,O117))-wer()*B54<0,DEGREES(ATAN2(-O118,O117))-wer()*B54+360,DEGREES(ATAN2(-O118,O117))-wer()*B54) -> 340.296409 | K117: =J117-G112 -> 0 | L117: 0 | N117: hx | O117: =E54*I54-F54*H54 -> -1.117476651e+10
D118: 近地点引数 | J118: =J119-J123 -> -44.62875713 | K118: =J118-H112 -> 4.263256415e-13 | L118: -15 | N118: hy | O118: =F54*G54-D54*I54 -> -3.874557264e+10
D119: 緯度引数 | J119: =DEGREES(ATAN2(E54*O117-D54*O118,F54*O120)) -> 172.6570183 | K119: =J119-I112 -> 0 | L119: 0 | N119: hz | O119: =D54*H54-E54*G54 -> 3.186421208e+10
D120: 遠地点高度 | J120: =J126-rer() -> 298761.1918 | K120: =J120-J112 -> 1.648440957e-07 | L120: -13 | N120: h | O120: =SQRT(SUMSQ(O117:O119)) -> 5.139477422e+10
D121: 近地点高度 | J121: =J127-rer() -> 199174.4792 | K121: =J121-K112 -> -1.611188054e-07 | L121: -13 | N121: =exe("gmst",O121=gmst(B54)) -> gmst | O121: 70.59574579
D122: 昇降点赤経 | J122: =IF(O121+J117>360,O121+J117-360,O121+J117) -> 50.89215476 | K122: =J122-L112 -> 0 | L122: 0
D123: 真近点離角 | J123: =IF(DEGREES(ATAN2(O120^2-gmu()*O115,O120*(D54*G54+E54*H54+F54*I54)))<0,DEGREES(ATAN2(O120^2-gmu()*O115,O120*(D54*G54+E54*H54+F54*I54)))+360,DEGREES(ATAN2(O120^2-gmu()*O115,O120*(D54*G54+E54*H54+F54*I54)))) -> 217.2857754 | K123: =J123-M112 -> -4.547473509e-13 | L123: -15
D124: 離心 近点離角 | J124: =IF(DEGREES(ATAN2(-1+O115*O116^2/gmu(),(D54*G54+E54*H54+F54*I54)/SQRT(gmu()*J114)))<0,DEGREES(ATAN2(-1+O115*O116^2/gmu(),(D54*G54+E54*H54+F54*I54)/SQRT(gmu()*J114)))+360,DEGREES(ATAN2(-1+O115*O116^2/gmu(),(D54*G54+E54*H54+F54*I54)/SQRT(gmu()*J114)))) -> 217.5473515 | K124: =J124-N112 -> 3.694822226e-13 | L124: -15
D125: 平均 近点離角 | J125: =IF(DEGREES(ATAN2(-1+O115*O116^2/gmu(),(D54*G54+E54*H54+F54*I54)/SQRT(gmu()*J114))-(D54*G54+E54*H54+F54*I54)/SQRT(gmu()*J114))<0,DEGREES(ATAN2(-1+O115*O116^2/gmu(),(D54*G54+E54*H54+F54*I54)/SQRT(gmu()*J114))-(D54*G54+E54*H54+F54*I54)/SQRT(gmu()*J114))+360,DEGREES(ATAN2(-1+O115*O116^2/gmu(),(D54*G54+E54*H54+F54*I54)/SQRT(gmu()*J114))-(D54*G54+E54*H54+F54*I54)/SQRT(gmu()*J114))) -> 217.8097035 | K125: =J125-O112 -> 3.694822226e-13 | L125: -15
D126: 遠地点半径 | J126: =J114*(1+J115) -> 6676903.192 | K126: =J126-P112 -> 1.648440957e-07 | L126: -14
D127: 近地点半径 | J127: =J114*(1-J115) -> 6577316.479 | K127: =J127-Q112 -> -1.611188054e-07 | L127: -14
D128: 遠地点速度 | J128: =SQRT((2*gmu()/O115-O116^2)*(1-J115)/(1+J115)) -> 7697.396944 | K128: =J128-R112 -> -1.900843927e-10 | L128: -14
D129: 近地点速度 | J129: =SQRT((2*gmu()/O115-O116^2)*(1+J115)/(1-J115)) -> 7813.942721 | K129: =J129-S112 -> 1.919033821e-10 | L129: -14
D130: 軌道 エネルギー | J130: =-gmu()/O115+O116^2/2 -> -30073509.41 | K130: =J130-T112 -> 0 | L130: 0
D131: 周期 | J131: =2*PI()*SQRT(J114^2/(2*gmu()/O115-O116^2)) -> 5369.044254 | K131: =J131-U112 -> 0 | L131: 0
D132: 半通径 | J132: =O120^2/gmu() -> 6626735.709 | K132: =J132-V112 -> 0 | L132: 0
B134: ケプラー軌道要素から逆算 | D134: =exe("OrbXyz(ｔ、OrbElm)",D138:V138=orbxyz(B54,D112:V112), setref(F57,0), setpad(L60,M60,N60,O60)) -> OrbXyz(ｔ、OrbElm)
D135: 位置 r | G135: 速度 v | J135: 機体姿勢 四元数 Qib | N135: =exe("機体姿勢 方向余弦マトリクス Dib",N138:V138=QtnDcm(J138:M138)) -> 機体姿勢 方向余弦マトリクス Dib
D136: x | E136: y | F136: z | G136: Vx | H136: Vy | I136: Vz | J136: q0 | K136: q1 | L136: q2 | M136: q3 | N136: Xbx | O136: Xby | P136: Xbz | Q136: Ybx | R136: Yby | S136: Ybz | T136: Zbx | U136: Zby | V136: Zbz
D137: [m] | E137: [m] | F137: [m] | G137: [m/s] | H137: [m/s] | I137: [m/s] | J137: [ND] | K137: [ND] | L137: [ND] | M137: [ND] | N137: [ND] | O137: [ND] | P137: [ND] | Q137: [ND] | R137: [ND] | S137: [ND] | T137: [ND] | U137: [ND] | V137: [ND]
D138: -6206573.293 | E138: 2339855.535 | F138: 668525.4029 | G138: -2227.538897 | H138: -4294.171938 | I138: -6002.733642 | J138: 0 | K138: 0 | L138: 0 | M138: 0 | N138: 0 | O138: 0 | P138: 0 | Q138: 0 | R138: 0 | S138: 0 | T138: 0 | U138: 0 | V138: 0
C139: 誤差 | D139: =D138-D54 -> 1.229345798e-07 | E139: 2.663582563e-07 | F139: 8.253846318e-08 | G139: -2.874003258e-10 | H139: 8.367351256e-11 | I139: 2.728484105e-11 | J139: 姿勢データは無い
C140: LOG（割合） | D140: =IF(D139/D138=0,0,IF(LOG(ABS(D139/D138))>0,ROUNDUP(LOG(ABS(D139/D138))+0.00000000000001,0),ROUNDUP(LOG(ABS(D139/D138)),0))) -> -14 | E140: -13 | F140: -13 | G140: -13 | H140: -14 | I140: -15
B142: 下記その２は、与えられた位置･速度が平均春分点に慣性基準を採ったときのものと見なした計算例。 | L142: =exe("射点データの設定",L146:O146=lchpad(2)) -> 射点データの設定
L143: 高度 | M143: 測地緯度 | N143: 経度 | O143: 射点方位角
D144: 慣性座標系識別コード | F144: 2 | G144: ND | L144: h | M144: φL | N144: λL | O144: μL
D145: 慣性座標系Ｘ軸 0：射点子午線基準、 1：グリニッジ子午線基準、 2：平均春分点基準 | L145: [m] | M145: [度] | N145: [度] | O145: [度]
L146: 93.958 | M146: 30.40104008 | N146: 130.9754578 | O146: 125
B148: 飛行パラメータ（その２） | D148: =exe("GeoPos(t、SarVar（r、v、Qib）)、SetRef()、SetPad()",D152:O152=geopos(B54,stavar(D54:F54,G54:I54,J54:M54)), setref(F144,0), setpad(L146,M146,N146,O146)) -> GeoPos(t、SarVar（r、v、Qib）)、SetRef()、SetPad()
D149: 地心半径 | E149: 地心緯度 | F149: 慣性基準 からの経度 | G149: 高度 | H149: 測地緯度 | I149: 経度 | J149: 慣性速度 | K149: 慣性速度 上下角 | L149: 慣性速度 方位角 | M149: 機軸上下角 | N149: 機軸方位角 | O149: バンク角
D150: Ri | E150: Vltc | F150: Vlni | G150: Alt | H150: Vlat | I150: Vlng | J150: Vi | K150: Fpvi | L150: Azvi | M150: Atli | N150: Amis | O150: Rlat
D151: [m] | E151: [度] | F151: [度] | G151: [m] | H151: [度] | I151: [度] | J151: [m/s] | K151: [度] | L151: [度] | M151: [度] | N151: [度] | O151: [度]
D152: 6666588.496 | E152: 5.755293554 | F152: 159.3437397 | G152: 288662.6195 | H152: 5.793818622 | I152: 88.74799393 | J152: 7709.387352 | K152: -0.2623575507 | L152: 141.4549066 | M152: 33.93306936 | N152: 155.0590934 | O152: 137.330497
C153: その１との差 | D153: =D152-D85 -> 0 | E153: =E152-E85 -> 0 | F153: =F152-F85 -> 0 | G153: 0 | H153: 0 | I153: =IF(I152-I85<0,I152-I85+360,I152-I85) -> 293.0195422 | J153: 0 | K153: 0 | L153: 0 | M153: 0 | N153: 0 | O153: 0
D154: 経度＝グリニッジから慣性基準（平均春分点）までの経度＋慣性基準からの経度－自転角＝ | K154: =IF(-K155+F152-wer()*B54<0,-K155+F152-wer()*B54+360,-K155+F152-wer()*B54) -> 88.74799393
D155: =exe("発射時グリニッジ平均恒星時（平均春分点からグリニッジまでの経度）＝",K155=gmst(0)) -> 発射時グリニッジ平均恒星時（平均春分点からグリニッジまでの経度）＝ | K155: 66.98045781
B157: 飛行パラメータから逆算 | D157: =exe("GeoXyz(GeoPos)",D161:V161=geoxyz(D152:O152)) -> GeoXyz(GeoPos)
D158: 位置 r | G158: 速度 v | J158: 機体姿勢 四元数 Qib | N158: =exe("機体姿勢 方向余弦マトリクス Dib",N161:V161=QtnDcm(J161:M161)) -> 機体姿勢 方向余弦マトリクス Dib
D159: x | E159: y | F159: z | G159: Vx | H159: Vy | I159: Vz | J159: q0 | K159: q1 | L159: q2 | M159: q3 | N159: Xbx | O159: Xby | P159: Xbz | Q159: Ybx | R159: Yby | S159: Ybz | T159: Zbx | U159: Zby | V159: Zbz
D160: [m] | E160: [m] | F160: [m] | G160: [m/s] | H160: [m/s] | I160: [m/s] | J160: [ND] | K160: [ND] | L160: [ND] | M160: [ND] | N160: [ND] | O160: [ND] | P160: [ND] | Q160: [ND] | R160: [ND] | S160: [ND] | T160: [ND] | U160: [ND] | V160: [ND]
D161: -6206573.293 | E161: 2339855.535 | F161: 668525.4029 | G161: -2227.538897 | H161: -4294.171938 | I161: -6002.733642 | J161: 0.01915770954 | K161: -0.219424282 | L161: -0.1179239688 | M161: 0.968287098 | N161: -0.9029719333 | O161: 0.0888510903 | P161: -0.4204130962 | Q161: 0.0146504384 | R161: -0.9714538395 | S161: -0.2367758483 | T161: -0.4294497088 | U161: -0.2199611817 | V161: 0.8758938441
C162: 誤差 | D162: =D161-D54 -> 3.539025784e-08 | E162: =E161-E54 -> 9.499490261e-08 | F162: -3.84170562e-09 | G162: -8.549250197e-11 | H162: -4.547473509e-11 | I162: 6.457412383e-11 | J162: 3.788636072e-15 | K162: -9.520162436e-15 | L162: -4.218847494e-15 | M162: 4.884981308e-14 | N162: -2.109423747e-15 | O162: 7.938094626e-15 | P162: 4.884981308e-15 | Q162: -1.04707909e-14 | R162: -8.881784197e-16 | S162: 1.221245327e-15 | T162: 2.775557562e-15 | U162: 5.273559367e-15 | V162: 3.108624469e-15
C163: LOG（割合） | D163: =IF(D162/D161=0,0,IF(LOG(ABS(D162/D161))>0,ROUNDUP(LOG(ABS(D162/D161))+0.00000000000001,0),ROUNDUP(LOG(ABS(D162/D161)),0))) -> -15 | E163: -14 | F163: -15 | G163: -14 | H163: -14 | I163: -14 | J163: -13 | K163: -14 | L163: -14 | M163: -14 | N163: -15 | O163: -14 | P163: -14 | Q163: -13 | R163: -16 | S163: -15 | T163: -15 | U163: -14 | V163: -15
B165: ケプラー軌道要素（その２） | D165: =exe("OrbElm(ｔ、StaVar(r、v、QibDummy))、SetRef()、SetPad()",D169:V169=orbelm(B54,stavar(D54:F54,G54:I54,ravqtn(vct3d(0,0,0)))), setref(F144,0), setpad(L146,M146,N146,O146)) -> OrbElm(ｔ、StaVar(r、v、QibDummy))、SetRef()、SetPad()
D166: 軌道長半径 | E166: 離心率 | F166: 軌道傾斜角 | G166: 昇降点経度 | H166: 近地点引数 | I166: 緯度引数 | J166: 遠地点高度 | K166: 近地点高度 | L166: 昇降点赤経 | M166: 真近点離角 | N166: 離心 近点離角 | O166: 平均 近点離角 | P166: 遠地点半径 | Q166: 近地点半径 | R166: 遠地点速度 | S166: 近地点速度 | T166: 軌道 エネルギー | U166: 周期 | V166: 半通径
D167: A | E167: Ecc | F167: Ainc | G167: Asnd | H167: Argp | I167: Argl | J167: Apg | K167: Prg | L167: Raan | M167: Ant | N167: Ane | O167: Anm | P167: Apf | Q167: Prf | R167: Vapf | S167: Vprf | T167: Envv | U167: Perd | V167: P
D168: [m] | E168: [ND] | F168: [度] | G168: [度] | H168: [度] | I168: [度] | J168: [m] | K168: [m] | L168: [度] | M168: [度] | N168: [度] | O168: [度] | P168: [m] | Q168: [m] | R168: [m/s] | S168: [m/s] | T168: [m^2/s^2] | U168: [s] | V168: [m]
D169: 6627109.835 | E169: 0.007513585491 | F169: 51.68464407 | G169: 273.3159512 | H169: -44.62875713 | I169: 172.6570183 | J169: 298761.1918 | K169: 199174.4792 | L169: 343.911697 | M169: 217.2857754 | N169: 217.5473515 | O169: 217.8097035 | P169: 6676903.192 | Q169: 6577316.479 | R169: 7697.396944 | S169: 7813.942721 | T169: -30073509.41 | U169: 5369.044254 | V169: 6626735.709
C170: その１との差 | D170: =D169-D112 -> 0 | E170: =E169-E112 -> 0 | F170: 0 | G170: =IF(G169-G112<0,G169-G112+360,G169-G112) -> 293.0195422 | H170: 0 | I170: 0 | J170: 0 | K170: 0 | L170: =IF(L169-L112<0,L169-L112+360,L169-L112) -> 293.0195422 | M170: 0 | N170: 0 | O170: 0 | P170: 0 | Q170: 0 | R170: 0 | S170: 0 | T170: 0 | U170: 0 | V170: 0
B172: ケプラー軌道要素から逆算 | D172: =exe("OrbXyz(ｔ、OrbElm)",D176:V176=orbxyz(B54,D169:V169), setref(F144,0), setpad(L146,M146,N146,O146)) -> OrbXyz(ｔ、OrbElm)
D173: 位置 r | G173: 速度 v | J173: 機体姿勢 四元数 Qib | N173: =exe("機体姿勢 方向余弦マトリクス Dib",N176:V176=QtnDcm(J176:M176)) -> 機体姿勢 方向余弦マトリクス Dib
D174: x | E174: y | F174: z | G174: Vx | H174: Vy | I174: Vz | J174: q0 | K174: q1 | L174: q2 | M174: q3 | N174: Xbx | O174: Xby | P174: Xbz | Q174: Ybx | R174: Yby | S174: Ybz | T174: Zbx | U174: Zby | V174: Zbz
D175: [m] | E175: [m] | F175: [m] | G175: [m/s] | H175: [m/s] | I175: [m/s] | J175: [ND] | K175: [ND] | L175: [ND] | M175: [ND] | N175: [ND] | O175: [ND] | P175: [ND] | Q175: [ND] | R175: [ND] | S175: [ND] | T175: [ND] | U175: [ND] | V175: [ND]
D176: -6206573.293 | E176: 2339855.535 | F176: 668525.4029 | G176: -2227.538897 | H176: -4294.171938 | I176: -6002.733642 | J176: 0 | K176: 0 | L176: 0 | M176: 0 | N176: 0 | O176: 0 | P176: 0 | Q176: 0 | R176: 0 | S176: 0 | T176: 0 | U176: 0 | V176: 0
C177: 誤差 | D177: =D176-D54 -> 1.229345798e-07 | E177: 2.663582563e-07 | F177: 8.253846318e-08 | G177: -2.874003258e-10 | H177: 8.367351256e-11 | I177: 2.728484105e-11 | J177: 姿勢データは無い
C178: LOG（割合） | D178: =IF(D177/D176=0,0,IF(LOG(ABS(D177/D176))>0,ROUNDUP(LOG(ABS(D177/D176))+0.00000000000001,0),ROUNDUP(LOG(ABS(D177/D176)),0))) -> -14 | E178: -13 | F178: -13 | G178: -13 | H178: -14 | I178: -15
B180: 下記その３は、与えられた位置･速度がフライトモード･オン時射点子午線に慣性基準を採ったときのものと見なした計算例。
L181: =exe("射点データの設定",L185:O185=lchpad(1)) -> 射点データの設定
D182: 慣性座標系識別コード | F182: 0 | G182: ND | L182: 高度 | M182: 測地緯度 | N182: 経度 | O182: 射点方位角
D183: 慣性座標系Ｘ軸 0：射点子午線基準、 1：グリニッジ子午線基準、 2：平均春分点基準 | L183: h | M183: φL | N183: λL | O183: μL
L184: [m] | M184: [度] | N184: [度] | O184: [度]
D185: フライトモード･オンから発射までの時間 | G185: 18 | H185: [s] | L185: 62.314 | M185: 30.38569 | N185: 130.96254 | O185: 125
B187: 飛行パラメータ（その３） | D187: =exe("GeoPos(t、SarVar（r、v、Qib）)",D191:O191=geopos(B54,stavar(D54:F54,G54:I54,J54:M54)), setref(F182,G185), setpad(L185,M185,N185,O185)) -> GeoPos(t、SarVar（r、v、Qib）)
D188: 地心半径 | E188: 地心緯度 | F188: 慣性基準 からの経度 | G188: 高度 | H188: 測地緯度 | I188: 経度 | J188: 慣性速度 | K188: 慣性速度 上下角 | L188: 慣性速度 方位角 | M188: 機軸上下角 | N188: 機軸方位角 | O188: バンク角
D189: Ri | E189: Vltc | F189: Vlni | G189: Alt | H189: Vlat | I189: Vlng | J189: Vi | K189: Fpvi | L189: Azvi | M189: Atli | N189: Amis | O189: Rlat
D190: [m] | E190: [度] | F190: [度] | G190: [m] | H190: [度] | I190: [度] | J190: [m/s] | K190: [度] | L190: [度] | M190: [度] | N190: [度] | O190: [度]
D191: 6666588.496 | E191: 5.755293554 | F191: 159.3437397 | G191: 288662.6195 | H191: 5.793818622 | I191: 286.6157864 | J191: 7709.387352 | K191: -0.2623575507 | L191: 141.4549066 | M191: 33.93306936 | N191: 155.0590934 | O191: 137.330497
C192: その１との差 | D192: =D191-D85 -> 0 | E192: 0 | F192: 0 | G192: 0 | H192: 0 | I192: 130.8873347 | J192: 0 | K192: 0 | L192: 0 | M192: 0 | N192: 0 | O192: 0
D193: 経度＝グリニッジから慣性基準までの経度＋慣性基準（平均春分点）からの経度―フライトモード･オンからの自転角＝ | M193: =N185+F191-wer()*(G185+B54) -> 286.6157864
B195: 飛行パラメータから逆算 | D195: =exe("GeoXyz(GeoPos)",D199:V199=geoxyz(D191:O191)) -> GeoXyz(GeoPos)
D196: 位置 r | G196: 速度 v | J196: 機体姿勢 四元数 Qib | N196: =exe("機体姿勢 方向余弦マトリクス Dib",N199:V199=QtnDcm(J199:M199)) -> 機体姿勢 方向余弦マトリクス Dib
D197: x | E197: y | F197: z | G197: Vx | H197: Vy | I197: Vz | J197: q0 | K197: q1 | L197: q2 | M197: q3 | N197: Xbx | O197: Xby | P197: Xbz | Q197: Ybx | R197: Yby | S197: Ybz | T197: Zbx | U197: Zby | V197: Zbz
D198: [m] | E198: [m] | F198: [m] | G198: [m/s] | H198: [m/s] | I198: [m/s] | J198: [ND] | K198: [ND] | L198: [ND] | M198: [ND] | N198: [ND] | O198: [ND] | P198: [ND] | Q198: [ND] | R198: [ND] | S198: [ND] | T198: [ND] | U198: [ND] | V198: [ND]
D199: -6206573.293 | E199: 2339855.535 | F199: 668525.4029 | G199: -2227.538897 | H199: -4294.171938 | I199: -6002.733642 | J199: 0.01915770954 | K199: -0.219424282 | L199: -0.1179239688 | M199: 0.968287098 | N199: -0.9029719333 | O199: 0.0888510903 | P199: -0.4204130962 | Q199: 0.0146504384 | R199: -0.9714538395 | S199: -0.2367758483 | T199: -0.4294497088 | U199: -0.2199611817 | V199: 0.8758938441
C200: 誤差 | D200: =D199-D54 -> 3.539025784e-08 | E200: 9.499490261e-08 | F200: -3.84170562e-09 | G200: -8.549250197e-11 | H200: -4.547473509e-11 | I200: 6.457412383e-11 | J200: 3.788636072e-15 | K200: -9.520162436e-15 | L200: -4.218847494e-15 | M200: 4.884981308e-14 | N200: -2.109423747e-15 | O200: 7.938094626e-15 | P200: 4.884981308e-15 | Q200: -1.04707909e-14 | R200: -8.881784197e-16 | S200: 1.221245327e-15 | T200: 2.775557562e-15 | U200: 5.273559367e-15 | V200: 3.108624469e-15
C201: LOG（割合） | D201: =IF(D200/D199=0,0,IF(LOG(ABS(D200/D199))>0,ROUNDUP(LOG(ABS(D200/D199))+0.00000000000001,0),ROUNDUP(LOG(ABS(D200/D199)),0))) -> -15 | E201: -14 | F201: -15 | G201: -14 | H201: -14 | I201: -14 | J201: -13 | K201: -14 | L201: -14 | M201: -14 | N201: -15 | O201: -14 | P201: -14 | Q201: -13 | R201: -16 | S201: -15 | T201: -15 | U201: -14 | V201: -15
B203: ケプラー軌道要素（その３） | D203: =exe("OrbElm(t、StaVar(r、v、QibDummy))、SetRef()、SetPad()",D207:V207=orbelm(B54,stavar(D54:F54,G54:I54,ravqtn(vct3d(0,0,0)))), setref(F182,G185), setpad(L185,M185,N185,O185)) -> OrbElm(t、StaVar(r、v、QibDummy))、SetRef()、SetPad()
D204: 軌道長半径 | E204: 離心率 | F204: 軌道傾斜角 | G204: 昇降点経度 | H204: 近地点引数 | I204: 緯度引数 | J204: 遠地点高度 | K204: 近地点高度 | L204: 昇降点赤経 | M204: 真近点離角 | N204: 離心 近点離角 | O204: 平均 近点離角 | P204: 遠地点半径 | Q204: 近地点半径 | R204: 遠地点速度 | S204: 近地点速度 | T204: 軌道 エネルギー | U204: 周期 | V204: 半通径
D205: A | E205: Ecc | F205: Ainc | G205: Asnd | H205: Argp | I205: Argl | J205: Apg | K205: Prg | L205: Raan | M205: Ant | N205: Ane | O205: Anm | P205: Apf | Q205: Prf | R205: Vapf | S205: Vprf | T205: Envv | U205: Perd | V205: P
D206: [m] | E206: [ND] | F206: [度] | G206: [度] | H206: [度] | I206: [度] | J206: [m] | K206: [m] | L206: [度] | M206: [度] | N206: [度] | O206: [度] | P206: [m] | Q206: [m] | R206: [m/s] | S206: [m/s] | T206: [m^2/s^2] | U206: [s] | V206: [m]
D207: 6627109.835 | E207: 0.007513585491 | F207: 51.68464407 | G207: 111.1837436 | H207: -44.62875713 | I207: 172.6570183 | J207: 298761.1918 | K207: 199174.4792 | L207: 181.7794894 | M207: 217.2857754 | N207: 217.5473515 | O207: 217.8097035 | P207: 6676903.192 | Q207: 6577316.479 | R207: 7697.396944 | S207: 7813.942721 | T207: -30073509.41 | U207: 5369.044254 | V207: 6626735.709
C208: その１との差 | D208: =D207-D112 -> 0 | E208: =E207-E112 -> 0 | F208: =F207-F112 -> 0 | G208: =IF(G207-G112<0,G207-G112+360,G207-G112) -> 130.8873347 | H208: =H207-H112 -> 0 | I208: =I207-I112 -> 0 | J208: =J207-J112 -> 0 | K208: =K207-K112 -> 0 | L208: =IF(L207-L112<0,L207-L112+360,L207-L112) -> 130.8873347 | M208: =M207-M112 -> 0 | N208: 0 | O208: 0 | P208: 0 | Q208: 0 | R208: 0 | S208: 0 | T208: 0 | U208: 0 | V208: 0
B210: ケプラー軌道要素から逆算 | D210: =exe("OrbXyz(ｔ、OrbElm)",D214:V214=orbxyz(B54,D207:V207), setref(F182,G185), setpad(L185,M185,N185,O185)) -> OrbXyz(ｔ、OrbElm)
D211: 位置 r | G211: 速度 v | J211: 機体姿勢 四元数 Qib | N211: =exe("機体姿勢 方向余弦マトリクス Dib",N214:V214=QtnDcm(J214:M214)) -> 機体姿勢 方向余弦マトリクス Dib
D212: x | E212: y | F212: z | G212: Vx | H212: Vy | I212: Vz | J212: q0 | K212: q1 | L212: q2 | M212: q3 | N212: Xbx | O212: Xby | P212: Xbz | Q212: Ybx | R212: Yby | S212: Ybz | T212: Zbx | U212: Zby | V212: Zbz
D213: [m] | E213: [m] | F213: [m] | G213: [m/s] | H213: [m/s] | I213: [m/s] | J213: [ND] | K213: [ND] | L213: [ND] | M213: [ND] | N213: [ND] | O213: [ND] | P213: [ND] | Q213: [ND] | R213: [ND] | S213: [ND] | T213: [ND] | U213: [ND] | V213: [ND]
D214: -6206573.293 | E214: 2339855.535 | F214: 668525.4029 | G214: -2227.538897 | H214: -4294.171938 | I214: -6002.733642 | J214: 0 | K214: 0 | L214: 0 | M214: 0 | N214: 0 | O214: 0 | P214: 0 | Q214: 0 | R214: 0 | S214: 0 | T214: 0 | U214: 0 | V214: 0
C215: 誤差 | D215: =D214-D54 -> 4.097819328e-08 | E215: 5.075708032e-08 | F215: 8.253846318e-08 | G215: -1.382431947e-10 | H215: 0 | I215: 2.728484105e-11 | J215: 姿勢データは無い
C216: LOG（割合） | D216: =IF(D215/D214=0,0,IF(LOG(ABS(D215/D214))>0,ROUNDUP(LOG(ABS(D215/D214))+0.00000000000001,0),ROUNDUP(LOG(ABS(D215/D214)),0))) -> -15 | E216: -14 | F216: -13 | G216: -14 | H216: 0 | I216: -15
A218: =A43+1 -> 4 | B218: 地上局
B219: （UTC） 発射日時 | C219: 2009 | D219: 年
C220: 9 | D220: 月
C221: 10 | D221: 日 | F221: =exe("発射日時の設定",setTime(C219:C221,C222:C224)) -> 発射日時の設定
C222: 17 | D222: 時
C223: 1 | D223: 分
C224: 46.4 | D224: 秒
... 169 more rows

Sheet 汎用関数テーブル検証
A1: 汎用関数テーブル及び積分関数の検証 | G1: スクリプトによる計算式は、黄色のセルに入力されている。
B3: =exe("実行","TableTest",C6:D18,F7:F10,G7:T7) -> 実行 | V3: =exe("実行","TableTest",W6:X17,Z7:Z10,AA7:AN7) -> 実行
B5: 汎用関数テーブル（ステップ） | G5: INTG | N5: Table | V5: 汎用関数テーブル（リニア） | AA5: INTG | AH5: Table | AQ5: 汎用関数テーブル | AV5: =exe("実行","TableAndIntegTest",AR6:AT376,AV10:AX10,AV15:AZ15) -> 実行
B6: 関数名 | C6: GeneralTable | F6: arg | G6: jIms | H6: t | I6: tDis | J6: dt | K6: a | L6: f | M6: ∫f | N6: ix | O6: ixp | P6: t | Q6: arg | R6: aDis | S6: slp | T6: tDis | V6: 関数名 | W6: GeneralTable | Z6: arg | AA6: jIms | AB6: t | AC6: tDis | AD6: dt | AE6: a | AF6: f | AG6: ∫f | AH6: ix | AI6: ixp | AJ6: t | AK6: arg | AL6: aDis | AM6: slp | AN6: tDis | AQ6: 関数名 | AR6: GeneralTable
B7: 引数名 | C7: argument | F7: 0 | G7: 0 | H7: 0 | I7: 2e-09 | J7: 1.944746586e-09 | K7: 0 | L7: 0 | M7: 0 | N7: 0 | O7: 0 | P7: 0 | Q7: 0 | R7: 1 | S7: 1 | T7: 2e-09 | V7: 引数名 | W7: argument | Z7: 0 | AA7: 0 | AB7: 0 | AC7: 1 | AD7: 0 | AE7: 0 | AF7: 0 | AG7: 0 | AH7: 0 | AI7: 0 | AJ7: 0 | AK7: 0 | AL7: 1 | AM7: 1 | AN7: 1 | AQ7: 引数名 | AR7: argument | AV7: 積分刻み | AW7: 終了時間 | AX7: 出力間隔
B8: 関数の数 | C8: 1 | F8: 1 | G8: 1 | H8: 1e-09 | I8: 2e-09 | J8: 2e-09 | K8: 5e-10 | L8: 0 | M8: 0 | N8: 0 | O8: 0 | P8: 0 | Q8: 5e-10 | R8: 1 | S8: 1 | T8: 2e-09 | V8: 関数の数 | W8: 1 | Z8: 1 | AA8: 1 | AB8: 0.5 | AC8: 1 | AD8: 1 | AE8: 0.25 | AF8: 0 | AG8: 0 | AH8: 0 | AI8: 0 | AJ8: 0 | AK8: 0.25 | AL8: 1 | AM8: 1 | AN8: 1 | AQ8: 関数の数 | AR8: 2 | AV8: DTI | AW8: TL | AX8: TP
B9: 補間方法 | C9: ステップ | F9: 3 | G9: 2 | H9: 1e-09 | I9: 2e-09 | J9: 2e-09 | K9: 5e-10 | L9: 0 | M9: 0 | N9: 0 | O9: 0 | P9: 1e-09 | Q9: 5e-10 | R9: 1 | S9: 2 | T9: 2e-09 | V9: 補間方法 | W9: 一次 | Z9: 3 | AA9: 2 | AB9: 0.5 | AC9: 1 | AD9: 1 | AE9: 0.25 | AF9: 0 | AG9: 0 | AH9: 0 | AI9: 0 | AJ9: 0.5 | AK9: 0.25 | AL9: 1 | AM9: 2 | AN9: 1 | AQ9: 補間方法 | AR9: 1次 | AV9: [s] | AW9: [s] | AX9: [s]
B10: 前端点処理 | C10: ゼロ | F10: 4 | G10: 3 | H10: 2e-09 | I10: 2e-09 | J10: 2e-09 | K10: 1e-09 | L10: 0 | M10: 0 | N10: 0 | O10: 0 | P10: 1e-09 | Q10: 1e-09 | R10: 1 | S10: 2 | T10: 2e-09 | V10: 前端点処理 | W10: ゼロ | Z10: 4 | AA10: 3 | AB10: 1 | AC10: 1 | AD10: 1 | AE10: 0.5 | AF10: 0 | AG10: 0 | AH10: 0 | AI10: 0 | AJ10: 0.5 | AK10: 0.5 | AL10: 1 | AM10: 2 | AN10: 1 | AQ10: 前端点処理 | AR10: ゼロ | AV10: 1 | AW10: 360 | AX10: 1
B11: 後端点処理 | C11: ゼロ | G11: 4 | H11: 2e-09 | I11: 2e-09 | J11: 2e-09 | K11: 1e-09 | L11: 0 | M11: 0 | N11: 0 | O11: 0 | P11: 2e-09 | Q11: 1e-09 | R11: 1 | S11: 2 | T11: 1.625 | V11: 後端点処理 | W11: ゼロ | AA11: 4 | AB11: 1 | AC11: 1 | AD11: 1 | AE11: 0.5 | AF11: 0 | AG11: 0 | AH11: 0 | AI11: 0 | AJ11: 1 | AK11: 0.5 | AL11: 1 | AM11: 2 | AN11: 1.8125 | AQ11: 後端点処理 | AR11: 1次
B12: 節点処理 | C12: 積分 | G12: 0 | H12: 2e-09 | I12: 1.625 | J12: 2e-09 | K12: 1e-09 | L12: 0 | M12: 0 | N12: 0 | O12: 0 | P12: 2e-09 | Q12: 1e-09 | R12: 1 | S12: 2 | T12: 1.625 | V12: 節点処理 | W12: 積分 | AA12: 0 | AB12: 1 | AC12: 1.8125 | AD12: 1 | AE12: 0.5 | AF12: 0 | AG12: 0 | AH12: 0 | AI12: 0 | AJ12: 1 | AK12: 0.5 | AL12: 1 | AM12: 2 | AN12: 1.8125 | AQ12: 節点処理 | AR12: 積分 | BA12: 誤差
B13: 乗数 | C13: 1 | D13: 1 | G13: 1 | H13: 0.500000001 | I13: 1.625 | J13: 0.999999998 | K13: 0.2500000005 | L13: 0 | M13: 0 | N13: 0 | O13: 0 | P13: 2e-09 | Q13: 0.2500000005 | R13: 1 | S13: 2 | T13: 1.625 | V13: 乗数 | W13: 1 | X13: 1 | AA13: 1 | AB13: 1.40625 | AC13: 1.8125 | AD13: 0.8125 | AE13: 0.703125 | AF13: 0 | AG13: 0 | AH13: 0 | AI13: 0 | AJ13: 1 | AK13: 0.703125 | AL13: 1 | AM13: 2 | AN13: 1.8125 | AQ13: 乗数 | AR13: 1 | AS13: 0.01745329252 | AT13: 0.01745329252 | AV13: arg | AW13: F1 | AX13: F2 | AY13: ∫F1 | AZ13: ∫F2 | BA13: F1 | BB13: F2 | BC13: ∫F1 | BD13: ∫F2
B14: 加数 | C14: 0 | D14: 0 | E14: ix | G14: 2 | H14: 0.500000001 | I14: 1.625 | J14: 0.999999998 | K14: 0.2500000005 | L14: 0 | M14: 0 | N14: 0 | O14: 0 | P14: 0.500000001 | Q14: 0.2500000005 | R14: 1 | S14: 2 | T14: 1.625 | V14: 加数 | W14: 0 | X14: 0 | Y14: ix | AA14: 2 | AB14: 1.40625 | AC14: 1.8125 | AD14: 0.8125 | AE14: 0.703125 | AF14: 0 | AG14: 0 | AH14: 0 | AI14: 0 | AJ14: 1.40625 | AK14: 0.703125 | AL14: 1 | AM14: 2 | AN14: 1.8125 | AQ14: 加数 | AR14: 0 | AS14: 0 | AT14: 0 | AW14: sin | AX14: cos | AY14: -cos | AZ14: sin
B15: データ | C15: 1 | D15: 10 | E15: 1 | G15: 3 | H15: 1 | I15: 1.625 | J15: 0.999999998 | K15: 0.5 | L15: 0 | M15: 0 | N15: 0 | O15: 0 | P15: 0.500000001 | Q15: 0.5 | R15: 1 | S15: 2 | T15: 1.625 | V15: データ | W15: 1 | X15: 10 | Y15: 1 | AA15: 3 | AB15: 1.8125 | AC15: 1.8125 | AD15: 0.8125 | AE15: 0.90625 | AF15: 0 | AG15: 0 | AH15: 0 | AI15: 0 | AJ15: 1.40625 | AK15: 0.90625 | AL15: 1 | AM15: 2 | AN15: 1.8125 | AQ15: データ | AR15: 0 | AS15: =SIN(RADIANS(AR15)) -> 0 | AT15: =COS(RADIANS(AR15)) -> 1 | AV15: 0 | AW15: 0 | AX15: 0.01745329252 | AY15: -1 | AZ15: 0 | BA15: =AW15-AS15*(PI()/180) -> 0 | BB15: =AX15-AT15*(PI()/180) -> 0 | BC15: =AY15+COS(RADIANS(AR15)) -> 0 | BD15: =AZ15-SIN(RADIANS(AR15)) -> 0
C16: 2 | D16: 2000 | E16: =E15+1 -> 2 | G16: 4 | H16: 1 | I16: 1.625 | J16: 0.999999998 | K16: 0.5 | L16: 0 | M16: 0 | N16: 0 | O16: 0 | P16: 1 | Q16: 0.5 | R16: 1 | S16: 2 | T16: 1.953125 | W16: 2 | X16: 20 | Y16: =Y15+1 -> 2 | AA16: 4 | AB16: 1.8125 | AC16: 1.8125 | AD16: 0.8125 | AE16: 0.90625 | AF16: 0 | AG16: 0 | AH16: 0 | AI16: 0 | AJ16: 1.8125 | AK16: 0.90625 | AL16: 1 | AM16: 2 | AN16: 1.991210937 | AR16: =AR15+1 -> 1 | AS16: =SIN(RADIANS(AR16)) -> 0.01745240644 | AT16: =COS(RADIANS(AR16)) -> 0.9998476952 | AV16: 1 | AW16: 0.0003046019547 | AX16: 0.0174506343 | AY16: -0.999847699 | AZ16: 0.01745196341 | BA16: =AW16-AS16*(PI()/180) -> 0 | BB16: =AX16-AT16*(PI()/180) -> 0 | BC16: =AY16+COS(RADIANS(AR16)) -> -3.866245324e-09 | BD16: =AZ16-SIN(RADIANS(AR16)) -> -4.430278341e-07
C17: 2 | D17: 20 | E17: 3 | G17: 1 | H17: 1.3125 | I17: 1.625 | J17: 0.6250000004 | K17: 0.6562500001 | L17: 0 | M17: 0 | N17: 0 | O17: 0 | P17: 1 | Q17: 0.6562500001 | R17: 1 | S17: 2 | T17: 1.953125 | W17: 3 | X17: 30 | Y17: =Y16+1 -> 3 | AA17: 0 | AB17: 1.8125 | AC17: 1.991210937 | AD17: 0.8125 | AE17: 0.90625 | AF17: 0 | AG17: 0 | AH17: 0 | AI17: 0 | AJ17: 1.8125 | AK17: 0.90625 | AL17: 1 | AM17: 2 | AN17: 1.991210937 | AR17: =AR16+1 -> 2 | AS17: =SIN(RADIANS(AR17)) -> 0.0348994967 | AT17: =COS(RADIANS(AR17)) -> 0.999390827 | AV17: 2 | AW17: 0.0006091111247 | AX17: 0.01744266045 | AY17: -0.9993908425 | AZ17: 0.03489861078 | BA17: 0 | BB17: 0 | BC17: -1.546380368e-08 | BD17: -8.859207175e-07
C18: 3 | D18: 30 | E18: 4 | G18: 2 | H18: 1.3125 | I18: 1.625 | J18: 0.6250000004 | K18: 0.6562500001 | L18: 0 | M18: 0 | N18: 0 | O18: 0 | P18: 1.3125 | Q18: 0.6562500001 | R18: 1 | S18: 2 | T18: 1.953125 | AA18: 1 | AB18: 1.901855469 | AC18: 1.991210937 | AD18: 0.1787109375 | AE18: 0.9509277344 | AF18: 0 | AG18: 0 | AH18: 0 | AI18: 0 | AJ18: 1.8125 | AK18: 0.9509277344 | AL18: 1 | AM18: 2 | AN18: 1.991210937 | AR18: 3 | AS18: 0.05233595624 | AT18: 0.9986295348 | AV18: 3 | AW18: 0.0009134347536 | AX18: 0.01742937339 | AY18: -0.9986295695 | AZ18: 0.0523346277 | BA18: 0 | BB18: 0 | BC18: -3.478914234e-08 | BD18: -1.328543741e-06
G19: 3 | H19: 1.625 | I19: 1.625 | J19: 0.6250000004 | K19: 0.8125000002 | L19: 0 | M19: 0 | N19: 0 | O19: 0 | P19: 1.3125 | Q19: 0.8125000002 | R19: 1 | S19: 2 | T19: 1.953125 | AA19: 2 | AB19: 1.901855469 | AC19: 1.991210937 | AD19: 0.1787109375 | AE19: 0.9509277344 | AF19: 0 | AG19: 0 | AH19: 0 | AI19: 0 | AJ19: 1.901855469 | AK19: 0.9509277344 | AL19: 1 | AM19: 2 | AN19: 1.991210937 | AR19: 4 | AS19: 0.06975647374 | AT19: 0.9975640503 | AV19: 4 | AW19: 0.001217480141 | AX19: 0.01741077718 | AY19: -0.9975641121 | AZ19: 0.06975470298 | BA19: 0 | BB19: 0 | BC19: -6.183637447e-08 | BD19: -1.770762077e-06
B20: t | C20: a | D20: f | E20: ∫f | G20: 4 | H20: 1.625 | I20: 1.625 | J20: 0.6250000004 | K20: 0.8125000002 | L20: 0 | M20: 0 | N20: 0 | O20: 0 | P20: 1.625 | Q20: 0.8125000002 | R20: 1 | S20: 2 | T20: 1.995605469 | V20: t | W20: a | X20: f | Y20: ∫f | AA20: 3 | AB20: 1.991210937 | AC20: 1.991210937 | AD20: 0.1787109375 | AE20: 0.9956054687 | AF20: 0 | AG20: 0 | AH20: 0 | AI20: 0 | AJ20: 1.901855469 | AK20: 0.9956054687 | AL20: 1 | AM20: 2 | AN20: 1.991210937 | AR20: 5 | AS20: 0.08715574275 | AT20: 0.9961946981 | AV20: 5 | AW20: 0.001521154673 | AX20: 0.01738687747 | AY20: -0.9961947947 | AZ20: 0.08715353031 | BA20: 0 | BB20: 0 | BC20: -9.659726119e-08 | BD20: -2.212441022e-06
B21: 0 | C21: 0 | D21: 0 | E21: 0 | G21: 0 | H21: 1.625 | I21: 1.995605469 | J21: 0.6250000004 | K21: 0.8125000002 | L21: 0 | M21: 0 | N21: 0 | O21: 0 | P21: 1.625 | Q21: 0.8125000002 | R21: 1 | S21: 2 | T21: 1.995605469 | V21: 0 | W21: 0 | X21: 0 | Y21: 0 | AA21: 4 | AB21: 1.991210937 | AC21: 1.991210937 | AD21: 0.1787109375 | AE21: 0.9956054688 | AF21: 0 | AG21: 0 | AH21: 0 | AI21: 0 | AJ21: 1.991210937 | AK21: 0.9956054688 | AL21: 1 | AM21: 2 | AN21: 1.999897003 | AR21: 6 | AS21: 0.1045284633 | AT21: 0.9945218954 | AV21: 6 | AW21: 0.001824365846 | AX21: 0.01735768156 | AY21: -0.9945220344 | AZ21: 0.1045258098 | BA21: 0 | BB21: 0 | BC21: -1.390612142e-07 | BD21: -2.653446036e-06
B22: 1 | C22: 0.5 | D22: 0 | E22: =E21+(B22-B21)*D21 -> 0 | G22: 1 | H22: 1.810302735 | I22: 1.995605469 | J22: 0.3706054684 | K22: 0.9051513673 | L22: 0 | M22: 0 | N22: 0 | O22: 0 | P22: 1.625 | Q22: 0.9051513673 | R22: 1 | S22: 2 | T22: 1.995605469 | V22: 1 | W22: 0.5 | X22: 0 | Y22: 0 | AA22: 0 | AB22: 1.991210937 | AC22: 1.999897003 | AD22: 0.1787109375 | AE22: 0.9956054688 | AF22: 0 | AG22: 0 | AH22: 0 | AI22: 0 | AJ22: 1.991210937 | AK22: 0.9956054688 | AL22: 1 | AM22: 2 | AN22: 1.999897003 | AR22: 7 | AS22: 0.1218693434 | AT22: 0.9925461516 | AV22: 7 | AW22: 0.0021270213 | AX22: 0.01732319832 | AY22: -0.9925463409 | AZ22: 0.1218662498 | BA22: 0 | BB22: 0 | BC22: -1.892152985e-07 | BD22: -3.093642785e-06
B23: 2 | C23: 1 | D23: 10 | E23: 0 | G23: 2 | H23: 1.810302735 | I23: 1.995605469 | J23: 0.3706054684 | K23: 0.9051513673 | L23: 0 | M23: 0 | N23: 0 | O23: 0 | P23: 1.810302735 | Q23: 0.9051513673 | R23: 1 | S23: 2 | T23: 1.995605469 | V23: 2 | W23: 1 | X23: 10 | Y23: 0 | AA23: 1 | AB23: 1.99555397 | AC23: 1.999897003 | AD23: 0.008686065674 | AE23: 0.9977769852 | AF23: 0 | AG23: 0 | AH23: 0 | AI23: 0 | AJ23: 1.991210937 | AK23: 0.9977769852 | AL23: 1 | AM23: 2 | AN23: 1.999897003 | AR23: 8 | AS23: 0.139173101 | AT23: 0.9902680687 | AV23: 8 | AW23: 0.002429028842 | AX23: 0.01728343828 | AY23: -0.9902683158 | AZ23: 0.1391695681 | BA23: 0 | BB23: 0 | BC23: -2.470442366e-07 | BD23: -3.53289718e-06
B24: 3 | C24: 2 | D24: 20 | E24: =E23+(B24-B23)*D23 -> 10 | G24: 3 | H24: 1.995605469 | I24: 1.995605469 | J24: 0.3706054684 | K24: 0.9978027344 | L24: 0 | M24: 0 | N24: 0 | O24: 0 | P24: 1.810302735 | Q24: 0.9978027344 | R24: 1 | S24: 2 | T24: 1.995605469 | V24: 3 | W24: 2 | X24: 20 | Y24: =Y23+(V24-V23)*(X24+X23)/2 -> 15 | AA24: 2 | AB24: 1.99555397 | AC24: 1.999897003 | AD24: 0.008686065674 | AE24: 0.9977769852 | AF24: 0 | AG24: 0 | AH24: 0 | AI24: 0 | AJ24: 1.99555397 | AK24: 0.9977769852 | AL24: 1 | AM24: 2 | AN24: 1.999897003 | AR24: 9 | AS24: 0.156434465 | AT24: 0.9876883406 | AV24: 9 | AW24: 0.002730296479 | AX24: 0.01723841353 | AY24: -0.9876886531 | AZ24: 0.156430494 | BA24: 0 | BB24: 0 | BC24: -3.125304134e-07 | BD24: -3.97107542e-06
B25: 4 | C25: 3 | D25: 0 | E25: 30 | G25: 4 | H25: 1.995605469 | I25: 1.995605469 | J25: 0.3706054684 | K25: 0.9978027344 | L25: 0 | M25: 0 | N25: 0 | O25: 0 | P25: 1.995605469 | Q25: 0.9978027344 | R25: 1 | S25: 2 | T25: 1.999987125 | V25: 4 | W25: 3 | X25: 30 | Y25: =Y24+(V25-V24)*(X25+X24)/2 -> 40 | AA25: 3 | AB25: 1.999897003 | AC25: 1.999897003 | AD25: 0.008686065674 | AE25: 0.9999485016 | AF25: 0 | AG25: 0 | AH25: 0 | AI25: 0 | AJ25: 1.99555397 | AK25: 0.9999485016 | AL25: 1 | AM25: 2 | AN25: 1.999897003 | AR25: 10 | AS25: 0.1736481777 | AT25: 0.984807753 | AV25: 10 | AW25: 0.00303073244 | AX25: 0.01718813779 | AY25: -0.9848081387 | AZ25: 0.1736437696 | BA25: 0 | BB25: 0 | BC25: -3.856538811e-07 | BD25: -4.408044032e-06
B26: 5 | C26: 3.5 | D26: 0 | E26: 30 | G26: 0 | H26: 1.995605469 | I26: 1.999987125 | J26: 0.3706054684 | K26: 0.9978027344 | L26: 0 | M26: 0 | N26: 0 | O26: 0 | P26: 1.995605469 | Q26: 0.9978027344 | R26: 1 | S26: 2 | T26: 1.999987125 | V26: 5 | W26: 3.5 | X26: 0 | Y26: =Y25 -> 40 | AA26: 4 | AB26: 1.999897003 | AC26: 1.999897003 | AD26: 0.008686065674 | AE26: 0.9999485016 | AF26: 0 | AG26: 0 | AH26: 0 | AI26: 0 | AJ26: 1.999897003 | AK26: 0.9999485016 | AL26: 1 | AM26: 2 | AN26: 1.999999698 | AR26: 11 | AS26: 0.1908089954 | AT26: 0.9816271834 | AV26: 11 | AW26: 0.003330245212 | AX26: 0.01713262638 | AY26: -0.9816276498 | AZ26: 0.1908041517 | BA26: 0 | BB26: 0 | BC26: -4.663923654e-07 | BD26: -4.843669911e-06
B27: 6 | C27: 4 | D27: 0 | E27: 30 | G27: 1 | H27: 1.997796297 | I27: 1.999987125 | J27: 0.004381656642 | K27: 0.9988981485 | L27: 0 | M27: 0 | N27: 0 | O27: 0 | P27: 1.995605469 | Q27: 0.9988981485 | R27: 1 | S27: 2 | T27: 1.999987125 | V27: 6 | W27: 4 | X27: 0 | Y27: =Y26 -> 40 | AA27: 0 | AB27: 1.999897003 | AC27: 1.999999698 | AD27: 0.008686065674 | AE27: 0.9999485016 | AF27: 0 | AG27: 0 | AH27: 0 | AI27: 0 | AJ27: 1.999897003 | AK27: 0.9999485016 | AL27: 1 | AM27: 2 | AN27: 1.999999698 | AR27: 12 | AS27: 0.2079116908 | AT27: 0.9781476007 | AV27: 12 | AW27: 0.003628743558 | AX27: 0.0170718962 | AY27: -0.9781481555 | AZ27: 0.207906413 | BA27: 0 | BB27: 0 | BC27: -5.547212728e-07 | BD27: -5.277820362e-06
G28: 2 | H28: 1.997796297 | I28: 1.999987125 | J28: 0.004381656642 | K28: 0.9988981485 | L28: 0 | M28: 0 | N28: 0 | O28: 0 | P28: 1.997796297 | Q28: 0.9988981485 | R28: 1 | S28: 2 | T28: 1.999987125 | AA28: 1 | AB28: 1.999948351 | AC28: 1.999999698 | AD28: 0.0001026950777 | AE28: 0.9999741754 | AF28: 0 | AG28: 0 | AH28: 0 | AI28: 0 | AJ28: 1.999897003 | AK28: 0.9999741754 | AL28: 1 | AM28: 2 | AN28: 1.999999698 | AR28: 13 | AS28: 0.2249510543 | AT28: 0.9743700648 | AV28: 13 | AW28: 0.003926136554 | AX28: 0.01700596576 | AY28: -0.9743707154 | AZ28: 0.224945344 | BA28: 0 | BB28: 0 | BC28: -6.506136976e-07 | BD28: -5.710363137e-06
G29: 3 | H29: 1.999987125 | I29: 1.999987125 | J29: 0.004381656642 | K29: 0.9999935627 | L29: 0 | M29: 0 | N29: 0 | O29: 0 | P29: 1.997796297 | Q29: 0.9999935627 | R29: 1 | S29: 2 | T29: 1.999987125 | AA29: 2 | AB29: 1.999948351 | AC29: 1.999999698 | AD29: 0.0001026950777 | AE29: 0.9999741754 | AF29: 0 | AG29: 0 | AH29: 0 | AI29: 0 | AJ29: 1.999948351 | AK29: 0.9999741754 | AL29: 1 | AM29: 2 | AN29: 1.999999698 | AR29: 14 | AS29: 0.2419218956 | AT29: 0.9702957263 | AV29: 14 | AW29: 0.004222333611 | AX29: 0.01693485514 | AY29: -0.9702964803 | AZ29: 0.2419157544 | BA29: 0 | BB29: 0 | BC29: -7.540404297e-07 | BD29: -6.141166481e-06
G30: 4 | H30: 1.999987125 | I30: 1.999987125 | J30: 0.004381656642 | K30: 0.9999935627 | L30: 0 | M30: 0 | N30: 0 | O30: 0 | P30: 1.999987125 | Q30: 0.9999935627 | R30: 1 | S30: 2 | T30: 1.999999991 | AA30: 3 | AB30: 1.999999698 | AC30: 1.999999698 | AD30: 0.0001026950777 | AE30: 0.9999998491 | AF30: 0 | AG30: 0 | AH30: 0 | AI30: 0 | AJ30: 1.999948351 | AK30: 0.9999998491 | AL30: 1 | AM30: 2 | AN30: 1.999999698 | AR30: 15 | AS30: 0.2588190451 | AT30: 0.9659258263 | AV30: 15 | AW30: 0.004517244504 | AX30: 0.016858586 | AY30: -0.9659266913 | AZ30: 0.258812475 | BA30: 0 | BB30: 0 | BC30: -8.649699644e-07 | BD30: -6.570099165e-06
G31: 0 | H31: 1.999987125 | I31: 1.999999991 | J31: 0.004381656642 | K31: 0.9999935627 | L31: 0 | M31: 0 | N31: 0 | O31: 0 | P31: 1.999987125 | Q31: 0.9999935627 | R31: 1 | S31: 2 | T31: 1.999999991 | AA31: 4 | AB31: 1.999999698 | AC31: 1.999999698 | AD31: 0.0001026950777 | AE31: 0.9999998491 | AF31: 0 | AG31: 0 | AH31: 0 | AI31: 0 | AJ31: 1.999999698 | AK31: 0.9999998491 | AL31: 1 | AM31: 2 | AN31: 2 | AR31: 16 | AS31: 0.2756373558 | AT31: 0.9612616959 | AV31: 16 | AW31: 0.0048107794 | AX31: 0.01677718157 | AY31: -0.9612626793 | AZ31: 0.2756303588 | BA31: 0 | BB31: 0 | BC31: -9.833685115e-07 | BD31: -6.997030534e-06
G32: 1 | H32: 1.999993558 | I32: 1.999999991 | J32: 1.286517362e-05 | K32: 0.999996779 | L32: 0 | M32: 0 | N32: 0 | O32: 0 | P32: 1.999987125 | Q32: 0.999996779 | R32: 1 | S32: 2 | T32: 1.999999991 | AA32: 0 | AB32: 1.999999698 | AC32: 2 | AD32: 0.0001026950777 | AE32: 0.9999998491 | AF32: 0 | AG32: 0 | AH32: 0 | AI32: 0 | AJ32: 1.999999698 | AK32: 0.9999998491 | AL32: 1 | AM32: 2 | AN32: 2 | AR32: 17 | AS32: 0.2923717047 | AT32: 0.956304756 | AV32: 17 | AW32: 0.005102848887 | AX32: 0.01669066664 | AY32: -0.9563058652 | AZ32: 0.2923642829 | BA32: 0 | BB32: 0 | BC32: -1.109200006e-06 | BD32: -7.42183054e-06
G33: 2 | H33: 1.999993558 | I33: 1.999999991 | J33: 1.286517362e-05 | K33: 0.999996779 | L33: 0 | M33: 0 | N33: 0 | O33: 0 | P33: 1.999993558 | Q33: 0.999996779 | R33: 1 | S33: 2 | T33: 1.999999991 | AA33: 1 | AB33: 1.999999849 | AC33: 2 | AD33: 3.01527507e-07 | AE33: 0.9999999245 | AF33: 0 | AG33: 0 | AH33: 0 | AI33: 0 | AJ33: 1.999999698 | AK33: 0.9999999245 | AL33: 1 | AM33: 2 | AN33: 2 | AR33: 18 | AS33: 0.3090169944 | AT33: 0.9510565163 | AV33: 18 | AW33: 0.005393363996 | AX33: 0.01659906758 | AY33: -0.9510577587 | AZ33: 0.30900915 | BA33: 0 | BB33: 0 | BC33: -1.242426118e-06 | BD33: -7.844369784e-06
G34: 3 | H34: 1.999999991 | I34: 1.999999991 | J34: 1.286517362e-05 | K34: 0.9999999953 | L34: 0 | M34: 0 | N34: 0 | O34: 0 | P34: 1.999993558 | Q34: 0.9999999953 | R34: 1 | S34: 2 | T34: 1.999999991 | AA34: 2 | AB34: 1.999999849 | AC34: 2 | AD34: 3.01527507e-07 | AE34: 0.9999999245 | AF34: 0 | AG34: 0 | AH34: 0 | AI34: 0 | AJ34: 1.999999849 | AK34: 0.9999999245 | AL34: 1 | AM34: 2 | AN34: 2 | AR34: 19 | AS34: 0.3255681545 | AT34: 0.9455185756 | AV34: 19 | AW34: 0.005682236235 | AX34: 0.01650241228 | AY34: -0.9455199586 | AZ34: 0.3255598899 | BA34: 0 | BB34: 0 | BC34: -1.383006265e-06 | BD34: -8.264519557e-06
G35: 4 | H35: 1.999999991 | I35: 1.999999991 | J35: 1.286517362e-05 | K35: 0.9999999953 | L35: 0 | M35: 0 | N35: 0 | O35: 0 | P35: 1.999999991 | Q35: 0.9999999953 | R35: 1 | S35: 2 | T35: 2 | AA35: 3 | AB35: 2 | AC35: 2 | AD35: 3.01527507e-07 | AE35: 0.9999999999 | AF35: 0 | AG35: 0 | AH35: 0 | AI35: 0 | AJ35: 1.999999849 | AK35: 0.9999999999 | AL35: 1 | AM35: 2 | AN35: 2 | AR35: 20 | AS35: 0.3420201433 | AT35: 0.9396926208 | AV35: 20 | AW35: 0.005969377609 | AX35: 0.01640073019 | AY35: -0.9396941517 | AZ35: 0.3420114612 | BA35: 0 | BB35: 0 | BC35: -1.530897626e-06 | BD35: -8.682151877e-06
G36: 0 | H36: 1.999999991 | I36: 2 | J36: 1.286517362e-05 | K36: 0.9999999953 | L36: 0 | M36: 0 | N36: 0 | O36: 0 | P36: 1.999999991 | Q36: 0.9999999953 | R36: 1 | S36: 2 | T36: 2 | AA36: 4 | AB36: 2 | AC36: 2 | AD36: 3.01527507e-07 | AE36: 0.9999999999 | AF36: 9.999999999 | AG36: 0 | AH36: 1 | AI36: 1 | AJ36: 2 | AK36: 0.9999999999 | AL36: 2 | AM36: 2 | AN36: 4 | AR36: 21 | AS36: 0.3583679495 | AT36: 0.9335804265 | AV36: 21 | AW36: 0.006254700653 | AX36: 0.01629405227 | AY36: -0.9335821126 | AZ36: 0.3583588524 | BA36: 0 | BB36: 0 | BC36: -1.686055152e-06 | BD36: -9.09713953e-06
G37: 1 | H37: 1.999999995 | I37: 2 | J37: 9.427914449e-09 | K37: 0.9999999976 | L37: 0 | M37: 0 | N37: 0 | O37: 0 | P37: 1.999999991 | Q37: 0.9999999976 | R37: 1 | S37: 2 | T37: 2 | AA37: 0 | AB37: 2 | AC37: 4 | AD37: 3.01527507e-07 | AE37: 0.9999999999 | AF37: 9.999999999 | AG37: 0 | AH37: 1 | AI37: 1 | AJ37: 2 | AK37: 0.9999999999 | AL37: 2 | AM37: 2 | AN37: 4 | AR37: 22 | AS37: 0.3746065934 | AT37: 0.9271838546 | AV37: 22 | AW37: 0.006538118455 | AX37: 0.01618241103 | AY37: -0.927185703 | AZ37: 0.3745970841 | BA37: 0 | BB37: 0 | BC37: -1.84843158e-06 | BD37: -9.509356105e-06
G38: 2 | H38: 1.999999995 | I38: 2 | J38: 9.427914449e-09 | K38: 0.9999999976 | L38: 0 | M38: 0 | N38: 0 | O38: 0 | P38: 1.999999995 | Q38: 0.9999999976 | R38: 1 | S38: 2 | T38: 2 | AA38: 1 | AB38: 2.5 | AC38: 4 | AD38: 1 | AE38: 1.5 | AF38: 15 | AG38: 5.000000001 | AH38: 1 | AI38: 1 | AJ38: 2 | AK38: 1.5 | AL38: 2 | AM38: 2 | AN38: 4 | AR38: 23 | AS38: 0.3907311285 | AT38: 0.9205048535 | AV38: 23 | AW38: 0.006819544682 | AX38: 0.01606584047 | AY38: -0.9205068714 | AZ38: 0.3907212098 | BA38: 0 | BB38: 0 | BC38: -2.017977447e-06 | BD38: -9.918676039e-06
G39: 3 | H39: 2 | I39: 2 | J39: 9.427914449e-09 | K39: 1 | L39: 0 | M39: 0 | N39: 0 | O39: 0 | P39: 1.999999995 | Q39: 1 | R39: 1 | S39: 2 | T39: 2 | AA39: 2 | AB39: 2.5 | AC39: 4 | AD39: 1 | AE39: 1.5 | AF39: 15 | AG39: 6.464466095 | AH39: 1 | AI39: 1 | AJ39: 2.5 | AK39: 1.5 | AL39: 2 | AM39: 1 | AN39: 4 | AR39: 24 | AS39: 0.4067366431 | AT39: 0.9135454576 | AV39: 24 | AW39: 0.00709889361 | AX39: 0.0159443761 | AY39: -0.9135476523 | AZ39: 0.4067263181 | BA39: 0 | BB39: 0 | BC39: -2.194641111e-06 | BD39: -1.032497465e-05
G40: 4 | H40: 2 | I40: 2 | J40: 9.427914449e-09 | K40: 1 | L40: 10 | M40: 0 | N40: 1 | O40: 1 | P40: 2 | Q40: 1 | R40: 2 | S40: 2 | T40: 2.000000002 | AA40: 3 | AB40: 3 | AC40: 4 | AD40: 1 | AE40: 2 | AF40: 20 | AG40: 15 | AH40: 1 | AI40: 1 | AJ40: 2.5 | AK40: 2 | AL40: 2 | AM40: 1 | AN40: 4 | AR40: 25 | AS40: 0.4226182617 | AT40: 0.906307787 | AV40: 25 | AW40: 0.007376080146 | AX40: 0.01581805492 | AY40: -0.9063101654 | AZ40: 0.4226075336 | BA40: 0 | BB40: 0 | BC40: -2.378368756e-06 | BD40: -1.072812817e-05
G41: 0 | H41: 2 | I41: 2.000000002 | J41: 9.427914449e-09 | K41: 1 | L41: 10 | M41: 0 | N41: 1 | O41: 1 | P41: 2 | Q41: 1 | R41: 2 | S41: 2 | T41: 2.000000002 | AA41: 4 | AB41: 3 | AC41: 4 | AD41: 1 | AE41: 2 | AF41: 20 | AG41: 15 | AH41: 1 | AI41: 1 | AJ41: 3 | AK41: 2 | AL41: 2 | AM41: 1 | AN41: 3 | AR41: 26 | AS41: 0.4383711468 | AT41: 0.8987940463 | AV41: 26 | AW41: 0.007651019857 | AX41: 0.01568691541 | AY41: -0.8987966154 | AZ41: 0.4383600188 | BA41: 0 | BB41: 0 | BC41: -2.569104417e-06 | BD41: -1.11280138e-05
G42: 1 | H42: 2.000000001 | I42: 2.000000002 | J42: 2.000000165e-09 | K42: 1.000000001 | L42: 10 | M42: 1.000000083e-08 | N42: 1 | O42: 1 | P42: 2 | Q42: 1.000000001 | R42: 2 | S42: 2 | T42: 2.000000002 | AA42: 1 | AB42: 3.5 | AC42: 4 | AD42: 0.9999999998 | AE42: 2.5 | AF42: 25 | AG42: 25 | AH42: 1 | AI42: 1 | AJ42: 3 | AK42: 2.5 | AL42: 2 | AM42: 1 | AN42: 3 | AR42: 27 | AS42: 0.4539904997 | AT42: 0.8910065242 | AV42: 27 | AW42: 0.007923628993 | AX42: 0.0155509975 | AY42: -0.891009291 | AZ42: 0.4539789752 | BA42: 0 | BB42: 0 | BC42: -2.766789995e-06 | BD42: -1.152450973e-05
G43: 2 | H43: 2.000000001 | I43: 2.000000002 | J43: 2.000000165e-09 | K43: 1.000000001 | L43: 10 | M43: 1.000000083e-08 | N43: 1 | O43: 1 | P43: 2.000000001 | Q43: 1.000000001 | R43: 2 | S43: 1 | T43: 2.000000002 | AA43: 2 | AB43: 3.5 | AC43: 4 | AD43: 0.9999999998 | AE43: 2.5 | AF43: 25 | AG43: 26.4644661 | AH43: 1 | AI43: 1 | AJ43: 3.5 | AK43: 2.5 | AL43: 2 | AM43: 1 | AN43: 3 | AR43: 28 | AS43: 0.4694715628 | AT43: 0.8829475929 | AV43: 28 | AW43: 0.008193824515 | AX43: 0.01541034262 | AY43: -0.8829505642 | AZ43: 0.4694596453 | BA43: 0 | BB43: 0 | BC43: -2.971365272e-06 | BD43: -1.191749518e-05
G44: 3 | H44: 2.000000002 | I44: 2.000000002 | J44: 2.000000165e-09 | K44: 1.000000002 | L44: 10 | M44: 2.000000165e-08 | N44: 1 | O44: 1 | P44: 2.000000001 | Q44: 1.000000002 | R44: 2 | S44: 1 | T44: 2.000000002 | AA44: 3 | AB44: 4 | AC44: 4 | AD44: 0.9999999998 | AE44: 3 | AF44: 30 | AG44: 40 | AH44: 1 | AI44: 1 | AJ44: 3.5 | AK44: 3 | AL44: 2 | AM44: 1 | AN44: 3 | AR44: 29 | AS44: 0.4848096202 | AT44: 0.8746197071 | AV44: 29 | AW44: 0.008461524119 | AX44: 0.01526499359 | AY44: -0.8746228899 | AZ44: 0.4847973134 | BA44: 0 | BB44: 0 | BC44: -3.182767934e-06 | BD44: -1.230685045e-05
G45: 4 | H45: 2.000000002 | I45: 2.000000002 | J45: 2.000000165e-09 | K45: 1.000000002 | L45: 10 | M45: 2.000000165e-08 | N45: 1 | O45: 1 | P45: 2.000000002 | Q45: 1.000000002 | R45: 2 | S45: 1 | T45: 3 | AA45: 4 | AB45: 4 | AC45: 4 | AD45: 0.9999999998 | AE45: 3 | AF45: 30 | AG45: 40 | AH45: 2 | AI45: 2 | AJ45: 4 | AK45: 3 | AL45: 3 | AM45: 1 | AN45: 4 | AR45: 30 | AS45: 0.5 | AT45: 0.8660254038 | AV45: 30 | AW45: 0.00872664626 | AX45: 0.0151149947 | AY45: -0.8660288047 | AZ45: 0.4999873075 | BA45: 0 | BB45: 0 | BC45: -3.400933585e-06 | BD45: -1.269245693e-05
G46: 0 | H46: 2.000000002 | I46: 3 | J46: 2.000000165e-09 | K46: 1.000000002 | L46: 10 | M46: 2.000000165e-08 | N46: 1 | O46: 1 | P46: 2.000000002 | Q46: 1.000000002 | R46: 2 | S46: 1 | T46: 3 | AA46: 0 | AB46: 4 | AC46: 6 | AD46: 0.9999999998 | AE46: 3 | AF46: 30 | AG46: 40 | AH46: 2 | AI46: 2 | AJ46: 4 | AK46: 3 | AL46: 3 | AM46: 1 | AN46: 4 | AR46: 31 | AS46: 0.5150380749 | AT46: 0.8571673007 | AV46: 31 | AW46: 0.00898911018 | AX46: 0.01496039164 | AY46: -0.8571709265 | AZ46: 0.5150250007 | BA46: 0 | BB46: 0 | BC46: -3.625795769e-06 | BD46: -1.307419717e-05
G47: 1 | H47: 2.500000001 | I47: 3 | J47: 0.999999998 | K47: 1.500000001 | L47: 10 | M47: 5.00000001 | N47: 1 | O47: 1 | P47: 2.000000002 | Q47: 1.500000001 | R47: 2 | S47: 1 | T47: 3 | AA47: 1 | AB47: 4.5 | AC47: 6 | AD47: 1 | AE47: 3.25 | AF47: 32.5 | AG47: 55 | AH47: 2 | AI47: 2 | AJ47: 4 | AK47: 3.25 | AL47: 3 | AM47: 1 | AN47: 4 | AR47: 32 | AS47: 0.5299192642 | AT47: 0.8480480962 | AV47: 32 | AW47: 0.009248835931 | AX47: 0.01480123149 | AY47: -0.8480519534 | AZ47: 0.5299058123 | BA47: 0 | BB47: 0 | BC47: -3.85728599e-06 | BD47: -1.345195488e-05
G48: 2 | H48: 2.500000001 | I48: 3 | J48: 0.999999998 | K48: 1.500000001 | L48: 10 | M48: 5.00000001 | N48: 1 | O48: 1 | P48: 2.500000001 | Q48: 1.500000001 | R48: 2 | S48: 1 | T48: 3 | AA48: 2 | AB48: 4.5 | AC48: 6 | AD48: 1 | AE48: 3.25 | AF48: 32.5 | AG48: 55.73223305 | AH48: 2 | AI48: 2 | AJ48: 4.5 | AK48: 3.25 | AL48: 3 | AM48: 2 | AN48: 4 | AR48: 33 | AS48: 0.544639035 | AT48: 0.8386705679 | AV48: 33 | AW48: 0.009505744396 | AX48: 0.01463756275 | AY48: -0.8386746633 | AZ48: 0.5446252094 | BA48: 0 | BB48: 0 | BC48: -4.095333736e-06 | BD48: -1.382561499e-05
G49: 3 | H49: 3 | I49: 3 | J49: 0.999999998 | K49: 2 | L49: 10 | M49: 10 | N49: 1 | O49: 1 | P49: 2.500000001 | Q49: 2 | R49: 2 | S49: 1 | T49: 3 | AA49: 3 | AB49: 5 | AC49: 6 | AD49: 1 | AE49: 3.5 | AF49: 35 | AG49: 72.5 | AH49: 2 | AI49: 2 | AJ49: 4.5 | AK49: 3.5 | AL49: 3 | AM49: 2 | AN49: 4 | AR49: 34 | AS49: 0.5591929035 | AT49: 0.8290375726 | AV49: 34 | AW49: 0.009759757319 | AX49: 0.01446943526 | AY49: -0.8290419124 | AZ49: 0.5591787084 | BA49: 0 | BB49: 0 | BC49: -4.339866495e-06 | BD49: -1.419506369e-05
G50: 4 | H50: 3 | I50: 3 | J50: 0.999999998 | K50: 2 | L50: 2000 | M50: 10 | N50: 2 | O50: 2 | P50: 3 | Q50: 2 | R50: 2 | S50: 1 | T50: 3.000000002 | AA50: 4 | AB50: 5 | AC50: 6 | AD50: 1 | AE50: 3.5 | AF50: 0 | AG50: 72.5 | AH50: 3 | AI50: 3 | AJ50: 5 | AK50: 3.5 | AL50: 1e+50 | AM50: 2 | AN50: 1.625e+50 | AR50: 35 | AS50: 0.5735764364 | AT50: 0.8191520443 | AV50: 35 | AW50: 0.01001079733 | AX50: 0.01429690025 | AY50: -0.8191566351 | AZ50: 0.5735618762 | BA50: 0 | BB50: 0 | BC50: -4.590809778e-06 | BD50: -1.456018843e-05
G51: 0 | H51: 3 | I51: 3.000000002 | J51: 0.999999998 | K51: 2 | L51: 2000 | M51: 10 | N51: 2 | O51: 2 | P51: 3 | Q51: 2 | R51: 2 | S51: 1 | T51: 3.000000002 | AA51: 1 | AB51: 5.5 | AC51: 6 | AD51: 0.9999999998 | AE51: 3.75 | AF51: 0 | AG51: 72.5 | AH51: 3 | AI51: 3 | AJ51: 5 | AK51: 3.75 | AL51: 1e+50 | AM51: 2 | AN51: 1.625e+50 | AR51: 36 | AS51: 0.5877852523 | AT51: 0.8090169944 | AV51: 36 | AW51: 0.01025878795 | AX51: 0.01412001026 | AY51: -0.8090218425 | AZ51: 0.5877703314 | BA51: 0 | BB51: 0 | BC51: -4.848087147e-06 | BD51: -1.4920878e-05
G52: 1 | H52: 3.000000001 | I52: 3.000000002 | J52: 2.000000165e-09 | K52: 2.000000001 | L52: 2000 | M52: 10.000002 | N52: 2 | O52: 2 | P52: 3 | Q52: 2.000000001 | R52: 2 | S52: 1 | T52: 3.000000002 | AA52: 2 | AB52: 5.5 | AC52: 6 | AD52: 0.9999999998 | AE52: 3.75 | AF52: 0 | AG52: 72.5 | AH52: 3 | AI52: 3 | AJ52: 5.5 | AK52: 3.75 | AL52: 1e+50 | AM52: 2 | AN52: 1.625e+50 | AR52: 37 | AS52: 0.6018150232 | AT52: 0.79863551 | AV52: 37 | AW52: 0.01050365364 | AX52: 0.01393881917 | AY52: -0.7986406217 | AZ52: 0.6017997461 | BA52: 0 | BB52: 0 | BC52: -5.111620233e-06 | BD52: -1.527702252e-05
G53: 2 | H53: 3.000000001 | I53: 3.000000002 | J53: 2.000000165e-09 | K53: 2.000000001 | L53: 2000 | M53: 10.000002 | N53: 2 | O53: 2 | P53: 3.000000001 | Q53: 2.000000001 | R53: 2 | S53: 1 | T53: 3.000000002 | AA53: 3 | AB53: 6 | AC53: 6 | AD53: 0.9999999998 | AE53: 4 | AF53: 0 | AG53: 72.5 | AH53: 3 | AI53: 3 | AJ53: 5.5 | AK53: 4 | AL53: 1e+50 | AM53: 2 | AN53: 1.625e+50 | AR53: 38 | AS53: 0.6156614753 | AT53: 0.7880107536 | AV53: 38 | AW53: 0.01074531982 | AX53: 0.01375338219 | AY53: -0.7880161349 | AZ53: 0.6156458468 | BA53: 0 | BB53: 0 | BC53: -5.38132876e-06 | BD53: -1.562851352e-05
G54: 3 | H54: 3.000000002 | I54: 3.000000002 | J54: 2.000000165e-09 | K54: 2.000000002 | L54: 2000 | M54: 10.000004 | N54: 2 | O54: 2 | P54: 3.000000001 | Q54: 2.000000002 | R54: 2 | S54: 1 | T54: 3.000000002 | AA54: 4 | AB54: 6 | AC54: 6 | AD54: 0.9999999998 | AE54: 4 | AF54: 0 | AG54: 72.5 | AH54: 3 | AI54: 3 | AJ54: 6 | AK54: 4 | AL54: 1e+50 | AM54: 2 | AN54: 1.90625e+50 | AR54: 39 | AS54: 0.629320391 | AT54: 0.7771459615 | AV54: 39 | AW54: 0.01098371287 | AX54: 0.0135637558 | AY54: -0.7771516186 | AZ54: 0.6293044158 | BA54: 0 | BB54: 0 | BC54: -5.657130572e-06 | BD54: -1.597524392e-05
G55: 4 | H55: 3.000000002 | I55: 3.000000002 | J55: 2.000000165e-09 | K55: 2.000000002 | L55: 20 | M55: 10.000004 | N55: 3 | O55: 3 | P55: 3.000000002 | Q55: 2.000000002 | R55: 3 | S55: 1 | T55: 3.000000002 | AA55: 3 | AB55: 5.625 | AC55: 5.625 | AD55: 0.6249999997 | AE55: 3.625000001 | AF55: 0 | AG55: 55.00000002 | AH55: 3 | AI55: 3 | AJ55: 5.3125 | AK55: 3.625000001 | AL55: 1e+50 | AM55: 1 | AN55: 8.125e+49 | AR55: 40 | AS55: 0.6427876097 | AT55: 0.7660444431 | AV55: 40 | AW55: 0.01121876018 | AX55: 0.01336999775 | AY55: -0.7660503821 | AZ55: 0.6427712926 | BA55: 0 | BB55: 0 | BC55: -5.938941659e-06 | BD55: -1.63171081e-05
G56: 0 | H56: 3.000000002 | I56: 5.000000002 | J56: 2.000000165e-09 | K56: 2.000000002 | L56: 20 | M56: 10.000004 | N56: 3 | O56: 3 | P56: 3.000000002 | Q56: 2.000000002 | R56: 3 | S56: 1 | T56: 3.000000002 | AA56: 4 | AB56: 5.625 | AC56: 5.625 | AD56: 0.6249999997 | AE56: 3.625000001 | AF56: 0 | AG56: 55.00000002 | AH56: 3 | AI56: 3 | AJ56: 5.625 | AK56: 3.625000001 | AL56: 1e+50 | AM56: 1 | AN56: 9.53125e+49 | AR56: 41 | AS56: 0.656059029 | AT56: 0.7547095802 | AV56: 41 | AW56: 0.01145039014 | AX56: 0.01317216707 | AY56: -0.7547158069 | AZ56: 0.656042375 | BA56: 0 | BB56: 0 | BC56: -6.226676177e-06 | BD56: -1.665400194e-05
G57: 1 | H57: 3.500000001 | I57: 5.000000002 | J57: 0.999999998 | K57: 2.500000001 | L57: 20 | M57: 20.00000398 | N57: 3 | O57: 3 | P57: 3.000000002 | Q57: 2.500000001 | R57: 3 | S57: 1 | T57: 3.000000002 | AA57: 0 | AB57: 5.625 | AC57: 7.625 | AD57: 0.6249999997 | AE57: 3.625000001 | AF57: 0 | AG57: 55.00000002 | AH57: 3 | AI57: 3 | AJ57: 5.625 | AK57: 3.625000001 | AL57: 1e+50 | AM57: 1 | AN57: 9.53125e+49 | AR57: 42 | AS57: 0.6691306064 | AT57: 0.7431448255 | AV57: 42 | AW57: 0.01167853221 | AX57: 0.01297032402 | AY57: -0.7431513457 | AZ57: 0.6691136205 | BA57: 0 | BB57: 0 | BC57: -6.52024648e-06 | BD57: -1.69858228e-05
G58: 2 | H58: 3.500000001 | I58: 5.000000002 | J58: 0.999999998 | K58: 2.500000001 | L58: 20 | M58: 20.00000398 | N58: 3 | O58: 3 | P58: 3.500000001 | Q58: 2.500000001 | R58: 3 | S58: 1 | T58: 3.000000002 | AA58: 1 | AB58: 5.8125 | AC58: 7.625 | AD58: 0.3750000003 | AE58: 3.812500001 | AF58: 0 | AG58: 55.00000002 | AH58: 3 | AI58: 3 | AJ58: 5.625 | AK58: 3.812500001 | AL58: 1e+50 | AM58: 1 | AN58: 9.53125e+49 | AR58: 43 | AS58: 0.6819983601 | AT58: 0.7313537016 | AV58: 43 | AW58: 0.01190311688 | AX58: 0.01276453009 | AY58: -0.7313605212 | AZ58: 0.6819810476 | BA58: 0 | BB58: 0 | BC58: -6.819563144e-06 | BD58: -1.731246962e-05
G59: 3 | H59: 4 | I59: 5.000000002 | J59: 0.999999998 | K59: 3 | L59: 20 | M59: 30.00000396 | N59: 3 | O59: 3 | P59: 3.500000001 | Q59: 3 | R59: 3 | S59: 1 | T59: 3.000000002 | AA59: 2 | AB59: 5.8125 | AC59: 7.625 | AD59: 0.3750000003 | AE59: 3.812500001 | AF59: 0 | AG59: 55.00000002 | AH59: 3 | AI59: 3 | AJ59: 5.8125 | AK59: 3.812500001 | AL59: 1e+50 | AM59: 1 | AN59: 9.53125e+49 | AR59: 44 | AS59: 0.6946583705 | AT59: 0.7193398003 | AV59: 44 | AW59: 0.01212407574 | AX59: 0.01255484796 | AY59: -0.7193469249 | AZ59: 0.6946407366 | BA59: 0 | BB59: 0 | BC59: -7.124534993e-06 | BD59: -1.76338429e-05
G60: 4 | H60: 4 | I60: 5.000000002 | J60: 0.999999998 | K60: 3 | L60: 0 | M60: 30.00000396 | N60: 4 | O60: 4 | P60: 4 | Q60: 3 | R60: 1e+50 | S60: 1 | T60: 4.000000002 | AA60: 3 | AB60: 6 | AC60: 7.625 | AD60: 0.3750000003 | AE60: 4.000000001 | AF60: 0 | AG60: 55.00000002 | AH60: 3 | AI60: 3 | AJ60: 5.8125 | AK60: 4.000000001 | AL60: 1e+50 | AM60: 1 | AN60: 9.53125e+49 | AR60: 45 | AS60: 0.7071067812 | AT60: 0.7071067812 | AV60: 45 | AW60: 0.01234134149 | AX60: 0.01234134149 | AY60: -0.7071142163 | AZ60: 0.7070888313 | BA60: 0 | BB60: 0 | BC60: -7.43506913e-06 | BD60: -1.794984473e-05
G61: 1 | H61: 4.5 | I61: 5.000000002 | J61: 1 | K61: 3.5 | L61: 0 | M61: 30.00000396 | N61: 4 | O61: 4 | P61: 4 | Q61: 3.5 | R61: 1e+50 | S61: 1 | T61: 4.000000002 | AA61: 4 | AB61: 6 | AC61: 7.625 | AD61: 0.3750000003 | AE61: 4.000000001 | AF61: 0 | AG61: 55.00000002 | AH61: 3 | AI61: 3 | AJ61: 6 | AK61: 4.000000001 | AL61: 1e+50 | AM61: 1 | AN61: 9.8828125e+49 | AR61: 46 | AS61: 0.7193398003 | AT61: 0.6946583705 | AV61: 46 | AW61: 0.01255484796 | AX61: 0.01212407574 | AY61: -0.6946661215 | AZ61: 0.71932154 | BA61: 0 | BB61: 0 | BC61: -7.751070964e-06 | BD61: -1.826037887e-05
G62: 2 | H62: 4.5 | I62: 5.000000002 | J62: 1 | K62: 3.5 | L62: 0 | M62: 30.00000396 | N62: 4 | O62: 4 | P62: 4.5 | Q62: 3.5 | R62: 1e+50 | S62: 1 | T62: 4.000000002 | AA62: 1 | AB62: 6.5 | AC62: 7.625 | AD62: 1 | AE62: 4.500000001 | AF62: 0 | AG62: 55.00000002 | AH62: 3 | AI62: 3 | AJ62: 6 | AK62: 4.500000001 | AL62: 1e+50 | AM62: 1 | AN62: 9.8828125e+49 | AR62: 47 | AS62: 0.7313537016 | AT62: 0.6819983601 | AV62: 47 | AW62: 0.01276453009 | AX62: 0.01190311688 | AY62: -0.6820064325 | AZ62: 0.7313351363 | BA62: 0 | BB62: 0 | BC62: -8.072444238e-06 | BD62: -1.856535072e-05
G63: 3 | H63: 5 | I63: 5.000000002 | J63: 1 | K63: 4 | L63: 0 | M63: 30.00000396 | N63: 4 | O63: 4 | P63: 4.5 | Q63: 4 | R63: 1e+50 | S63: 1 | T63: 4.000000002 | AA63: 2 | AB63: 6.5 | AC63: 7.625 | AD63: 1 | AE63: 4.500000001 | AF63: 0 | AG63: 55.00000002 | AH63: 3 | AI63: 3 | AJ63: 6.5 | AK63: 4.500000001 | AL63: 1e+50 | AM63: 1 | AN63: 9.8828125e+49 | AR63: 48 | AS63: 0.7431448255 | AT63: 0.6691306064 | AV63: 48 | AW63: 0.01297032402 | AX63: 0.01167853221 | AY63: -0.6691390054 | AZ63: 0.7431259608 | BA63: 0 | BB63: 0 | BC63: -8.399091057e-06 | BD63: -1.886466738e-05
G64: 4 | H64: 5 | I64: 5.000000002 | J64: 1 | K64: 4 | L64: 0 | M64: 30.00000396 | N64: 4 | O64: 4 | P64: 5 | Q64: 4 | R64: 1e+50 | S64: 1 | T64: 8.125e+49 | AA64: 3 | AB64: 7 | AC64: 7.625 | AD64: 1 | AE64: 5.000000001 | AF64: 0 | AG64: 55.00000002 | AH64: 3 | AI64: 3 | AJ64: 6.5 | AK64: 5.000000001 | AL64: 1e+50 | AM64: 1 | AN64: 9.8828125e+49 | AR64: 49 | AS64: 0.7547095802 | AT64: 0.656059029 | AV64: 49 | AW64: 0.01317216707 | AX64: 0.01145039014 | AY64: -0.6560677599 | AZ64: 0.754690422 | BA64: 0 | BB64: 0 | BC64: -8.730911922e-06 | BD64: -1.915823768e-05
G65: 1 | H65: 5.000000001 | I65: 5.000000002 | J65: 1.99913508e-09 | K65: 4.000000001 | L65: 0 | M65: 30.00000396 | N65: 4 | O65: 4 | P65: 5 | Q65: 4.000000001 | R65: 1e+50 | S65: 1 | T65: 8.125e+49 | AA65: 4 | AB65: 7 | AC65: 7.625 | AD65: 1 | AE65: 5.000000001 | AF65: 0 | AG65: 55.00000002 | AH65: 3 | AI65: 3 | AJ65: 7 | AK65: 5.000000001 | AL65: 1e+50 | AM65: 1 | AN65: 9.970703125e+49 | AR65: 50 | AS65: 0.7660444431 | AT65: 0.6427876097 | AV65: 50 | AW65: 0.01336999775 | AX65: 0.01121876018 | AY65: -0.6427966775 | AZ65: 0.7660249971 | BA65: 0 | BB65: 0 | BC65: -9.067805758e-06 | BD65: -1.94459722e-05
G66: 2 | H66: 5.000000001 | I66: 5.000000002 | J66: 1.99913508e-09 | K66: 4.000000001 | L66: 0 | M66: 30.00000396 | N66: 4 | O66: 4 | P66: 5.000000001 | Q66: 4.000000001 | R66: 1e+50 | S66: 1 | T66: 8.125e+49 | AA66: 1 | AB66: 7.3125 | AC66: 7.625 | AD66: 0.6249999997 | AE66: 5.312500001 | AF66: 0 | AG66: 55.00000002 | AH66: 3 | AI66: 3 | AJ66: 7 | AK66: 5.312500001 | AL66: 1e+50 | AM66: 1 | AN66: 9.970703125e+49 | AR66: 51 | AS66: 0.7771459615 | AT66: 0.629320391 | AV66: 51 | AW66: 0.0135637558 | AX66: 0.01098371287 | AY66: -0.6293298007 | AZ66: 0.7771262337 | BA66: 0 | BB66: 0 | BC66: -9.409669943e-06 | BD66: -1.972778329e-05
G67: 3 | H67: 5.000000002 | I67: 5.000000002 | J67: 1.99913508e-09 | K67: 4.000000002 | L67: 0 | M67: 30.00000396 | N67: 4 | O67: 4 | P67: 5.000000001 | Q67: 4.000000002 | R67: 1e+50 | S67: 1 | T67: 8.125e+49 | AA67: 2 | AB67: 7.3125 | AC67: 7.625 | AD67: 0.6249999997 | AE67: 5.312500001 | AF67: 0 | AG67: 55.00000002 | AH67: 3 | AI67: 3 | AJ67: 7.3125 | AK67: 5.312500001 | AL67: 1e+50 | AM67: 1 | AN67: 9.970703125e+49 | AR67: 52 | AS67: 0.7880107536 | AT67: 0.6156614753 | AV67: 52 | AW67: 0.01375338219 | AX67: 0.01074531982 | AY67: -0.6156712317 | AZ67: 0.78799075 | BA67: 0 | BB67: 0 | BC67: -9.756400342e-06 | BD67: -2.00035851e-05
G68: 4 | H68: 5.000000002 | I68: 5.000000002 | J68: 1.99913508e-09 | K68: 4.000000002 | L68: 0 | M68: 30.00000396 | N68: 4 | O68: 4 | P68: 5.000000002 | Q68: 4.000000002 | R68: 1e+50 | S68: 1 | T68: 9.53125e+49 | AA68: 3 | AB68: 7.625 | AC68: 7.625 | AD68: 0.6249999997 | AE68: 5.625000001 | AF68: 0 | AG68: 55.00000002 | AH68: 3 | AI68: 3 | AJ68: 7.3125 | AK68: 5.625000001 | AL68: 1e+50 | AM68: 1 | AN68: 9.970703125e+49 | AR68: 53 | AS68: 0.79863551 | AT68: 0.6018150232 | AV68: 53 | AW68: 0.01393881917 | AX68: 0.01050365364 | AY68: -0.601825131 | AZ68: 0.7986152368 | BA68: 0 | BB68: 0 | BC68: -1.010789134e-05 | BD68: -2.027329363e-05
G69: 0 | H69: 5.000000002 | I69: 7.000000002 | J69: 1.99913508e-09 | K69: 4.000000002 | L69: 0 | M69: 30.00000396 | N69: 4 | O69: 4 | P69: 5.000000002 | Q69: 4.000000002 | R69: 1e+50 | S69: 1 | T69: 9.53125e+49 | AA69: 4 | AB69: 7.625 | AC69: 7.625 | AD69: 0.6249999997 | AE69: 5.625000001 | AF69: 0 | AG69: 55.00000002 | AH69: 3 | AI69: 3 | AJ69: 7.625 | AK69: 5.625000001 | AL69: 1e+50 | AM69: 1 | AN69: 9.992675781e+49 | AR69: 54 | AS69: 0.8090169944 | AT69: 0.5877852523 | AV69: 54 | AW69: 0.01412001026 | AX69: 0.01025878795 | AY69: -0.5877957163 | AZ69: 0.8089964575 | BA69: 0 | BB69: 0 | BC69: -1.046403586e-05 | BD69: -2.053682671e-05
G70: 1 | H70: 5.500000001 | I70: 7.000000002 | J70: 0.999999998 | K70: 4.250000002 | L70: 0 | M70: 30.00000396 | N70: 4 | O70: 4 | P70: 5.000000002 | Q70: 4.250000002 | R70: 1e+50 | S70: 1 | T70: 9.53125e+49 | AA70: 0 | AB70: 7.625 | AC70: 9.625 | AD70: 0.6249999997 | AE70: 5.625000001 | AF70: 0 | AG70: 55.00000002 | AH70: 3 | AI70: 3 | AJ70: 7.625 | AK70: 5.625000001 | AL70: 1e+50 | AM70: 1 | AN70: 9.992675781e+49 | AR70: 55 | AS70: 0.8191520443 | AT70: 0.5735764364 | AV70: 55 | AW70: 0.01429690025 | AX70: 0.01001079733 | AY70: -0.5735872611 | AZ70: 0.8191312502 | BA70: 0 | BB70: 0 | BC70: -1.082472543e-05 | BD70: -2.079410408e-05
G71: 2 | H71: 5.500000001 | I71: 7.000000002 | J71: 0.999999998 | K71: 4.250000002 | L71: 0 | M71: 30.00000396 | N71: 4 | O71: 4 | P71: 5.500000001 | Q71: 4.250000002 | R71: 1e+50 | S71: 2 | T71: 9.53125e+49 | AA71: 1 | AB71: 7.8125 | AC71: 9.625 | AD71: 0.3750000003 | AE71: 5.718750001 | AF71: 0 | AG71: 55.00000002 | AH71: 3 | AI71: 3 | AJ71: 7.625 | AK71: 5.718750001 | AL71: 1e+50 | AM71: 1 | AN71: 9.992675781e+49 | AR71: 56 | AS71: 0.8290375726 | AT71: 0.5591929035 | AV71: 56 | AW71: 0.01446943526 | AX71: 0.009759757319 | AY71: -0.5592040933 | AZ71: 0.8290165275 | BA71: 0 | BB71: 0 | BC71: -1.118985017e-05 | BD71: -2.104504737e-05
G72: 3 | H72: 6 | I72: 7.000000002 | J72: 0.999999998 | K72: 4.500000001 | L72: 0 | M72: 30.00000396 | N72: 4 | O72: 4 | P72: 5.500000001 | Q72: 4.500000001 | R72: 1e+50 | S72: 2 | T72: 9.53125e+49 | AA72: 2 | AB72: 7.8125 | AC72: 9.625 | AD72: 0.3750000003 | AE72: 5.718750001 | AF72: 0 | AG72: 55.00000002 | AH72: 3 | AI72: 3 | AJ72: 7.8125 | AK72: 5.718750001 | AL72: 1e+50 | AM72: 2 | AN72: 9.992675781e+49 | AR72: 57 | AS72: 0.8386705679 | AT72: 0.544639035 | AV72: 57 | AW72: 0.01463756275 | AX72: 0.009505744396 | AY72: -0.5446505943 | AZ72: 0.8386492784 | BA72: 0 | BB72: 0 | BC72: -1.155929887e-05 | BD72: -2.128958012e-05
G73: 4 | H73: 6 | I73: 7.000000002 | J73: 0.999999998 | K73: 4.500000001 | L73: 0 | M73: 30.00000396 | N73: 4 | O73: 4 | P73: 6 | Q73: 4.500000001 | R73: 1e+50 | S73: 2 | T73: 1.9765625e+50 | AA73: 3 | AB73: 8 | AC73: 9.625 | AD73: 0.3750000003 | AE73: 5.812500001 | AF73: 0 | AG73: 55.00000002 | AH73: 3 | AI73: 3 | AJ73: 7.8125 | AK73: 5.812500001 | AL73: 1e+50 | AM73: 2 | AN73: 9.992675781e+49 | AR73: 58 | AS73: 0.8480480962 | AT73: 0.5299192642 | AV73: 58 | AW73: 0.01480123149 | AX73: 0.009248835931 | AY73: -0.5299311972 | AZ73: 0.8480265685 | BA73: 0 | BB73: 0 | BC73: -1.193295899e-05 | BD73: -2.152762787e-05
G74: 1 | H74: 6.5 | I74: 7.000000002 | J74: 1 | K74: 4.750000001 | L74: 0 | M74: 30.00000396 | N74: 4 | O74: 4 | P74: 6 | Q74: 4.750000001 | R74: 1e+50 | S74: 2 | T74: 1.9765625e+50 | AA74: 4 | AB74: 8 | AC74: 9.625 | AD74: 0.3750000003 | AE74: 5.812500001 | AF74: 0 | AG74: 55.00000002 | AH74: 3 | AI74: 3 | AJ74: 8 | AK74: 5.812500001 | AL74: 1e+50 | AM74: 2 | AN74: 1.999633789e+50 | AR74: 59 | AS74: 0.8571673007 | AT74: 0.5150380749 | AV74: 59 | AW74: 0.01496039164 | AX74: 0.00898911018 | AY74: -0.5150503856 | AZ74: 0.8571455416 | BA74: 0 | BB74: 0 | BC74: -1.231071669e-05 | BD74: -2.175911809e-05
G75: 2 | H75: 6.5 | I75: 7.000000002 | J75: 1 | K75: 4.750000001 | L75: 0 | M75: 30.00000396 | N75: 4 | O75: 4 | P75: 6.5 | Q75: 4.750000001 | R75: 1e+50 | S75: 2 | T75: 1.9765625e+50 | AA75: 1 | AB75: 8.5 | AC75: 9.625 | AD75: 1 | AE75: 6.062500001 | AF75: 0 | AG75: 55.00000002 | AH75: 3 | AI75: 3 | AJ75: 8 | AK75: 6.062500001 | AL75: 1e+50 | AM75: 2 | AN75: 1.999633789e+50 | AR75: 60 | AS75: 0.8660254038 | AT75: 0.5 | AV75: 60 | AW75: 0.0151149947 | AX75: 0.00872664626 | AY75: -0.5000126925 | AZ75: 0.8660034198 | BA75: 0 | BB75: 0 | BC75: -1.269245693e-05 | BD75: -2.198398028e-05
G76: 3 | H76: 7 | I76: 7.000000002 | J76: 1 | K76: 5.000000001 | L76: 0 | M76: 30.00000396 | N76: 4 | O76: 4 | P76: 6.5 | Q76: 5.000000001 | R76: 1e+50 | S76: 2 | T76: 1.9765625e+50 | AA76: 2 | AB76: 8.5 | AC76: 9.625 | AD76: 1 | AE76: 6.062500001 | AF76: 0 | AG76: 55.00000002 | AH76: 3 | AI76: 3 | AJ76: 8.5 | AK76: 6.062500001 | AL76: 1e+50 | AM76: 2 | AN76: 1.999633789e+50 | AR76: 61 | AS76: 0.8746197071 | AT76: 0.4848096202 | AV76: 61 | AW76: 0.01526499359 | AX76: 0.008461524119 | AY76: -0.4848226983 | AZ76: 0.874597505 | BA76: 0 | BB76: 0 | BC76: -1.307806341e-05 | BD76: -2.220214593e-05
G77: 4 | H77: 7 | I77: 7.000000002 | J77: 1 | K77: 5.000000001 | L77: 0 | M77: 30.00000396 | N77: 4 | O77: 4 | P77: 7 | Q77: 5.000000001 | R77: 1e+50 | S77: 2 | T77: 1.994140625e+50 | AA77: 3 | AB77: 9 | AC77: 9.625 | AD77: 1 | AE77: 6.312500001 | AF77: 0 | AG77: 55.00000002 | AH77: 3 | AI77: 3 | AJ77: 8.5 | AK77: 6.312500001 | AL77: 1e+50 | AM77: 2 | AN77: 1.999633789e+50 | AR77: 62 | AS77: 0.8829475929 | AT77: 0.4694715628 | AV77: 62 | AW77: 0.01541034262 | AX77: 0.008193824515 | AY77: -0.4694850302 | AZ77: 0.8829251793 | BA77: 0 | BB77: 0 | BC77: -1.346741868e-05 | BD77: -2.241354859e-05
G78: 1 | H78: 7.000000001 | I78: 7.000000002 | J78: 1.99913508e-09 | K78: 5.000000002 | L78: 0 | M78: 30.00000396 | N78: 4 | O78: 4 | P78: 7 | Q78: 5.000000002 | R78: 1e+50 | S78: 2 | T78: 1.994140625e+50 | AA78: 4 | AB78: 9 | AC78: 9.625 | AD78: 1 | AE78: 6.312500001 | AF78: 0 | AG78: 55.00000002 | AH78: 3 | AI78: 3 | AJ78: 9 | AK78: 6.312500001 | AL78: 1e+50 | AM78: 2 | AN78: 2e+50 | AR78: 63 | AS78: 0.8910065242 | AT78: 0.4539904997 | AV78: 63 | AW78: 0.0155509975 | AX78: 0.007923628993 | AY78: -0.4540043601 | AZ78: 0.8909839061 | BA78: 0 | BB78: 0 | BC78: -1.386040413e-05 | BD78: -2.261812387e-05
G79: 2 | H79: 7.000000001 | I79: 7.000000002 | J79: 1.99913508e-09 | K79: 5.000000002 | L79: 0 | M79: 30.00000396 | N79: 4 | O79: 4 | P79: 7.000000001 | Q79: 5.000000002 | R79: 1e+50 | S79: 1.999998223 | T79: 1.994140625e+50 | AA79: 1 | AB79: 9.3125 | AC79: 9.625 | AD79: 0.6249999997 | AE79: 6.468750001 | AF79: 0 | AG79: 55.00000002 | AH79: 3 | AI79: 3 | AJ79: 9 | AK79: 6.468750001 | AL79: 1e+50 | AM79: 2 | AN79: 2e+50 | AR79: 64 | AS79: 0.8987940463 | AT79: 0.4383711468 | AV79: 64 | AW79: 0.01568691541 | AX79: 0.007651019857 | AY79: -0.4383854037 | AZ79: 0.8987712305 | BA79: 0 | BB79: 0 | BC79: -1.425690006e-05 | BD79: -2.281580944e-05
G80: 3 | H80: 7.000000002 | I80: 7.000000002 | J80: 1.99913508e-09 | K80: 5.000000002 | L80: 0 | M80: 30.00000396 | N80: 4 | O80: 4 | P80: 7.000000001 | Q80: 5.000000002 | R80: 1e+50 | S80: 1.999998223 | T80: 1.994140625e+50 | AA80: 2 | AB80: 9.3125 | AC80: 9.625 | AD80: 0.6249999997 | AE80: 6.468750001 | AF80: 0 | AG80: 55.00000002 | AH80: 3 | AI80: 3 | AJ80: 9.3125 | AK80: 6.468750001 | AL80: 1e+50 | AM80: 2 | AN80: 2e+50 | AR80: 65 | AS80: 0.906307787 | AT80: 0.4226182617 | AV80: 65 | AW80: 0.01581805492 | AX80: 0.007376080146 | AY80: -0.4226329185 | AZ80: 0.9062847805 | BA80: =AW80-AS80*(PI()/180) -> 0 | BB80: =AX80-AT80*(PI()/180) -> 0 | BC80: =AY80+COS(RADIANS(AR80)) -> -1.465678569e-05 | BD80: =AZ80-SIN(RADIANS(AR80)) -> -2.300654511e-05
G81: 4 | H81: 7.000000002 | I81: 7.000000002 | J81: 1.99913508e-09 | K81: 5.000000002 | L81: 0 | M81: 30.00000396 | N81: 4 | O81: 4 | P81: 7.000000002 | Q81: 5.000000002 | R81: 1e+50 | S81: 2.000001777 | T81: 1.998536932e+50 | AA81: 3 | AB81: 9.625 | AC81: 9.625 | AD81: 0.6249999997 | AE81: 6.625000001 | AF81: 0 | AG81: 55.00000002 | AH81: 3 | AI81: 3 | AJ81: 9.3125 | AK81: 6.625000001 | AL81: 1e+50 | AM81: 2 | AN81: 2e+50 | AR81: =AR80+1 -> 66 | AS81: =SIN(RADIANS(AR81)) -> 0.9135454576 | AT81: =COS(RADIANS(AR81)) -> 0.4067366431 | AV81: 66 | AW81: 0.0159443761 | AX81: 0.00709889361 | AY81: -0.406751703 | AZ81: 0.9135222674 | BA81: 0 | BB81: 0 | BC81: -1.505993921e-05 | BD81: -2.319027275e-05
AA82: 4 | AB82: 9.625 | AC82: 9.625 | AD82: 0.6249999997 | AE82: 6.625000001 | AF82: 0 | AG82: 55.00000002 | AH82: 3 | AI82: 3 | AJ82: 9.625 | AK82: 6.625000001 | AL82: 1e+50 | AM82: 2 | AN82: 2e+50 | AR82: 67 | AS82: 0.9205048535 | AT82: 0.3907311285 | AV82: 67 | AW82: 0.01606584047 | AX82: 0.006819544682 | AY82: -0.3907465947 | AZ82: 0.9204814865 | BA82: 0 | BB82: 0 | BC82: -1.546623782e-05 | BD82: -2.336693641e-05
AR83: 68 | AS83: 0.9271838546 | AT83: 0.3746065934 | AV83: 68 | AW83: 0.01618241103 | AX83: 0.006538118455 | AY83: -0.374622469 | AZ83: 0.9271603181 | BA83: 0 | BB83: 0 | BC83: -1.587555776e-05 | BD83: -2.353648228e-05
AR84: 69 | AS84: 0.9335804265 | AT84: 0.3583679495 | AV84: 69 | AW84: 0.01629405227 | AX84: 0.006254700653 | AY84: -0.3583842373 | AZ84: 0.9335567276 | BA84: 0 | BB84: 0 | BC84: -1.628777433e-05 | BD84: -2.369885871e-05
AR85: 70 | AS85: 0.9396926208 | AT85: 0.3420201433 | AV85: 70 | AW85: 0.01640073019 | AX85: 0.005969377609 | AY85: -0.3420368461 | AZ85: 0.9396687668 | BA85: 0 | BB85: 0 | BC85: -1.670276198e-05 | BD85: -2.385401623e-05
AR86: 71 | AS86: 0.9455185756 | AT86: 0.3255681545 | AV86: 71 | AW86: 0.01650241228 | AX86: 0.005682236235 | AY86: -0.3255852749 | AZ86: 0.9454945737 | BA86: 0 | BB86: 0 | BC86: -1.71203943e-05 | BD86: -2.40019076e-05
AR87: 72 | AS87: 0.9510565163 | AT87: 0.3090169944 | AV87: 72 | AW87: 0.01659906758 | AX87: 0.005393363996 | AY87: -0.3090345349 | AZ87: 0.9510323738 | BA87: 0 | BB87: 0 | BC87: -1.754054408e-05 | BD87: -2.414248774e-05
AR88: 73 | AS88: 0.956304756 | AT88: 0.2923717047 | AV88: 73 | AW88: 0.01669066664 | AX88: 0.005102848887 | AY88: -0.2923896678 | AZ88: 0.9562804802 | BA88: 0 | BB88: 0 | BC88: -1.796308332e-05 | BD88: -2.427571385e-05
AR89: 74 | AS89: 0.9612616959 | AT89: 0.2756373558 | AV89: 74 | AW89: 0.01677718157 | AX89: 0.0048107794 | AY89: -0.2756557437 | AZ89: 0.9612372944 | BA89: 0 | BB89: 0 | BC89: -1.838788333e-05 | BD89: -2.440154535e-05
B90: =exe("実行","TableTest",C93:D105,F94:F97,G94:T94) -> 実行 | AR90: 75 | AS90: 0.9659258263 | AT90: 0.2588190451 | AV90: 75 | AW90: 0.016858586 | AX90: 0.004517244504 | AY90: -0.2588378599 | AZ90: 0.9659013063 | BA90: 0 | BB90: 0 | BC90: -1.88148147e-05 | BD90: -2.45199439e-05
AR91: 76 | AS91: 0.9702957263 | AT91: 0.2419218956 | AV91: 76 | AW91: 0.01693485514 | AX91: 0.004222333611 | AY91: -0.2419411393 | AZ91: 0.9702710954 | BA91: 0 | BB91: 0 | BC91: -1.924374738e-05 | BD91: -2.463087343e-05
B92: 汎用関数テーブル（ステップ） | G92: INTG | N92: Table | AR92: 77 | AS92: 0.9743700648 | AT92: 0.2249510543 | AV92: 77 | AW92: 0.01700596576 | AX92: 0.003926136554 | AY92: -0.2249707289 | AZ92: 0.9743453305 | BA92: 0 | BB92: 0 | BC92: -1.967455072e-05 | BD92: -2.473430016e-05
B93: 関数名 | C93: GeneralTable | F93: arg | G93: jIms | H93: t | I93: tDis | J93: dt | K93: a | L93: f | M93: ∫f | N93: ix | O93: ixp | P93: t | Q93: arg | R93: aDis | S93: slp | T93: tDis | AR93: 78 | AS93: 0.9781476007 | AT93: 0.2079116908 | AV93: 78 | AW93: 0.0170718962 | AX93: 0.003628743558 | AY93: -0.2079317979 | AZ93: 0.9781227705 | BA93: 0 | BB93: 0 | BC93: -2.01070935e-05 | BD93: -2.483019259e-05
B94: 引数名 | C94: argument | F94: 0 | G94: 0 | H94: 0 | I94: 2e-09 | J94: 1.944746586e-09 | K94: 0 | L94: 10 | M94: 0 | N94: 0 | O94: 0 | P94: 0 | Q94: 0 | R94: 1 | S94: 1 | T94: 2e-09 | AR94: 79 | AS94: 0.9816271834 | AT94: 0.1908089954 | AV94: 79 | AW94: 0.01713262638 | AX94: 0.003330245212 | AY94: -0.1908295366 | AZ94: 0.9816022649 | BA94: 0 | BB94: 0 | BC94: -2.054124395e-05 | BD94: -2.49185215e-05
B95: 関数の数 | C95: 1 | F95: 1 | G95: 1 | H95: 1e-09 | I95: 2e-09 | J95: 2e-09 | K95: 5e-10 | L95: 10 | M95: 1e-08 | N95: 0 | O95: 0 | P95: 0 | Q95: 5e-10 | R95: 1 | S95: 1 | T95: 2e-09 | V95: =exe("実行","TableTest",W98:X109,Z99:Z102,AA99:AN99) -> 実行 | AR95: 80 | AS95: 0.984807753 | AT95: 0.1736481777 | AV95: 80 | AW95: 0.01718813779 | AX95: 0.00303073244 | AY95: -0.1736691545 | AZ95: 0.9847827538 | BA95: 0 | BB95: 0 | BC95: -2.097686983e-05 | BD95: -2.499925998e-05
B96: 補間方法 | C96: ステップ | F96: 3 | G96: 2 | H96: 1e-09 | I96: 2e-09 | J96: 2e-09 | K96: 5e-10 | L96: 10 | M96: 1e-08 | N96: 0 | O96: 0 | P96: 1e-09 | Q96: 5e-10 | R96: 1 | S96: 2 | T96: 2e-09 | AR96: 81 | AS96: 0.9876883406 | AT96: 0.156434465 | AV96: 81 | AW96: 0.01723841353 | AX96: 0.002730296479 | AY96: -0.1564558789 | AZ96: 0.9876632682 | BA96: 0 | BB96: 0 | BC96: -2.141383844e-05 | BD96: -2.507238345e-05
B97: 前端点処理 | C97: 一定 | F97: 4 | G97: 3 | H97: 2e-09 | I97: 2e-09 | J97: 2e-09 | K97: 1e-09 | L97: 10 | M97: 2e-08 | N97: 0 | O97: 0 | P97: 1e-09 | Q97: 1e-09 | R97: 1 | S97: 2 | T97: 2e-09 | V97: 汎用関数テーブル（リニア） | AA97: INTG | AH97: Table | AR97: 82 | AS97: 0.9902680687 | AT97: 0.139173101 | AV97: 82 | AW97: 0.01728343828 | AX97: 0.002429028842 | AY97: -0.139194953 | AZ97: 0.9902429309 | BA97: 0 | BB97: 0 | BC97: -2.185201668e-05 | BD97: -2.513786962e-05
B98: 後端点処理 | C98: ゼロ | G98: 4 | H98: 2e-09 | I98: 2e-09 | J98: 2e-09 | K98: 1e-09 | L98: 10 | M98: 2e-08 | N98: 0 | O98: 0 | P98: 2e-09 | Q98: 1e-09 | R98: 1 | S98: 2 | T98: 1.625 | V98: 関数名 | W98: GeneralTable | Z98: arg | AA98: jIms | AB98: t | AC98: tDis | AD98: dt | AE98: a | AF98: f | AG98: ∫f | AH98: ix | AI98: ixp | AJ98: t | AK98: arg | AL98: aDis | AM98: slp | AN98: tDis | AR98: 83 | AS98: 0.9925461516 | AT98: 0.1218693434 | AV98: 83 | AW98: 0.01732319832 | AX98: 0.0021270213 | AY98: -0.1218916347 | AZ98: 0.9925209559 | BA98: 0 | BB98: 0 | BC98: -2.229127108e-05 | BD98: -2.519569856e-05
B99: 節点処理 | C99: 積分 | G99: 0 | H99: 2e-09 | I99: 1.625 | J99: 2e-09 | K99: 1e-09 | L99: 10 | M99: 2e-08 | N99: 0 | O99: 0 | P99: 2e-09 | Q99: 1e-09 | R99: 1 | S99: 2 | T99: 1.625 | V99: 引数名 | W99: argument | Z99: 0 | AA99: 0 | AB99: 0 | AC99: 1 | AD99: 0.6249999997 | AE99: 0 | AF99: 10 | AG99: 0 | AH99: 0 | AI99: 0 | AJ99: 0 | AK99: 0 | AL99: 1 | AM99: 1 | AN99: 1 | AR99: 84 | AS99: 0.9945218954 | AT99: 0.1045284633 | AV99: 84 | AW99: 0.01735768156 | AX99: 0.001824365846 | AY99: -0.1045511947 | AZ99: 0.9944966495 | BA99: 0 | BB99: 0 | BC99: -2.273146782e-05 | BD99: -2.524585265e-05
B100: 乗数 | C100: 1 | D100: 1 | G100: 1 | H100: 0.500000001 | I100: 1.625 | J100: 0.999999998 | K100: 0.2500000005 | L100: 10 | M100: 5.00000001 | N100: 0 | O100: 0 | P100: 2e-09 | Q100: 0.2500000005 | R100: 1 | S100: 2 | T100: 1.625 | V100: 関数の数 | W100: 1 | Z100: 1 | AA100: 1 | AB100: 0.5 | AC100: 1 | AD100: 1 | AE100: 0.25 | AF100: 10 | AG100: 5 | AH100: 0 | AI100: 0 | AJ100: 0 | AK100: 0.25 | AL100: 1 | AM100: 1 | AN100: 1 | AR100: 85 | AS100: 0.9961946981 | AT100: 0.08715574275 | AV100: 85 | AW100: 0.01738687747 | AX100: 0.001521154673 | AY100: -0.08717891522 | AZ100: 0.9961694098 | BA100: 0 | BB100: 0 | BC100: -2.317247284e-05 | BD100: -2.52883166e-05
B101: 加数 | C101: 0 | D101: 0 | E101: ix | G101: 2 | H101: 0.500000001 | I101: 1.625 | J101: 0.999999998 | K101: 0.2500000005 | L101: 10 | M101: 5.00000001 | N101: 0 | O101: 0 | P101: 0.500000001 | Q101: 0.2500000005 | R101: 1 | S101: 2 | T101: 1.625 | V101: 補間方法 | W101: 一次 | Z101: 3 | AA101: 2 | AB101: 0.5 | AC101: 1 | AD101: 1 | AE101: 0.25 | AF101: 10 | AG101: 5 | AH101: 0 | AI101: 0 | AJ101: 0.5 | AK101: 0.25 | AL101: 1 | AM101: 2 | AN101: 1 | AR101: 86 | AS101: 0.9975640503 | AT101: 0.06975647374 | AV101: 86 | AW101: 0.01741077718 | AX101: 0.001217480141 | AY101: -0.0697800879 | AZ101: 0.9975387272 | BA101: 0 | BB101: 0 | BC101: -2.361415178e-05 | BD101: -2.532307749e-05
B102: データ | C102: 1 | D102: 10 | E102: 1 | G102: 3 | H102: 1 | I102: 1.625 | J102: 0.999999998 | K102: 0.5 | L102: 10 | M102: 10 | N102: 0 | O102: 0 | P102: 0.500000001 | Q102: 0.5 | R102: 1 | S102: 2 | T102: 1.625 | V102: 前端点処理 | W102: 一定 | Z102: 4 | AA102: 3 | AB102: 1 | AC102: 1 | AD102: 1 | AE102: 0.5 | AF102: 10 | AG102: 10 | AH102: 0 | AI102: 0 | AJ102: 0.5 | AK102: 0.5 | AL102: 1 | AM102: 2 | AN102: 1 | AR102: 87 | AS102: 0.9986295348 | AT102: 0.05233595624 | AV102: 87 | AW102: 0.01742937339 | AX102: 0.0009134347536 | AY102: -0.05236001261 | AZ102: 0.9986041846 | BA102: 0 | BB102: 0 | BC102: -2.405637012e-05 | BD102: -2.535012472e-05
C103: 2 | D103: 2000 | E103: =E102+1 -> 2 | G103: 4 | H103: 1 | I103: 1.625 | J103: 0.999999998 | K103: 0.5 | L103: 10 | M103: 10 | N103: 0 | O103: 0 | P103: 1 | Q103: 0.5 | R103: 1 | S103: 2 | T103: 1.953125 | V103: 後端点処理 | W103: ゼロ | AA103: 4 | AB103: 1 | AC103: 1 | AD103: 1 | AE103: 0.5 | AF103: 10 | AG103: 10 | AH103: 0 | AI103: 0 | AJ103: 1 | AK103: 0.5 | AL103: 1 | AM103: 2 | AN103: 1.8125 | AR103: 88 | AS103: 0.999390827 | AT103: 0.0348994967 | AV103: 88 | AW103: 0.01744266045 | AX103: 0.0006091111247 | AY103: -0.0349239957 | AZ103: 0.9993654576 | BA103: 0 | BB103: 0 | BC103: -2.449899314e-05 | BD103: -2.536945006e-05
C104: 2 | D104: 20 | E104: =E103+1 -> 3 | G104: 1 | H104: 1.3125 | I104: 1.625 | J104: 0.6250000004 | K104: 0.6562500001 | L104: 10 | M104: 13.125 | N104: 0 | O104: 0 | P104: 1 | Q104: 0.6562500001 | R104: 1 | S104: 2 | T104: 1.953125 | V104: 節点処理 | W104: 積分 | AA104: 0 | AB104: 1 | AC104: 1.8125 | AD104: 1 | AE104: 0.5 | AF104: 10 | AG104: 10 | AH104: 0 | AI104: 0 | AJ104: 1 | AK104: 0.5 | AL104: 1 | AM104: 2 | AN104: 1.8125 | AR104: 89 | AS104: 0.9998476952 | AT104: 0.01745240644 | AV104: 89 | AW104: 0.0174506343 | AX104: 0.0003046019547 | AY104: -0.01747734832 | AZ104: 0.9998223141 | BA104: 0 | BB104: 0 | BC104: -2.494188603e-05 | BD104: -2.538104762e-05
C105: 3 | D105: 30 | E105: 4 | G105: 2 | H105: 1.3125 | I105: 1.625 | J105: 0.6250000004 | K105: 0.6562500001 | L105: 10 | M105: 13.125 | N105: 0 | O105: 0 | P105: 1.3125 | Q105: 0.6562500001 | R105: 1 | S105: 2 | T105: 1.953125 | V105: 乗数 | W105: 1 | X105: 1 | AA105: 1 | AB105: 1.40625 | AC105: 1.8125 | AD105: 0.8125 | AE105: 0.703125 | AF105: 10 | AG105: 14.0625 | AH105: 0 | AI105: 0 | AJ105: 1 | AK105: 0.703125 | AL105: 1 | AM105: 2 | AN105: 1.8125 | AR105: 90 | AS105: 1 | AT105: 6.125742275e-17 | AV105: 90 | AW105: 0.01745329252 | AX105: 1.069143718e-18 | AY105: -2.538491386e-05 | AZ105: 0.9999746151 | BA105: 0 | BB105: 0 | BC105: -2.538491386e-05 | BD105: -2.538491386e-05
G106: 3 | H106: 1.625 | I106: 1.625 | J106: 0.6250000004 | K106: 0.8125000002 | L106: 10 | M106: 16.25 | N106: 0 | O106: 0 | P106: 1.3125 | Q106: 0.8125000002 | R106: 1 | S106: 2 | T106: 1.953125 | V106: 加数 | W106: 0 | X106: 0 | Y106: ix | AA106: 2 | AB106: 1.40625 | AC106: 1.8125 | AD106: 0.8125 | AE106: 0.703125 | AF106: 10 | AG106: 14.0625 | AH106: 0 | AI106: 0 | AJ106: 1.40625 | AK106: 0.703125 | AL106: 1 | AM106: 2 | AN106: 1.8125 | AR106: 91 | AS106: 0.9998476952 | AT106: -0.01745240644 | AV106: 91 | AW106: 0.0174506343 | AX106: -0.0003046019547 | AY106: 0.0174265785 | AZ106: 0.9998223141 | BA106: 0 | BB106: 0 | BC106: -2.582794169e-05 | BD106: -2.538104762e-05
B107: t | C107: a | D107: f | E107: ∫f | G107: 4 | H107: 1.625 | I107: 1.625 | J107: 0.6250000004 | K107: 0.8125000002 | L107: 10 | M107: 16.25 | N107: 0 | O107: 0 | P107: 1.625 | Q107: 0.8125000002 | R107: 1 | S107: 2 | T107: 1.995605469 | V107: データ | W107: 1 | X107: 10 | Y107: 1 | AA107: 3 | AB107: 1.8125 | AC107: 1.8125 | AD107: 0.8125 | AE107: 0.90625 | AF107: 10 | AG107: 18.125 | AH107: 0 | AI107: 0 | AJ107: 1.40625 | AK107: 0.90625 | AL107: 1 | AM107: 2 | AN107: 1.8125 | AR107: 92 | AS107: 0.999390827 | AT107: -0.0348994967 | AV107: 92 | AW107: 0.01744266045 | AX107: -0.0006091111247 | AY107: 0.03487322587 | AZ107: 0.9993654576 | BA107: 0 | BB107: 0 | BC107: -2.627083458e-05 | BD107: -2.536945006e-05
B108: 0 | C108: 0 | D108: 10 | E108: 0 | G108: 0 | H108: 1.625 | I108: 1.995605469 | J108: 0.6250000004 | K108: 0.8125000002 | L108: 10 | M108: 16.25 | N108: 0 | O108: 0 | P108: 1.625 | Q108: 0.8125000002 | R108: 1 | S108: 2 | T108: 1.995605469 | W108: 2 | X108: 20 | Y108: =Y107+1 -> 2 | AA108: 4 | AB108: 1.8125 | AC108: 1.8125 | AD108: 0.8125 | AE108: 0.90625 | AF108: 10 | AG108: 18.125 | AH108: 0 | AI108: 0 | AJ108: 1.8125 | AK108: 0.90625 | AL108: 1 | AM108: 2 | AN108: 1.991210937 | AR108: 93 | AS108: 0.9986295348 | AT108: -0.05233595624 | AV108: 93 | AW108: 0.01742937339 | AX108: -0.0009134347536 | AY108: 0.05230924279 | AZ108: 0.9986041846 | BA108: 0 | BB108: 0 | BC108: -2.67134576e-05 | BD108: -2.535012472e-05
B109: 1 | C109: 0.5 | D109: 10 | E109: =E108+(B109-B108)*D108 -> 10 | G109: 1 | H109: 1.810302735 | I109: 1.995605469 | J109: 0.3706054684 | K109: 0.9051513673 | L109: 10 | M109: 18.10302735 | N109: 0 | O109: 0 | P109: 1.625 | Q109: 0.9051513673 | R109: 1 | S109: 2 | T109: 1.995605469 | W109: 3 | X109: 30 | Y109: =Y108+1 -> 3 | AA109: 0 | AB109: 1.8125 | AC109: 1.991210937 | AD109: 0.8125 | AE109: 0.90625 | AF109: 10 | AG109: 18.125 | AH109: 0 | AI109: 0 | AJ109: 1.8125 | AK109: 0.90625 | AL109: 1 | AM109: 2 | AN109: 1.991210937 | AR109: 94 | AS109: 0.9975640503 | AT109: -0.06975647374 | AV109: 94 | AW109: 0.01741077718 | AX109: -0.001217480141 | AY109: 0.06972931807 | AZ109: 0.9975387272 | BA109: 0 | BB109: 0 | BC109: -2.715567594e-05 | BD109: -2.532307749e-05
B110: 2 | C110: 1 | D110: 10 | E110: =E109+(B110-B109)*D109 -> 20 | G110: 2 | H110: 1.810302735 | I110: 1.995605469 | J110: 0.3706054684 | K110: 0.9051513673 | L110: 10 | M110: 18.10302735 | N110: 0 | O110: 0 | P110: 1.810302735 | Q110: 0.9051513673 | R110: 1 | S110: 2 | T110: 1.995605469 | AA110: 1 | AB110: 1.901855469 | AC110: 1.991210937 | AD110: 0.1787109375 | AE110: 0.9509277344 | AF110: 10 | AG110: 19.01855469 | AH110: 0 | AI110: 0 | AJ110: 1.8125 | AK110: 0.9509277344 | AL110: 1 | AM110: 2 | AN110: 1.991210937 | AR110: 95 | AS110: 0.9961946981 | AT110: -0.08715574275 | AV110: 95 | AW110: 0.01738687747 | AX110: -0.001521154673 | AY110: 0.08712814539 | AZ110: 0.9961694098 | BA110: 0 | BB110: 0 | BC110: -2.759735488e-05 | BD110: -2.52883166e-05
B111: 3 | C111: 2 | D111: 20 | E111: =E110+(B111-B110)*D110 -> 30 | G111: 3 | H111: 1.995605469 | I111: 1.995605469 | J111: 0.3706054684 | K111: 0.9978027344 | L111: 10 | M111: 19.95605469 | N111: 0 | O111: 0 | P111: 1.810302735 | Q111: 0.9978027344 | R111: 1 | S111: 2 | T111: 1.995605469 | AA111: 2 | AB111: 1.901855469 | AC111: 1.991210937 | AD111: 0.1787109375 | AE111: 0.9509277344 | AF111: 10 | AG111: 19.01855469 | AH111: 0 | AI111: 0 | AJ111: 1.901855469 | AK111: 0.9509277344 | AL111: 1 | AM111: 2 | AN111: 1.991210937 | AR111: 96 | AS111: 0.9945218954 | AT111: -0.1045284633 | AV111: 96 | AW111: 0.01735768156 | AX111: -0.001824365846 | AY111: 0.1045004249 | AZ111: 0.9944966495 | BA111: 0 | BB111: 0 | BC111: -2.80383599e-05 | BD111: -2.524585265e-05
B112: 4 | C112: 3 | D112: 30 | E112: =E111+(B112-B111)*D111 -> 50 | G112: 4 | H112: 1.995605469 | I112: 1.995605469 | J112: 0.3706054684 | K112: 0.9978027344 | L112: 10 | M112: 19.95605469 | N112: 0 | O112: 0 | P112: 1.995605469 | Q112: 0.9978027344 | R112: 1 | S112: 2 | T112: 1.999987125 | V112: t | W112: a | X112: f | Y112: ∫f | AA112: 3 | AB112: 1.991210937 | AC112: 1.991210937 | AD112: 0.1787109375 | AE112: 0.9956054687 | AF112: 10 | AG112: 19.91210937 | AH112: 0 | AI112: 0 | AJ112: 1.901855469 | AK112: 0.9956054687 | AL112: 1 | AM112: 2 | AN112: 1.991210937 | AR112: 97 | AS112: 0.9925461516 | AT112: -0.1218693434 | AV112: 97 | AW112: 0.01732319832 | AX112: -0.0021270213 | AY112: 0.1218408648 | AZ112: 0.9925209559 | BA112: 0 | BB112: 0 | BC112: -2.847855665e-05 | BD112: -2.519569856e-05
B113: 5 | C113: 3.5 | D113: 0 | E113: =E112 -> 50 | G113: 0 | H113: 1.995605469 | I113: 1.999987125 | J113: 0.3706054684 | K113: 0.9978027344 | L113: 10 | M113: 19.95605469 | N113: 0 | O113: 0 | P113: 1.995605469 | Q113: 0.9978027344 | R113: 1 | S113: 2 | T113: 1.999987125 | V113: 0 | W113: 0 | X113: 10 | Y113: 0 | AA113: 4 | AB113: 1.991210937 | AC113: 1.991210937 | AD113: 0.1787109375 | AE113: 0.9956054688 | AF113: 10 | AG113: 19.91210937 | AH113: 0 | AI113: 0 | AJ113: 1.991210937 | AK113: 0.9956054688 | AL113: 1 | AM113: 2 | AN113: 1.999897003 | AR113: 98 | AS113: 0.9902680687 | AT113: -0.139173101 | AV113: 98 | AW113: 0.01728343828 | AX113: -0.002429028842 | AY113: 0.1391441831 | AZ113: 0.9902429309 | BA113: 0 | BB113: 0 | BC113: -2.891781104e-05 | BD113: -2.513786962e-05
B114: 6 | C114: 4 | D114: 0 | E114: =E113 -> 50 | G114: 1 | H114: 1.997796297 | I114: 1.999987125 | J114: 0.004381656642 | K114: 0.9988981485 | L114: 10 | M114: 19.97796297 | N114: 0 | O114: 0 | P114: 1.995605469 | Q114: 0.9988981485 | R114: 1 | S114: 2 | T114: 1.999987125 | V114: 1 | W114: 0.5 | X114: 10 | Y114: =Y113+(V114-V113)*(X114+X113)/2 -> 10 | AA114: 0 | AB114: 1.991210937 | AC114: 1.999897003 | AD114: 0.1787109375 | AE114: 0.9956054688 | AF114: 10 | AG114: 19.91210937 | AH114: 0 | AI114: 0 | AJ114: 1.991210937 | AK114: 0.9956054688 | AL114: 1 | AM114: 2 | AN114: 1.999897003 | AR114: 99 | AS114: 0.9876883406 | AT114: -0.156434465 | AV114: 99 | AW114: 0.01723841353 | AX114: -0.002730296479 | AY114: 0.1564051091 | AZ114: 0.9876632682 | BA114: 0 | BB114: 0 | BC114: -2.935598928e-05 | BD114: -2.507238345e-05
G115: 2 | H115: 1.997796297 | I115: 1.999987125 | J115: 0.004381656642 | K115: 0.9988981485 | L115: 10 | M115: 19.97796297 | N115: 0 | O115: 0 | P115: 1.997796297 | Q115: 0.9988981485 | R115: 1 | S115: 2 | T115: 1.999987125 | V115: 2 | W115: 1 | X115: 10 | Y115: =Y114+(V115-V114)*(X115+X114)/2 -> 20 | AA115: 1 | AB115: 1.99555397 | AC115: 1.999897003 | AD115: 0.008686065674 | AE115: 0.9977769852 | AF115: 10 | AG115: 19.9555397 | AH115: 0 | AI115: 0 | AJ115: 1.991210937 | AK115: 0.9977769852 | AL115: 1 | AM115: 2 | AN115: 1.999897003 | AR115: 100 | AS115: 0.984807753 | AT115: -0.1736481777 | AV115: 100 | AW115: 0.01718813779 | AX115: -0.00303073244 | AY115: 0.1736183847 | AZ115: 0.9847827538 | BA115: 0 | BB115: 0 | BC115: -2.979295789e-05 | BD115: -2.499925998e-05
G116: 3 | H116: 1.999987125 | I116: 1.999987125 | J116: 0.004381656642 | K116: 0.9999935627 | L116: 10 | M116: 19.99987125 | N116: 0 | O116: 0 | P116: 1.997796297 | Q116: 0.9999935627 | R116: 1 | S116: 2 | T116: 1.999987125 | V116: 3 | W116: 2 | X116: 20 | Y116: =Y115+(V116-V115)*(X116+X115)/2 -> 35 | AA116: 2 | AB116: 1.99555397 | AC116: 1.999897003 | AD116: 0.008686065674 | AE116: 0.9977769852 | AF116: 10 | AG116: 19.9555397 | AH116: 0 | AI116: 0 | AJ116: 1.99555397 | AK116: 0.9977769852 | AL116: 1 | AM116: 2 | AN116: 1.999897003 | AR116: 101 | AS116: 0.9816271834 | AT116: -0.1908089954 | AV116: 101 | AW116: 0.01713262638 | AX116: -0.003330245212 | AY116: 0.1907787668 | AZ116: 0.9816022649 | BA116: 0 | BB116: 0 | BC116: -3.022858377e-05 | BD116: -2.49185215e-05
G117: 4 | H117: 1.999987125 | I117: 1.999987125 | J117: 0.004381656642 | K117: 0.9999935627 | L117: 10 | M117: 19.99987125 | N117: 0 | O117: 0 | P117: 1.999987125 | Q117: 0.9999935627 | R117: 1 | S117: 2 | T117: 1.999999991 | V117: 4 | W117: 3 | X117: 30 | Y117: =Y116+(V117-V116)*(X117+X116)/2 -> 60 | AA117: 3 | AB117: 1.999897003 | AC117: 1.999897003 | AD117: 0.008686065674 | AE117: 0.9999485016 | AF117: 10 | AG117: 19.99897003 | AH117: 0 | AI117: 0 | AJ117: 1.99555397 | AK117: 0.9999485016 | AL117: 1 | AM117: 2 | AN117: 1.999897003 | AR117: 102 | AS117: 0.9781476007 | AT117: -0.2079116908 | AV117: 102 | AW117: 0.0170718962 | AX117: -0.003628743558 | AY117: 0.2078810281 | AZ117: 0.9781227705 | BA117: 0 | BB117: 0 | BC117: -3.066273422e-05 | BD117: -2.483019259e-05
G118: 0 | H118: 1.999987125 | I118: 1.999999991 | J118: 0.004381656642 | K118: 0.9999935627 | L118: 10 | M118: 19.99987125 | N118: 0 | O118: 0 | P118: 1.999987125 | Q118: 0.9999935627 | R118: 1 | S118: 2 | T118: 1.999999991 | V118: 5 | W118: 3.5 | X118: 0 | Y118: =Y117 -> 60 | AA118: 4 | AB118: 1.999897003 | AC118: 1.999897003 | AD118: 0.008686065674 | AE118: 0.9999485016 | AF118: 10 | AG118: 19.99897003 | AH118: 0 | AI118: 0 | AJ118: 1.999897003 | AK118: 0.9999485016 | AL118: 1 | AM118: 2 | AN118: 1.999999698 | AR118: 103 | AS118: 0.9743700648 | AT118: -0.2249510543 | AV118: 103 | AW118: 0.01700596576 | AX118: -0.003926136554 | AY118: 0.2249199591 | AZ118: 0.9743453305 | BA118: 0 | BB118: 0 | BC118: -3.1095277e-05 | BD118: -2.473430016e-05
G119: 1 | H119: 1.999993558 | I119: 1.999999991 | J119: 1.286517362e-05 | K119: 0.999996779 | L119: 10 | M119: 19.99993558 | N119: 0 | O119: 0 | P119: 1.999987125 | Q119: 0.999996779 | R119: 1 | S119: 2 | T119: 1.999999991 | V119: 6 | W119: 4 | X119: 0 | Y119: =Y118 -> 60 | AA119: 0 | AB119: 1.999897003 | AC119: 1.999999698 | AD119: 0.008686065674 | AE119: 0.9999485016 | AF119: 10 | AG119: 19.99897003 | AH119: 0 | AI119: 0 | AJ119: 1.999897003 | AK119: 0.9999485016 | AL119: 1 | AM119: 2 | AN119: 1.999999698 | AR119: 104 | AS119: 0.9702957263 | AT119: -0.2419218956 | AV119: 104 | AW119: 0.01693485514 | AX119: -0.004222333611 | AY119: 0.2418903695 | AZ119: 0.9702710954 | BA119: 0 | BB119: 0 | BC119: -3.152608034e-05 | BD119: -2.463087343e-05
G120: 2 | H120: 1.999993558 | I120: 1.999999991 | J120: 1.286517362e-05 | K120: 0.999996779 | L120: 10 | M120: 19.99993558 | N120: 0 | O120: 0 | P120: 1.999993558 | Q120: 0.999996779 | R120: 1 | S120: 2 | T120: 1.999999991 | AA120: 1 | AB120: 1.999948351 | AC120: 1.999999698 | AD120: 0.0001026950777 | AE120: 0.9999741754 | AF120: 10 | AG120: 19.99948351 | AH120: 0 | AI120: 0 | AJ120: 1.999897003 | AK120: 0.9999741754 | AL120: 1 | AM120: 2 | AN120: 1.999999698 | AR120: 105 | AS120: 0.9659258263 | AT120: -0.2588190451 | AV120: 105 | AW120: 0.016858586 | AX120: -0.004517244504 | AY120: 0.2587870901 | AZ120: 0.9659013063 | BA120: 0 | BB120: 0 | BC120: -3.195501303e-05 | BD120: -2.45199439e-05
G121: 3 | H121: 1.999999991 | I121: 1.999999991 | J121: 1.286517362e-05 | K121: 0.9999999953 | L121: 10 | M121: 19.99999991 | N121: 0 | O121: 0 | P121: 1.999993558 | Q121: 0.9999999953 | R121: 1 | S121: 2 | T121: 1.999999991 | AA121: 2 | AB121: 1.999948351 | AC121: 1.999999698 | AD121: 0.0001026950777 | AE121: 0.9999741754 | AF121: 10 | AG121: 19.99948351 | AH121: 0 | AI121: 0 | AJ121: 1.999948351 | AK121: 0.9999741754 | AL121: 1 | AM121: 2 | AN121: 1.999999698 | AR121: 106 | AS121: 0.9612616959 | AT121: -0.2756373558 | AV121: 106 | AW121: 0.01677718157 | AX121: -0.0048107794 | AY121: 0.2756049739 | AZ121: 0.9612372944 | BA121: 0 | BB121: 0 | BC121: -3.238194439e-05 | BD121: -2.440154535e-05
G122: 4 | H122: 1.999999991 | I122: 1.999999991 | J122: 1.286517362e-05 | K122: 0.9999999953 | L122: 10 | M122: 19.99999991 | N122: 0 | O122: 0 | P122: 1.999999991 | Q122: 0.9999999953 | R122: 1 | S122: 2 | T122: 2 | AA122: 3 | AB122: 1.999999698 | AC122: 1.999999698 | AD122: 0.0001026950777 | AE122: 0.9999998491 | AF122: 10 | AG122: 19.99999698 | AH122: 0 | AI122: 0 | AJ122: 1.999948351 | AK122: 0.9999998491 | AL122: 1 | AM122: 2 | AN122: 1.999999698 | AR122: 107 | AS122: 0.956304756 | AT122: -0.2923717047 | AV122: 107 | AW122: 0.01669066664 | AX122: -0.005102848887 | AY122: 0.292338898 | AZ122: 0.9562804802 | BA122: 0 | BB122: 0 | BC122: -3.28067444e-05 | BD122: -2.427571385e-05
G123: 0 | H123: 1.999999991 | I123: 2 | J123: 1.286517362e-05 | K123: 0.9999999953 | L123: 10 | M123: 19.99999991 | N123: 0 | O123: 0 | P123: 1.999999991 | Q123: 0.9999999953 | R123: 1 | S123: 2 | T123: 2 | AA123: 4 | AB123: 1.999999698 | AC123: 1.999999698 | AD123: 0.0001026950777 | AE123: 0.9999998491 | AF123: 10 | AG123: 19.99999698 | AH123: 0 | AI123: 0 | AJ123: 1.999999698 | AK123: 0.9999998491 | AL123: 1 | AM123: 2 | AN123: 2 | AR123: 108 | AS123: 0.9510565163 | AT123: -0.3090169944 | AV123: 108 | AW123: 0.01659906758 | AX123: -0.005393363996 | AY123: 0.3089837651 | AZ123: 0.9510323738 | BA123: 0 | BB123: 0 | BC123: -3.322928364e-05 | BD123: -2.414248774e-05
G124: 1 | H124: 1.999999995 | I124: 2 | J124: 9.427914449e-09 | K124: 0.9999999976 | L124: 10 | M124: 19.99999995 | N124: 0 | O124: 0 | P124: 1.999999991 | Q124: 0.9999999976 | R124: 1 | S124: 2 | T124: 2 | AA124: 0 | AB124: 1.999999698 | AC124: 2 | AD124: 0.0001026950777 | AE124: 0.9999998491 | AF124: 10 | AG124: 19.99999698 | AH124: 0 | AI124: 0 | AJ124: 1.999999698 | AK124: 0.9999998491 | AL124: 1 | AM124: 2 | AN124: 2 | AR124: 109 | AS124: 0.9455185756 | AT124: -0.3255681545 | AV124: 109 | AW124: 0.01650241228 | AX124: -0.005682236235 | AY124: 0.325534505 | AZ124: 0.9454945737 | BA124: 0 | BB124: 0 | BC124: -3.364943342e-05 | BD124: -2.40019076e-05
G125: 2 | H125: 1.999999995 | I125: 2 | J125: 9.427914449e-09 | K125: 0.9999999976 | L125: 10 | M125: 19.99999995 | N125: 0 | O125: 0 | P125: 1.999999995 | Q125: 0.9999999976 | R125: 1 | S125: 2 | T125: 2 | AA125: 1 | AB125: 1.999999849 | AC125: 2 | AD125: 3.01527507e-07 | AE125: 0.9999999245 | AF125: 10 | AG125: 19.99999849 | AH125: 0 | AI125: 0 | AJ125: 1.999999698 | AK125: 0.9999999245 | AL125: 1 | AM125: 2 | AN125: 2 | AR125: 110 | AS125: 0.9396926208 | AT125: -0.3420201433 | AV125: 110 | AW125: 0.01640073019 | AX125: -0.005969377609 | AY125: 0.3419860763 | AZ125: 0.9396687668 | BA125: 0 | BB125: 0 | BC125: -3.406706574e-05 | BD125: -2.385401623e-05
G126: 3 | H126: 2 | I126: 2 | J126: 9.427914449e-09 | K126: 1 | L126: 10 | M126: 20 | N126: 0 | O126: 0 | P126: 1.999999995 | Q126: 1 | R126: 1 | S126: 2 | T126: 2 | AA126: 2 | AB126: 1.999999849 | AC126: 2 | AD126: 3.01527507e-07 | AE126: 0.9999999245 | AF126: 10 | AG126: 19.99999849 | AH126: 0 | AI126: 0 | AJ126: 1.999999849 | AK126: 0.9999999245 | AL126: 1 | AM126: 2 | AN126: 2 | AR126: 111 | AS126: 0.9335804265 | AT126: -0.3583679495 | AV126: 111 | AW126: 0.01629405227 | AX126: -0.006254700653 | AY126: 0.3583334675 | AZ126: 0.9335567276 | BA126: 0 | BB126: 0 | BC126: -3.448205339e-05 | BD126: -2.369885871e-05
G127: 4 | H127: 2 | I127: 2 | J127: 9.427914449e-09 | K127: 1 | L127: 10 | M127: 20 | N127: 1 | O127: 1 | P127: 2 | Q127: 1 | R127: 2 | S127: 2 | T127: 2.000000002 | AA127: 3 | AB127: 2 | AC127: 2 | AD127: 3.01527507e-07 | AE127: 0.9999999999 | AF127: 10 | AG127: 20 | AH127: 0 | AI127: 0 | AJ127: 1.999999849 | AK127: 0.9999999999 | AL127: 1 | AM127: 2 | AN127: 2 | AR127: 112 | AS127: 0.9271838546 | AT127: -0.3746065934 | AV127: 112 | AW127: 0.01618241103 | AX127: -0.006538118455 | AY127: 0.3745716991 | AZ127: 0.9271603181 | BA127: 0 | BB127: 0 | BC127: -3.489426997e-05 | BD127: -2.353648228e-05
G128: 0 | H128: 2 | I128: 2.000000002 | J128: 9.427914449e-09 | K128: 1 | L128: 10 | M128: 20 | N128: 1 | O128: 1 | P128: 2 | Q128: 1 | R128: 2 | S128: 2 | T128: 2.000000002 | AA128: 4 | AB128: 2 | AC128: 2 | AD128: 3.01527507e-07 | AE128: 0.9999999999 | AF128: 9.999999999 | AG128: 20 | AH128: 1 | AI128: 1 | AJ128: 2 | AK128: 0.9999999999 | AL128: 2 | AM128: 2 | AN128: 4 | AR128: 113 | AS128: 0.9205048535 | AT128: -0.3907311285 | AV128: 113 | AW128: 0.01606584047 | AX128: -0.006819544682 | AY128: 0.3906958249 | AZ128: 0.9204814865 | BA128: 0 | BB128: 0 | BC128: -3.53035899e-05 | BD128: -2.336693641e-05
G129: 1 | H129: 2.000000001 | I129: 2.000000002 | J129: 2.000000165e-09 | K129: 1.000000001 | L129: 10 | M129: 20.00000001 | N129: 1 | O129: 1 | P129: 2 | Q129: 1.000000001 | R129: 2 | S129: 2 | T129: 2.000000002 | AA129: 0 | AB129: 2 | AC129: 4 | AD129: 3.01527507e-07 | AE129: 0.9999999999 | AF129: 9.999999999 | AG129: 20 | AH129: 1 | AI129: 1 | AJ129: 2 | AK129: 0.9999999999 | AL129: 2 | AM129: 2 | AN129: 4 | AR129: 114 | AS129: 0.9135454576 | AT129: -0.4067366431 | AV129: 114 | AW129: 0.0159443761 | AX129: -0.00709889361 | AY129: 0.4067009332 | AZ129: 0.9135222674 | BA129: 0 | BB129: 0 | BC129: -3.570988851e-05 | BD129: -2.319027275e-05
G130: 2 | H130: 2.000000001 | I130: 2.000000002 | J130: 2.000000165e-09 | K130: 1.000000001 | L130: 10 | M130: 20.00000001 | N130: 1 | O130: 1 | P130: 2.000000001 | Q130: 1.000000001 | R130: 2 | S130: 1 | T130: 2.000000002 | AA130: 1 | AB130: 2.5 | AC130: 4 | AD130: 1 | AE130: 1.5 | AF130: 15 | AG130: 25 | AH130: 1 | AI130: 1 | AJ130: 2 | AK130: 1.5 | AL130: 2 | AM130: 2 | AN130: 4 | AR130: 115 | AS130: 0.906307787 | AT130: -0.4226182617 | AV130: 115 | AW130: 0.01581805492 | AX130: -0.007376080146 | AY130: 0.4225821487 | AZ130: 0.9062847805 | BA130: 0 | BB130: 0 | BC130: -3.611304203e-05 | BD130: -2.300654511e-05
G131: 3 | H131: 2.000000002 | I131: 2.000000002 | J131: 2.000000165e-09 | K131: 1.000000002 | L131: 10 | M131: 20.00000002 | N131: 1 | O131: 1 | P131: 2.000000001 | Q131: 1.000000002 | R131: 2 | S131: 1 | T131: 2.000000002 | AA131: 2 | AB131: 2.5 | AC131: 4 | AD131: 1 | AE131: 1.5 | AF131: 15 | AG131: 26.46446609 | AH131: 1 | AI131: 1 | AJ131: 2.5 | AK131: 1.5 | AL131: 2 | AM131: 1 | AN131: 4 | AR131: 116 | AS131: 0.8987940463 | AT131: -0.4383711468 | AV131: 116 | AW131: 0.01568691541 | AX131: -0.007651019857 | AY131: 0.4383346339 | AZ131: 0.8987712305 | BA131: 0 | BB131: 0 | BC131: -3.651292766e-05 | BD131: -2.281580944e-05
G132: 4 | H132: 2.000000002 | I132: 2.000000002 | J132: 2.000000165e-09 | K132: 1.000000002 | L132: 10 | M132: 20.00000002 | N132: 1 | O132: 1 | P132: 2.000000002 | Q132: 1.000000002 | R132: 2 | S132: 1 | T132: 3 | AA132: 3 | AB132: 3 | AC132: 4 | AD132: 1 | AE132: 2 | AF132: 20 | AG132: 35 | AH132: 1 | AI132: 1 | AJ132: 2.5 | AK132: 2 | AL132: 2 | AM132: 1 | AN132: 4 | AR132: 117 | AS132: 0.8910065242 | AT132: -0.4539904997 | AV132: 117 | AW132: 0.0155509975 | AX132: -0.007923628993 | AY132: 0.4539535903 | AZ132: 0.8909839061 | BA132: 0 | BB132: 0 | BC132: -3.690942359e-05 | BD132: -2.261812387e-05
G133: 0 | H133: 2.000000002 | I133: 3 | J133: 2.000000165e-09 | K133: 1.000000002 | L133: 10 | M133: 20.00000002 | N133: 1 | O133: 1 | P133: 2.000000002 | Q133: 1.000000002 | R133: 2 | S133: 1 | T133: 3 | AA133: 4 | AB133: 3 | AC133: 4 | AD133: 1 | AE133: 2 | AF133: 20 | AG133: 35 | AH133: 1 | AI133: 1 | AJ133: 3 | AK133: 2 | AL133: 2 | AM133: 1 | AN133: 3 | AR133: 118 | AS133: 0.8829475929 | AT133: -0.4694715628 | AV133: 118 | AW133: 0.01541034262 | AX133: -0.008193824515 | AY133: 0.4694342604 | AZ133: 0.8829251793 | BA133: 0 | BB133: 0 | BC133: -3.730240904e-05 | BD133: -2.241354859e-05
G134: 1 | H134: 2.500000001 | I134: 3 | J134: 0.999999998 | K134: 1.500000001 | L134: 10 | M134: 25.00000001 | N134: 1 | O134: 1 | P134: 2.000000002 | Q134: 1.500000001 | R134: 2 | S134: 1 | T134: 3 | AA134: 1 | AB134: 3.5 | AC134: 4 | AD134: 0.9999999998 | AE134: 2.5 | AF134: 25 | AG134: 45 | AH134: 1 | AI134: 1 | AJ134: 3 | AK134: 2.5 | AL134: 2 | AM134: 1 | AN134: 3 | AR134: 119 | AS134: 0.8746197071 | AT134: -0.4848096202 | AV134: 119 | AW134: 0.01526499359 | AX134: -0.008461524119 | AY134: 0.4847719285 | AZ134: 0.874597505 | BA134: 0 | BB134: 0 | BC134: -3.769176431e-05 | BD134: -2.220214593e-05
G135: 2 | H135: 2.500000001 | I135: 3 | J135: 0.999999998 | K135: 1.500000001 | L135: 10 | M135: 25.00000001 | N135: 1 | O135: 1 | P135: 2.500000001 | Q135: 1.500000001 | R135: 2 | S135: 1 | T135: 3 | AA135: 2 | AB135: 3.5 | AC135: 4 | AD135: 0.9999999998 | AE135: 2.5 | AF135: 25 | AG135: 46.46446609 | AH135: 1 | AI135: 1 | AJ135: 3.5 | AK135: 2.5 | AL135: 2 | AM135: 1 | AN135: 3 | AR135: 120 | AS135: 0.8660254038 | AT135: -0.5 | AV135: 120 | AW135: 0.0151149947 | AX135: -0.00872664626 | AY135: 0.4999619226 | AZ135: 0.8660034198 | BA135: 0 | BB135: 0 | BC135: -3.807737079e-05 | BD135: -2.198398028e-05
G136: 3 | H136: 3 | I136: 3 | J136: 0.999999998 | K136: 2 | L136: 10 | M136: 30 | N136: 1 | O136: 1 | P136: 2.500000001 | Q136: 2 | R136: 2 | S136: 1 | T136: 3 | AA136: 3 | AB136: 4 | AC136: 4 | AD136: 0.9999999998 | AE136: 3 | AF136: 30 | AG136: 60 | AH136: 1 | AI136: 1 | AJ136: 3.5 | AK136: 3 | AL136: 2 | AM136: 1 | AN136: 3 | AR136: 121 | AS136: 0.8571673007 | AT136: -0.5150380749 | AV136: 121 | AW136: 0.01496039164 | AX136: -0.00898911018 | AY136: 0.5149996158 | AZ136: 0.8571455416 | BA136: 0 | BB136: 0 | BC136: -3.845911103e-05 | BD136: -2.175911809e-05
G137: 4 | H137: 3 | I137: 3 | J137: 0.999999998 | K137: 2 | L137: 2000 | M137: 30 | N137: 2 | O137: 2 | P137: 3 | Q137: 2 | R137: 2 | S137: 1 | T137: 3.000000002 | AA137: 4 | AB137: 4 | AC137: 4 | AD137: 0.9999999998 | AE137: 3 | AF137: 30 | AG137: 60 | AH137: 2 | AI137: 2 | AJ137: 4 | AK137: 3 | AL137: 3 | AM137: 1 | AN137: 4 | AR137: 122 | AS137: 0.8480480962 | AT137: -0.5299192642 | AV137: 122 | AW137: 0.01480123149 | AX137: -0.009248835931 | AY137: 0.5298804274 | AZ137: 0.8480265685 | BA137: 0 | BB137: 0 | BC137: -3.883686874e-05 | BD137: -2.152762787e-05
G138: 0 | H138: 3 | I138: 3.000000002 | J138: 0.999999998 | K138: 2 | L138: 2000 | M138: 30 | N138: 2 | O138: 2 | P138: 3 | Q138: 2 | R138: 2 | S138: 1 | T138: 3.000000002 | AA138: 0 | AB138: 4 | AC138: 6 | AD138: 0.9999999998 | AE138: 3 | AF138: 30 | AG138: 60 | AH138: 2 | AI138: 2 | AJ138: 4 | AK138: 3 | AL138: 3 | AM138: 1 | AN138: 4 | AR138: 123 | AS138: 0.8386705679 | AT138: -0.544639035 | AV138: 123 | AW138: 0.01463756275 | AX138: -0.009505744396 | AY138: 0.5445998245 | AZ138: 0.8386492784 | BA138: 0 | BB138: 0 | BC138: -3.921052885e-05 | BD138: -2.128958012e-05
G139: 1 | H139: 3.000000001 | I139: 3.000000002 | J139: 2.000000165e-09 | K139: 2.000000001 | L139: 2000 | M139: 30.000002 | N139: 2 | O139: 2 | P139: 3 | Q139: 2.000000001 | R139: 2 | S139: 1 | T139: 3.000000002 | AA139: 1 | AB139: 4.5 | AC139: 6 | AD139: 1 | AE139: 3.25 | AF139: 32.5 | AG139: 75 | AH139: 2 | AI139: 2 | AJ139: 4 | AK139: 3.25 | AL139: 3 | AM139: 1 | AN139: 4 | AR139: 124 | AS139: 0.8290375726 | AT139: -0.5591929035 | AV139: 124 | AW139: 0.01446943526 | AX139: -0.009759757319 | AY139: 0.5591533235 | AZ139: 0.8290165275 | BA139: 0 | BB139: 0 | BC139: -3.957997755e-05 | BD139: -2.104504737e-05
G140: 2 | H140: 3.000000001 | I140: 3.000000002 | J140: 2.000000165e-09 | K140: 2.000000001 | L140: 2000 | M140: 30.000002 | N140: 2 | O140: 2 | P140: 3.000000001 | Q140: 2.000000001 | R140: 2 | S140: 1 | T140: 3.000000002 | AA140: 2 | AB140: 4.5 | AC140: 6 | AD140: 1 | AE140: 3.25 | AF140: 32.5 | AG140: 75.73223305 | AH140: 2 | AI140: 2 | AJ140: 4.5 | AK140: 3.25 | AL140: 3 | AM140: 2 | AN140: 4 | AR140: 125 | AS140: 0.8191520443 | AT140: -0.5735764364 | AV140: 125 | AW140: 0.01429690025 | AX140: -0.01001079733 | AY140: 0.5735364912 | AZ140: 0.8191312502 | BA140: 0 | BB140: 0 | BC140: -3.994510229e-05 | BD140: -2.079410408e-05
G141: 3 | H141: 3.000000002 | I141: 3.000000002 | J141: 2.000000165e-09 | K141: 2.000000002 | L141: 2000 | M141: 30.000004 | N141: 2 | O141: 2 | P141: 3.000000001 | Q141: 2.000000002 | R141: 2 | S141: 1 | T141: 3.000000002 | AA141: 3 | AB141: 5 | AC141: 6 | AD141: 1 | AE141: 3.5 | AF141: 35 | AG141: 92.5 | AH141: 2 | AI141: 2 | AJ141: 4.5 | AK141: 3.5 | AL141: 3 | AM141: 2 | AN141: 4 | AR141: 126 | AS141: 0.8090169944 | AT141: -0.5877852523 | AV141: 126 | AW141: 0.01412001026 | AX141: -0.01025878795 | AY141: 0.5877449465 | AZ141: 0.8089964575 | BA141: 0 | BB141: 0 | BC141: -4.030579186e-05 | BD141: -2.053682671e-05
G142: 4 | H142: 3.000000002 | I142: 3.000000002 | J142: 2.000000165e-09 | K142: 2.000000002 | L142: 20 | M142: 30.000004 | N142: 3 | O142: 3 | P142: 3.000000002 | Q142: 2.000000002 | R142: 3 | S142: 1 | T142: 3.000000002 | AA142: 4 | AB142: 5 | AC142: 6 | AD142: 1 | AE142: 3.5 | AF142: 0 | AG142: 92.5 | AH142: 3 | AI142: 3 | AJ142: 5 | AK142: 3.5 | AL142: 1e+50 | AM142: 2 | AN142: 1.625e+50 | AR142: 127 | AS142: 0.79863551 | AT142: -0.6018150232 | AV142: 127 | AW142: 0.01393881917 | AX142: -0.01050365364 | AY142: 0.6017743612 | AZ142: 0.7986152368 | BA142: 0 | BB142: 0 | BC142: -4.066193638e-05 | BD142: -2.027329363e-05
G143: 0 | H143: 3.000000002 | I143: 5.000000002 | J143: 2.000000165e-09 | K143: 2.000000002 | L143: 20 | M143: 30.000004 | N143: 3 | O143: 3 | P143: 3.000000002 | Q143: 2.000000002 | R143: 3 | S143: 1 | T143: 3.000000002 | AA143: 1 | AB143: 5.5 | AC143: 6 | AD143: 0.9999999998 | AE143: 3.75 | AF143: 0 | AG143: 92.5 | AH143: 3 | AI143: 3 | AJ143: 5 | AK143: 3.75 | AL143: 1e+50 | AM143: 2 | AN143: 1.625e+50 | AR143: 128 | AS143: 0.7880107536 | AT143: -0.6156614753 | AV143: 128 | AW143: 0.01375338219 | AX143: -0.01074531982 | AY143: 0.6156204619 | AZ143: 0.78799075 | BA143: 0 | BB143: 0 | BC143: -4.101342738e-05 | BD143: -2.00035851e-05
G144: 1 | H144: 3.500000001 | I144: 5.000000002 | J144: 0.999999998 | K144: 2.500000001 | L144: 20 | M144: 40.00000398 | N144: 3 | O144: 3 | P144: 3.000000002 | Q144: 2.500000001 | R144: 3 | S144: 1 | T144: 3.000000002 | AA144: 2 | AB144: 5.5 | AC144: 6 | AD144: 0.9999999998 | AE144: 3.75 | AF144: 0 | AG144: 92.5 | AH144: 3 | AI144: 3 | AJ144: 5.5 | AK144: 3.75 | AL144: 1e+50 | AM144: 2 | AN144: 1.625e+50 | AR144: 129 | AS144: 0.7771459615 | AT144: -0.629320391 | AV144: 129 | AW144: 0.0135637558 | AX144: -0.01098371287 | AY144: 0.6292790309 | AZ144: 0.7771262337 | BA144: =AW144-AS144*(PI()/180) -> 0 | BB144: =AX144-AT144*(PI()/180) -> 0 | BC144: =AY144+COS(RADIANS(AR144)) -> -4.136015778e-05 | BD144: =AZ144-SIN(RADIANS(AR144)) -> -1.972778329e-05
G145: 2 | H145: 3.500000001 | I145: 5.000000002 | J145: 0.999999998 | K145: 2.500000001 | L145: 20 | M145: 40.00000398 | N145: 3 | O145: 3 | P145: 3.500000001 | Q145: 2.500000001 | R145: 3 | S145: 1 | T145: 3.000000002 | AA145: 3 | AB145: 6 | AC145: 6 | AD145: 0.9999999998 | AE145: 4 | AF145: 0 | AG145: 92.5 | AH145: 3 | AI145: 3 | AJ145: 5.5 | AK145: 4 | AL145: 1e+50 | AM145: 2 | AN145: 1.625e+50 | AR145: =AR144+1 -> 130 | AS145: =SIN(RADIANS(AR145)) -> 0.7660444431 | AT145: =COS(RADIANS(AR145)) -> -0.6427876097 | AV145: 130 | AW145: 0.01336999775 | AX145: -0.01121876018 | AY145: 0.6427459077 | AZ145: 0.7660249971 | BA145: 0 | BB145: 0 | BC145: -4.170202196e-05 | BD145: -1.94459722e-05
G146: 3 | H146: 4 | I146: 5.000000002 | J146: 0.999999998 | K146: 3 | L146: 20 | M146: 50.00000396 | N146: 3 | O146: 3 | P146: 3.500000001 | Q146: 3 | R146: 3 | S146: 1 | T146: 3.000000002 | AA146: 4 | AB146: 6 | AC146: 6 | AD146: 0.9999999998 | AE146: 4 | AF146: 0 | AG146: 92.5 | AH146: 3 | AI146: 3 | AJ146: 6 | AK146: 4 | AL146: 1e+50 | AM146: 2 | AN146: 1.90625e+50 | AR146: 131 | AS146: 0.7547095802 | AT146: -0.656059029 | AV146: 131 | AW146: 0.01317216707 | AX146: -0.01145039014 | AY146: 0.6560169901 | AZ146: 0.754690422 | BA146: 0 | BB146: 0 | BC146: -4.20389158e-05 | BD146: -1.915823768e-05
G147: 4 | H147: 4 | I147: 5.000000002 | J147: 0.999999998 | K147: 3 | L147: 0 | M147: 50.00000396 | N147: 4 | O147: 4 | P147: 4 | Q147: 3 | R147: 1e+50 | S147: 1 | T147: 4.000000002 | AA147: 3 | AB147: 5.625 | AC147: 5.625 | AD147: 0.6249999997 | AE147: 3.625000001 | AF147: 0 | AG147: 75 | AH147: 3 | AI147: 3 | AJ147: 5.3125 | AK147: 3.625000001 | AL147: 1e+50 | AM147: 1 | AN147: 8.125e+49 | AR147: 132 | AS147: 0.7431448255 | AT147: -0.6691306064 | AV147: 132 | AW147: 0.01297032402 | AX147: -0.01167853221 | AY147: 0.6690882356 | AZ147: 0.7431259608 | BA147: 0 | BB147: 0 | BC147: -4.237073667e-05 | BD147: -1.886466738e-05
G148: 1 | H148: 4.5 | I148: 5.000000002 | J148: 1 | K148: 3.5 | L148: 0 | M148: 50.00000396 | N148: 4 | O148: 4 | P148: 4 | Q148: 3.5 | R148: 1e+50 | S148: 1 | T148: 4.000000002 | AA148: 4 | AB148: 5.625 | AC148: 5.625 | AD148: 0.6249999997 | AE148: 3.625000001 | AF148: 0 | AG148: 75 | AH148: 3 | AI148: 3 | AJ148: 5.625 | AK148: 3.625000001 | AL148: 1e+50 | AM148: 1 | AN148: 9.53125e+49 | AR148: 133 | AS148: 0.7313537016 | AT148: -0.6819983601 | AV148: 133 | AW148: 0.01276453009 | AX148: -0.01190311688 | AY148: 0.6819556627 | AZ148: 0.7313351363 | BA148: 0 | BB148: 0 | BC148: -4.269738348e-05 | BD148: -1.856535072e-05
G149: 2 | H149: 4.5 | I149: 5.000000002 | J149: 1 | K149: 3.5 | L149: 0 | M149: 50.00000396 | N149: 4 | O149: 4 | P149: 4.5 | Q149: 3.5 | R149: 1e+50 | S149: 1 | T149: 4.000000002 | AA149: 0 | AB149: 5.625 | AC149: 7.625 | AD149: 0.6249999997 | AE149: 3.625000001 | AF149: 0 | AG149: 75 | AH149: 3 | AI149: 3 | AJ149: 5.625 | AK149: 3.625000001 | AL149: 1e+50 | AM149: 1 | AN149: 9.53125e+49 | AR149: 134 | AS149: 0.7193398003 | AT149: -0.6946583705 | AV149: 134 | AW149: 0.01255484796 | AX149: -0.01212407574 | AY149: 0.6946153517 | AZ149: 0.71932154 | BA149: 0 | BB149: 0 | BC149: -4.301875676e-05 | BD149: -1.826037887e-05
G150: 3 | H150: 5 | I150: 5.000000002 | J150: 1 | K150: 4 | L150: 0 | M150: 50.00000396 | N150: 4 | O150: 4 | P150: 4.5 | Q150: 4 | R150: 1e+50 | S150: 1 | T150: 4.000000002 | AA150: 1 | AB150: 5.8125 | AC150: 7.625 | AD150: 0.3750000003 | AE150: 3.812500001 | AF150: 0 | AG150: 75 | AH150: 3 | AI150: 3 | AJ150: 5.625 | AK150: 3.812500001 | AL150: 1e+50 | AM150: 1 | AN150: 9.53125e+49 | AR150: 135 | AS150: 0.7071067812 | AT150: -0.7071067812 | AV150: 135 | AW150: 0.01234134149 | AX150: -0.01234134149 | AY150: 0.7070634464 | AZ150: 0.7070888313 | BA150: 0 | BB150: 0 | BC150: -4.333475859e-05 | BD150: -1.794984473e-05
G151: 4 | H151: 5 | I151: 5.000000002 | J151: 1 | K151: 4 | L151: 0 | M151: 50.00000396 | N151: 4 | O151: 4 | P151: 5 | Q151: 4 | R151: 1e+50 | S151: 1 | T151: 8.125e+49 | AA151: 2 | AB151: 5.8125 | AC151: 7.625 | AD151: 0.3750000003 | AE151: 3.812500001 | AF151: 0 | AG151: 75 | AH151: 3 | AI151: 3 | AJ151: 5.8125 | AK151: 3.812500001 | AL151: 1e+50 | AM151: 1 | AN151: 9.53125e+49 | AR151: 136 | AS151: 0.6946583705 | AT151: -0.7193398003 | AV151: 136 | AW151: 0.01212407574 | AX151: -0.01255484796 | AY151: 0.719296155 | AZ151: 0.6946407366 | BA151: 0 | BB151: 0 | BC151: -4.364529273e-05 | BD151: -1.76338429e-05
G152: 1 | H152: 5.000000001 | I152: 5.000000002 | J152: 1.99913508e-09 | K152: 4.000000001 | L152: 0 | M152: 50.00000396 | N152: 4 | O152: 4 | P152: 5 | Q152: 4.000000001 | R152: 1e+50 | S152: 1 | T152: 8.125e+49 | AA152: 3 | AB152: 6 | AC152: 7.625 | AD152: 0.3750000003 | AE152: 4.000000001 | AF152: 0 | AG152: 75 | AH152: 3 | AI152: 3 | AJ152: 5.8125 | AK152: 4.000000001 | AL152: 1e+50 | AM152: 1 | AN152: 9.53125e+49 | AR152: 137 | AS152: 0.6819983601 | AT152: -0.7313537016 | AV152: 137 | AW152: 0.01190311688 | AX152: -0.01276453009 | AY152: 0.7313097514 | AZ152: 0.6819810476 | BA152: 0 | BB152: 0 | BC152: -4.395026458e-05 | BD152: -1.731246962e-05
G153: 2 | H153: 5.000000001 | I153: 5.000000002 | J153: 1.99913508e-09 | K153: 4.000000001 | L153: 0 | M153: 50.00000396 | N153: 4 | O153: 4 | P153: 5.000000001 | Q153: 4.000000001 | R153: 1e+50 | S153: 1 | T153: 8.125e+49 | AA153: 4 | AB153: 6 | AC153: 7.625 | AD153: 0.3750000003 | AE153: 4.000000001 | AF153: 0 | AG153: 75 | AH153: 3 | AI153: 3 | AJ153: 6 | AK153: 4.000000001 | AL153: 1e+50 | AM153: 1 | AN153: 9.8828125e+49 | AR153: 138 | AS153: 0.6691306064 | AT153: -0.7431448255 | AV153: 138 | AW153: 0.01167853221 | AX153: -0.01297032402 | AY153: 0.7431005759 | AZ153: 0.6691136205 | BA153: 0 | BB153: 0 | BC153: -4.424958124e-05 | BD153: -1.69858228e-05
G154: 3 | H154: 5.000000002 | I154: 5.000000002 | J154: 1.99913508e-09 | K154: 4.000000002 | L154: 0 | M154: 50.00000396 | N154: 4 | O154: 4 | P154: 5.000000001 | Q154: 4.000000002 | R154: 1e+50 | S154: 1 | T154: 8.125e+49 | AA154: 1 | AB154: 6.5 | AC154: 7.625 | AD154: 1 | AE154: 4.500000001 | AF154: 0 | AG154: 75 | AH154: 3 | AI154: 3 | AJ154: 6 | AK154: 4.500000001 | AL154: 1e+50 | AM154: 1 | AN154: 9.8828125e+49 | AR154: 139 | AS154: 0.656059029 | AT154: -0.7547095802 | AV154: 139 | AW154: 0.01145039014 | AX154: -0.01317216707 | AY154: 0.7546650371 | AZ154: 0.656042375 | BA154: 0 | BB154: 0 | BC154: -4.454315155e-05 | BD154: -1.665400194e-05
G155: 4 | H155: 5.000000002 | I155: 5.000000002 | J155: 1.99913508e-09 | K155: 4.000000002 | L155: 0 | M155: 50.00000396 | N155: 4 | O155: 4 | P155: 5.000000002 | Q155: 4.000000002 | R155: 1e+50 | S155: 1 | T155: 9.53125e+49 | AA155: 2 | AB155: 6.5 | AC155: 7.625 | AD155: 1 | AE155: 4.500000001 | AF155: 0 | AG155: 75 | AH155: 3 | AI155: 3 | AJ155: 6.5 | AK155: 4.500000001 | AL155: 1e+50 | AM155: 1 | AN155: 9.8828125e+49 | AR155: 140 | AS155: 0.6427876097 | AT155: -0.7660444431 | AV155: 140 | AW155: 0.01121876018 | AX155: -0.01336999775 | AY155: 0.7659996122 | AZ155: 0.6427712926 | BA155: 0 | BB155: 0 | BC155: -4.483088606e-05 | BD155: -1.63171081e-05
G156: 0 | H156: 5.000000002 | I156: 7.000000002 | J156: 1.99913508e-09 | K156: 4.000000002 | L156: 0 | M156: 50.00000396 | N156: 4 | O156: 4 | P156: 5.000000002 | Q156: 4.000000002 | R156: 1e+50 | S156: 1 | T156: 9.53125e+49 | AA156: 3 | AB156: 7 | AC156: 7.625 | AD156: 1 | AE156: 5.000000001 | AF156: 0 | AG156: 75 | AH156: 3 | AI156: 3 | AJ156: 6.5 | AK156: 5.000000001 | AL156: 1e+50 | AM156: 1 | AN156: 9.8828125e+49 | AR156: 141 | AS156: 0.629320391 | AT156: -0.7771459615 | AV156: 141 | AW156: 0.01098371287 | AX156: -0.0135637558 | AY156: 0.7771008488 | AZ156: 0.6293044158 | BA156: 0 | BB156: 0 | BC156: -4.511269715e-05 | BD156: -1.597524392e-05
G157: 1 | H157: 5.500000001 | I157: 7.000000002 | J157: 0.999999998 | K157: 4.250000002 | L157: 0 | M157: 50.00000396 | N157: 4 | O157: 4 | P157: 5.000000002 | Q157: 4.250000002 | R157: 1e+50 | S157: 1 | T157: 9.53125e+49 | AA157: 4 | AB157: 7 | AC157: 7.625 | AD157: 1 | AE157: 5.000000001 | AF157: 0 | AG157: 75 | AH157: 3 | AI157: 3 | AJ157: 7 | AK157: 5.000000001 | AL157: 1e+50 | AM157: 1 | AN157: 9.970703125e+49 | AR157: 142 | AS157: 0.6156614753 | AT157: -0.7880107536 | AV157: 142 | AW157: 0.01074531982 | AX157: -0.01375338219 | AY157: 0.7879653651 | AZ157: 0.6156458468 | BA157: 0 | BB157: 0 | BC157: -4.538849896e-05 | BD157: -1.562851352e-05
G158: 2 | H158: 5.500000001 | I158: 7.000000002 | J158: 0.999999998 | K158: 4.250000002 | L158: 0 | M158: 50.00000396 | N158: 4 | O158: 4 | P158: 5.500000001 | Q158: 4.250000002 | R158: 1e+50 | S158: 2 | T158: 9.53125e+49 | AA158: 1 | AB158: 7.3125 | AC158: 7.625 | AD158: 0.6249999997 | AE158: 5.312500001 | AF158: 0 | AG158: 75 | AH158: 3 | AI158: 3 | AJ158: 7 | AK158: 5.312500001 | AL158: 1e+50 | AM158: 1 | AN158: 9.970703125e+49 | AR158: 143 | AS158: 0.6018150232 | AT158: -0.79863551 | AV158: 143 | AW158: 0.01050365364 | AX158: -0.01393881917 | AY158: 0.7985898518 | AZ158: 0.6017997461 | BA158: 0 | BB158: 0 | BC158: -4.565820749e-05 | BD158: -1.527702252e-05
G159: 3 | H159: 6 | I159: 7.000000002 | J159: 0.999999998 | K159: 4.500000001 | L159: 0 | M159: 50.00000396 | N159: 4 | O159: 4 | P159: 5.500000001 | Q159: 4.500000001 | R159: 1e+50 | S159: 2 | T159: 9.53125e+49 | AA159: 2 | AB159: 7.3125 | AC159: 7.625 | AD159: 0.6249999997 | AE159: 5.312500001 | AF159: 0 | AG159: 75 | AH159: 3 | AI159: 3 | AJ159: 7.3125 | AK159: 5.312500001 | AL159: 1e+50 | AM159: 1 | AN159: 9.970703125e+49 | AR159: 144 | AS159: 0.5877852523 | AT159: -0.8090169944 | AV159: 144 | AW159: 0.01025878795 | AX159: -0.01412001026 | AY159: 0.8089710726 | AZ159: 0.5877703314 | BA159: 0 | BB159: 0 | BC159: -4.592174058e-05 | BD159: -1.4920878e-05
G160: 4 | H160: 6 | I160: 7.000000002 | J160: 0.999999998 | K160: 4.500000001 | L160: 0 | M160: 50.00000396 | N160: 4 | O160: 4 | P160: 6 | Q160: 4.500000001 | R160: 1e+50 | S160: 2 | T160: 1.9765625e+50 | AA160: 3 | AB160: 7.625 | AC160: 7.625 | AD160: 0.6249999997 | AE160: 5.625000001 | AF160: 0 | AG160: 75 | AH160: 3 | AI160: 3 | AJ160: 7.3125 | AK160: 5.625000001 | AL160: 1e+50 | AM160: 1 | AN160: 9.970703125e+49 | AR160: 145 | AS160: 0.5735764364 | AT160: -0.8191520443 | AV160: 145 | AW160: 0.01001079733 | AX160: -0.01429690025 | AY160: 0.8191058653 | AZ160: 0.5735618762 | BA160: 0 | BB160: 0 | BC160: -4.617901794e-05 | BD160: -1.456018843e-05
G161: 1 | H161: 6.5 | I161: 7.000000002 | J161: 1 | K161: 4.750000001 | L161: 0 | M161: 50.00000396 | N161: 4 | O161: 4 | P161: 6 | Q161: 4.750000001 | R161: 1e+50 | S161: 2 | T161: 1.9765625e+50 | AA161: 4 | AB161: 7.625 | AC161: 7.625 | AD161: 0.6249999997 | AE161: 5.625000001 | AF161: 0 | AG161: 75 | AH161: 3 | AI161: 3 | AJ161: 7.625 | AK161: 5.625000001 | AL161: 1e+50 | AM161: 1 | AN161: 9.992675781e+49 | AR161: 146 | AS161: 0.5591929035 | AT161: -0.8290375726 | AV161: 146 | AW161: 0.009759757319 | AX161: -0.01446943526 | AY161: 0.8289911426 | AZ161: 0.5591787084 | BA161: 0 | BB161: 0 | BC161: -4.642996123e-05 | BD161: -1.419506369e-05
G162: 2 | H162: 6.5 | I162: 7.000000002 | J162: 1 | K162: 4.750000001 | L162: 0 | M162: 50.00000396 | N162: 4 | O162: 4 | P162: 6.5 | Q162: 4.750000001 | R162: 1e+50 | S162: 2 | T162: 1.9765625e+50 | AA162: 0 | AB162: 7.625 | AC162: 9.625 | AD162: 0.6249999997 | AE162: 5.625000001 | AF162: 0 | AG162: 75 | AH162: 3 | AI162: 3 | AJ162: 7.625 | AK162: 5.625000001 | AL162: 1e+50 | AM162: 1 | AN162: 9.992675781e+49 | AR162: 147 | AS162: 0.544639035 | AT162: -0.8386705679 | AV162: 147 | AW162: 0.009505744396 | AX162: -0.01463756275 | AY162: 0.8386238935 | AZ162: 0.5446252094 | BA162: 0 | BB162: 0 | BC162: -4.667449399e-05 | BD162: -1.382561499e-05
G163: 3 | H163: 7 | I163: 7.000000002 | J163: 1 | K163: 5.000000001 | L163: 0 | M163: 50.00000396 | N163: 4 | O163: 4 | P163: 6.5 | Q163: 5.000000001 | R163: 1e+50 | S163: 2 | T163: 1.9765625e+50 | AA163: 1 | AB163: 7.8125 | AC163: 9.625 | AD163: 0.3750000003 | AE163: 5.718750001 | AF163: 0 | AG163: 75 | AH163: 3 | AI163: 3 | AJ163: 7.625 | AK163: 5.718750001 | AL163: 1e+50 | AM163: 1 | AN163: 9.992675781e+49 | AR163: 148 | AS163: 0.5299192642 | AT163: -0.8480480962 | AV163: 148 | AW163: 0.009248835931 | AX163: -0.01480123149 | AY163: 0.8480011836 | AZ163: 0.5299058123 | BA163: 0 | BB163: 0 | BC163: -4.691254173e-05 | BD163: -1.345195488e-05
G164: 4 | H164: 7 | I164: 7.000000002 | J164: 1 | K164: 5.000000001 | L164: 0 | M164: 50.00000396 | N164: 4 | O164: 4 | P164: 7 | Q164: 5.000000001 | R164: 1e+50 | S164: 2 | T164: 1.994140625e+50 | AA164: 2 | AB164: 7.8125 | AC164: 9.625 | AD164: 0.3750000003 | AE164: 5.718750001 | AF164: 0 | AG164: 75 | AH164: 3 | AI164: 3 | AJ164: 7.8125 | AK164: 5.718750001 | AL164: 1e+50 | AM164: 2 | AN164: 9.992675781e+49 | AR164: 149 | AS164: 0.5150380749 | AT164: -0.8571673007 | AV164: 149 | AW164: 0.00898911018 | AX164: -0.01496039164 | AY164: 0.8571201567 | AZ164: 0.5150250007 | BA164: 0 | BB164: 0 | BC164: -4.714403195e-05 | BD164: -1.307419717e-05
G165: 1 | H165: 7.000000001 | I165: 7.000000002 | J165: 1.99913508e-09 | K165: 5.000000002 | L165: 0 | M165: 50.00000396 | N165: 4 | O165: 4 | P165: 7 | Q165: 5.000000002 | R165: 1e+50 | S165: 2 | T165: 1.994140625e+50 | AA165: 3 | AB165: 8 | AC165: 9.625 | AD165: 0.3750000003 | AE165: 5.812500001 | AF165: 0 | AG165: 75 | AH165: 3 | AI165: 3 | AJ165: 7.8125 | AK165: 5.812500001 | AL165: 1e+50 | AM165: 2 | AN165: 9.992675781e+49 | AR165: 150 | AS165: 0.5 | AT165: -0.8660254038 | AV165: 150 | AW165: 0.00872664626 | AX165: -0.0151149947 | AY165: 0.8659780349 | AZ165: 0.4999873075 | BA165: 0 | BB165: 0 | BC165: -4.736889414e-05 | BD165: -1.269245693e-05
G166: 2 | H166: 7.000000001 | I166: 7.000000002 | J166: 1.99913508e-09 | K166: 5.000000002 | L166: 0 | M166: 50.00000396 | N166: 4 | O166: 4 | P166: 7.000000001 | Q166: 5.000000002 | R166: 1e+50 | S166: 1.999998223 | T166: 1.994140625e+50 | AA166: 4 | AB166: 8 | AC166: 9.625 | AD166: 0.3750000003 | AE166: 5.812500001 | AF166: 0 | AG166: 75 | AH166: 3 | AI166: 3 | AJ166: 8 | AK166: 5.812500001 | AL166: 1e+50 | AM166: 2 | AN166: 1.999633789e+50 | AR166: 151 | AS166: 0.4848096202 | AT166: -0.8746197071 | AV166: 151 | AW166: 0.008461524119 | AX166: -0.01526499359 | AY166: 0.8745721201 | AZ166: 0.4847973134 | BA166: 0 | BB166: 0 | BC166: -4.758705979e-05 | BD166: -1.230685045e-05
G167: 3 | H167: 7.000000002 | I167: 7.000000002 | J167: 1.99913508e-09 | K167: 5.000000002 | L167: 0 | M167: 50.00000396 | N167: 4 | O167: 4 | P167: 7.000000001 | Q167: 5.000000002 | R167: 1e+50 | S167: 1.999998223 | T167: 1.994140625e+50 | AA167: 1 | AB167: 8.5 | AC167: 9.625 | AD167: 1 | AE167: 6.062500001 | AF167: 0 | AG167: 75 | AH167: 3 | AI167: 3 | AJ167: 8 | AK167: 6.062500001 | AL167: 1e+50 | AM167: 2 | AN167: 1.999633789e+50 | AR167: 152 | AS167: 0.4694715628 | AT167: -0.8829475929 | AV167: 152 | AW167: 0.008193824515 | AX167: -0.01541034262 | AY167: 0.8828997944 | AZ167: 0.4694596453 | BA167: 0 | BB167: 0 | BC167: -4.779846245e-05 | BD167: -1.191749518e-05
G168: 4 | H168: 7.000000002 | I168: 7.000000002 | J168: 1.99913508e-09 | K168: 5.000000002 | L168: 0 | M168: 50.00000396 | N168: 4 | O168: 4 | P168: 7.000000002 | Q168: 5.000000002 | R168: 1e+50 | S168: 2.000001777 | T168: 1.998536932e+50 | AA168: 2 | AB168: 8.5 | AC168: 9.625 | AD168: 1 | AE168: 6.062500001 | AF168: 0 | AG168: 75 | AH168: 3 | AI168: 3 | AJ168: 8.5 | AK168: 6.062500001 | AL168: 1e+50 | AM168: 2 | AN168: 1.999633789e+50 | AR168: 153 | AS168: 0.4539904997 | AT168: -0.8910065242 | AV168: 153 | AW168: 0.007923628993 | AX168: -0.0155509975 | AY168: 0.8909585212 | AZ168: 0.4539789752 | BA168: 0 | BB168: 0 | BC168: -4.800303773e-05 | BD168: -1.152450973e-05
AA169: 3 | AB169: 9 | AC169: 9.625 | AD169: 1 | AE169: 6.312500001 | AF169: 0 | AG169: 75 | AH169: 3 | AI169: 3 | AJ169: 8.5 | AK169: 6.312500001 | AL169: 1e+50 | AM169: 2 | AN169: 1.999633789e+50 | AR169: 154 | AS169: 0.4383711468 | AT169: -0.8987940463 | AV169: 154 | AW169: 0.007651019857 | AX169: -0.01568691541 | AY169: 0.8987458456 | AZ169: 0.4383600188 | BA169: 0 | BB169: 0 | BC169: -4.82007233e-05 | BD169: -1.11280138e-05
AA170: 4 | AB170: 9 | AC170: 9.625 | AD170: 1 | AE170: 6.312500001 | AF170: 0 | AG170: 75 | AH170: 3 | AI170: 3 | AJ170: 9 | AK170: 6.312500001 | AL170: 1e+50 | AM170: 2 | AN170: 2e+50 | AR170: 155 | AS170: 0.4226182617 | AT170: -0.906307787 | AV170: 155 | AW170: 0.007376080146 | AX170: -0.01581805492 | AY170: 0.9062593956 | AZ170: 0.4226075336 | BA170: 0 | BB170: 0 | BC170: -4.839145897e-05 | BD170: -1.072812817e-05
AA171: 1 | AB171: 9.3125 | AC171: 9.625 | AD171: 0.6249999997 | AE171: 6.468750001 | AF171: 0 | AG171: 75 | AH171: 3 | AI171: 3 | AJ171: 9 | AK171: 6.468750001 | AL171: 1e+50 | AM171: 2 | AN171: 2e+50 | AR171: 156 | AS171: 0.4067366431 | AT171: -0.9135454576 | AV171: 156 | AW171: 0.00709889361 | AX171: -0.0159443761 | AY171: 0.9134968825 | AZ171: 0.4067263181 | BA171: 0 | BB171: 0 | BC171: -4.857518661e-05 | BD171: -1.032497465e-05
AA172: 2 | AB172: 9.3125 | AC172: 9.625 | AD172: 0.6249999997 | AE172: 6.468750001 | AF172: 0 | AG172: 75 | AH172: 3 | AI172: 3 | AJ172: 9.3125 | AK172: 6.468750001 | AL172: 1e+50 | AM172: 2 | AN172: 2e+50 | AR172: 157 | AS172: 0.3907311285 | AT172: -0.9205048535 | AV172: 157 | AW172: 0.006819544682 | AX172: -0.01606584047 | AY172: 0.9204561016 | AZ172: 0.3907212098 | BA172: 0 | BB172: 0 | BC172: -4.875185027e-05 | BD172: -9.918676039e-06
AA173: 3 | AB173: 9.625 | AC173: 9.625 | AD173: 0.6249999997 | AE173: 6.625000001 | AF173: 0 | AG173: 75 | AH173: 3 | AI173: 3 | AJ173: 9.3125 | AK173: 6.625000001 | AL173: 1e+50 | AM173: 2 | AN173: 2e+50 | AR173: 158 | AS173: 0.3746065934 | AT173: -0.9271838546 | AV173: 158 | AW173: 0.006538118455 | AX173: -0.01618241103 | AY173: 0.9271349332 | AZ173: 0.3745970841 | BA173: 0 | BB173: 0 | BC173: -4.892139614e-05 | BD173: -9.509356106e-06
AA174: 4 | AB174: 9.625 | AC174: 9.625 | AD174: 0.6249999997 | AE174: 6.625000001 | AF174: 0 | AG174: 75 | AH174: 3 | AI174: 3 | AJ174: 9.625 | AK174: 6.625000001 | AL174: 1e+50 | AM174: 2 | AN174: 2e+50 | AR174: 159 | AS174: 0.3583679495 | AT174: -0.9335804265 | AV174: 159 | AW174: 0.006254700653 | AX174: -0.01629405227 | AY174: 0.9335313427 | AZ174: 0.3583588524 | BA174: 0 | BB174: 0 | BC174: -4.908377257e-05 | BD174: -9.097139529e-06
AR175: 160 | AS175: 0.3420201433 | AT175: -0.9396926208 | AV175: 160 | AW175: 0.005969377609 | AX175: -0.01640073019 | AY175: 0.9396433819 | AZ175: 0.3420114612 | BA175: 0 | BB175: 0 | BC175: -4.92389301e-05 | BD175: -8.682151877e-06
AR176: 161 | AS176: 0.3255681545 | AT176: -0.9455185756 | AV176: 161 | AW176: 0.005682236235 | AX176: -0.01650241228 | AY176: 0.9454691888 | AZ176: 0.3255598899 | BA176: 0 | BB176: 0 | BC176: -4.938682146e-05 | BD176: -8.264519556e-06
AR177: 162 | AS177: 0.3090169944 | AT177: -0.9510565163 | AV177: 162 | AW177: 0.005393363996 | AX177: -0.01659906758 | AY177: 0.9510069889 | AZ177: 0.30900915 | BA177: 0 | BB177: 0 | BC177: -4.95274016e-05 | BD177: -7.844369784e-06
B178: =exe("実行","TableTest",C181:D193,F182:F185,G182:T182) -> 実行 | AR178: 163 | AS178: 0.2923717047 | AT178: -0.956304756 | AV178: 163 | AW178: 0.005102848887 | AX178: -0.01669066664 | AY178: 0.9562550953 | AZ178: 0.2923642829 | BA178: 0 | BB178: 0 | BC178: -4.966062772e-05 | BD178: -7.421830539e-06
AR179: 164 | AS179: 0.2756373558 | AT179: -0.9612616959 | AV179: 164 | AW179: 0.0048107794 | AX179: -0.01677718157 | AY179: 0.9612119095 | AZ179: 0.2756303588 | BA179: 0 | BB179: 0 | BC179: -4.978645921e-05 | BD179: -6.997030534e-06
B180: 汎用関数テーブル（ステップ） | G180: INTG | N180: Table | AR180: 165 | AS180: 0.2588190451 | AT180: -0.9659258263 | AV180: 165 | AW180: 0.004517244504 | AX180: -0.016858586 | AY180: 0.9658759214 | AZ180: 0.258812475 | BA180: 0 | BB180: 0 | BC180: -4.990485776e-05 | BD180: -6.570099165e-06
B181: 関数名 | C181: GeneralTable | F181: arg | G181: jIms | H181: t | I181: tDis | J181: dt | K181: a | L181: f | M181: ∫f | N181: ix | O181: ixp | P181: t | Q181: arg | R181: aDis | S181: slp | T181: tDis | AR181: 166 | AS181: 0.2419218956 | AT181: -0.9702957263 | AV181: 166 | AW181: 0.004222333611 | AX181: -0.01693485514 | AY181: 0.9702457105 | AZ181: 0.2419157544 | BA181: 0 | BB181: 0 | BC181: -5.001578729e-05 | BD181: -6.141166481e-06
B182: 引数名 | C182: argument | F182: 0 | G182: 0 | H182: 0 | I182: 2e-09 | J182: 1.99913508e-09 | K182: 0 | L182: 10 | M182: 0 | N182: 0 | O182: 0 | P182: 0 | Q182: 0 | R182: 1 | S182: 1 | T182: 2e-09 | AR182: 167 | AS182: 0.2249510543 | AT182: -0.9743700648 | AV182: 167 | AW182: 0.003926136554 | AX182: -0.01700596576 | AY182: 0.9743199456 | AZ182: 0.224945344 | BA182: 0 | BB182: 0 | BC182: -5.011921402e-05 | BD182: -5.710363137e-06
B183: 関数の数 | C183: 1 | F183: 1 | G183: 1 | H183: 1e-09 | I183: 2e-09 | J183: 2e-09 | K183: 5e-10 | L183: 10 | M183: 1e-08 | N183: 0 | O183: 0 | P183: 0 | Q183: 5e-10 | R183: 1 | S183: 1 | T183: 2e-09 | AR183: 168 | AS183: 0.2079116908 | AT183: -0.9781476007 | AV183: 168 | AW183: 0.003628743558 | AX183: -0.0170718962 | AY183: 0.9780973856 | AZ183: 0.207906413 | BA183: 0 | BB183: 0 | BC183: -5.021510645e-05 | BD183: -5.277820362e-06
B184: 補間方法 | C184: ステップ | F184: 3 | G184: 2 | H184: 1e-09 | I184: 2e-09 | J184: 2e-09 | K184: 5e-10 | L184: 10 | M184: 1e-08 | N184: 0 | O184: 0 | P184: 1e-09 | Q184: 5e-10 | R184: 1 | S184: 2 | T184: 2e-09 | AR184: 169 | AS184: 0.1908089954 | AT184: -0.9816271834 | AV184: 169 | AW184: 0.003330245212 | AX184: -0.01713262638 | AY184: 0.98157688 | AZ184: 0.1908041517 | BA184: 0 | BB184: 0 | BC184: -5.030343536e-05 | BD184: -4.843669911e-06
B185: 前端点処理 | C185: 一定 | F185: 4 | G185: 3 | H185: 2e-09 | I185: 2e-09 | J185: 2e-09 | K185: 1e-09 | L185: 10 | M185: 2e-08 | N185: 0 | O185: 0 | P185: 1e-09 | Q185: 1e-09 | R185: 1 | S185: 2 | T185: 2e-09 | AR185: 170 | AS185: 0.1736481777 | AT185: -0.984807753 | AV185: 170 | AW185: 0.00303073244 | AX185: -0.01718813779 | AY185: 0.9847573688 | AZ185: 0.1736437696 | BA185: 0 | BB185: 0 | BC185: -5.038417384e-05 | BD185: -4.408044032e-06
B186: 後端点処理 | C186: 一定 | G186: 4 | H186: 2e-09 | I186: 2e-09 | J186: 2e-09 | K186: 1e-09 | L186: 10 | M186: 2e-08 | N186: 0 | O186: 0 | P186: 2e-09 | Q186: 1e-09 | R186: 1 | S186: 2 | T186: 1.999633789 | V186: =exe("実行","TableTest",W189:X200,Z190:Z193,AA190:AN190) -> 実行 | AR186: 171 | AS186: 0.156434465 | AT186: -0.9876883406 | AV186: 171 | AW186: 0.002730296479 | AX186: -0.01723841353 | AY186: 0.9876378833 | AZ186: 0.156430494 | BA186: 0 | BB186: 0 | BC186: -5.045729731e-05 | BD186: -3.97107542e-06
B187: 節点処理 | C187: 積分 | G187: 0 | H187: 2e-09 | I187: 1.999633789 | J187: 2e-09 | K187: 1e-09 | L187: 10 | M187: 2e-08 | N187: 0 | O187: 0 | P187: 2e-09 | Q187: 1e-09 | R187: 1 | S187: 2 | T187: 1.999633789 | AR187: 172 | AS187: 0.139173101 | AT187: -0.9902680687 | AV187: 172 | AW187: 0.002429028842 | AX187: -0.01728343828 | AY187: 0.990217546 | AZ187: 0.1391695681 | BA187: 0 | BB187: 0 | BC187: -5.052278349e-05 | BD187: -3.532897179e-06
B188: 乗数 | C188: 1 | D188: 1 | G188: 1 | H188: 0.500000001 | I188: 1.999633789 | J188: 0.999999998 | K188: 0.2500000005 | L188: 10 | M188: 5.00000001 | N188: 0 | O188: 0 | P188: 2e-09 | Q188: 0.2500000005 | R188: 1 | S188: 2 | T188: 1.999633789 | V188: 汎用関数テーブル（リニア） | AA188: INTG | AH188: Table | AR188: 173 | AS188: 0.1218693434 | AT188: -0.9925461516 | AV188: 173 | AW188: 0.0021270213 | AX188: -0.01732319832 | AY188: 0.992495571 | AZ188: 0.1218662498 | BA188: 0 | BB188: 0 | BC188: -5.058061242e-05 | BD188: -3.093642784e-06
B189: 加数 | C189: 0 | D189: 0 | E189: ix | G189: 2 | H189: 0.500000001 | I189: 1.999633789 | J189: 0.999999998 | K189: 0.2500000005 | L189: 10 | M189: 5.00000001 | N189: 0 | O189: 0 | P189: 0.500000001 | Q189: 0.2500000005 | R189: 1 | S189: 2 | T189: 1.999633789 | V189: 関数名 | W189: GeneralTable | Z189: arg | AA189: jIms | AB189: t | AC189: tDis | AD189: dt | AE189: a | AF189: f | AG189: ∫f | AH189: ix | AI189: ixp | AJ189: t | AK189: arg | AL189: aDis | AM189: slp | AN189: tDis | AR189: 174 | AS189: 0.1045284633 | AT189: -0.9945218954 | AV189: 174 | AW189: 0.001824365846 | AX189: -0.01735768156 | AY189: 0.9944712646 | AZ189: 0.1045258098 | BA189: 0 | BB189: 0 | BC189: -5.063076651e-05 | BD189: -2.653446036e-06
B190: データ | C190: 1 | D190: 10 | E190: 1 | G190: 3 | H190: 1 | I190: 1.999633789 | J190: 0.999999998 | K190: 0.5 | L190: 10 | M190: 10 | N190: 0 | O190: 0 | P190: 0.500000001 | Q190: 0.5 | R190: 1 | S190: 2 | T190: 1.999633789 | V190: 引数名 | W190: argument | Z190: 0 | AA190: 0 | AB190: 0 | AC190: 0.953125 | AD190: 0.9999999998 | AE190: 0 | AF190: 0 | AG190: 0 | AH190: 0 | AI190: 0 | AJ190: 0 | AK190: 0 | AL190: 1 | AM190: 1 | AN190: 0.953125 | AR190: 175 | AS190: 0.08715574275 | AT190: -0.9961946981 | AV190: 175 | AW190: 0.001521154673 | AX190: -0.01738687747 | AY190: 0.9961440249 | AZ190: 0.08715353031 | BA190: 0 | BB190: 0 | BC190: -5.067323046e-05 | BD190: -2.212441022e-06
C191: 2 | D191: 2000 | E191: =E190+1 -> 2 | G191: 4 | H191: 1 | I191: 1.999633789 | J191: 0.999999998 | K191: 0.5 | L191: 10 | M191: 10 | N191: 0 | O191: 0 | P191: 1 | Q191: 0.5 | R191: 1 | S191: 2 | T191: 2 | V191: 関数の数 | W191: 1 | Z191: 1 | AA191: 1 | AB191: 0.4765625 | AC191: 0.953125 | AD191: 0.953125 | AE191: 0.23828125 | AF191: 0 | AG191: 0 | AH191: 0 | AI191: 0 | AJ191: 0 | AK191: 0.23828125 | AL191: 1 | AM191: 1 | AN191: 0.953125 | AR191: 176 | AS191: 0.06975647374 | AT191: -0.9975640503 | AV191: 176 | AW191: 0.001217480141 | AX191: -0.01741077718 | AY191: 0.9975133423 | AZ191: 0.06975470298 | BA191: 0 | BB191: 0 | BC191: -5.070799135e-05 | BD191: -1.770762077e-06
C192: 2 | D192: 20 | E192: =E191+1 -> 3 | G192: 1 | H192: 1.499816895 | I192: 1.999633789 | J192: 0.9996337891 | K192: 0.7499084473 | L192: 10 | M192: 14.99816895 | N192: 0 | O192: 0 | P192: 1 | Q192: 0.7499084473 | R192: 1 | S192: 2 | T192: 2 | V192: 補間方法 | W192: 一次 | Z192: 3 | AA192: 2 | AB192: 0.4765625 | AC192: 0.953125 | AD192: 0.953125 | AE192: 0.23828125 | AF192: 0 | AG192: 0 | AH192: 0 | AI192: 0 | AJ192: 0.4765625 | AK192: 0.23828125 | AL192: 1 | AM192: 2 | AN192: 0.953125 | AR192: 177 | AS192: 0.05233595624 | AT192: -0.9986295348 | AV192: 177 | AW192: 0.0009134347536 | AX192: -0.01742937339 | AY192: 0.9985787997 | AZ192: 0.0523346277 | BA192: 0 | BB192: 0 | BC192: -5.073503858e-05 | BD192: -1.328543741e-06
C193: 3 | D193: 30 | E193: 4 | G193: 2 | H193: 1.499816895 | I193: 1.999633789 | J193: 0.9996337891 | K193: 0.7499084473 | L193: 10 | M193: 14.99816895 | N193: 0 | O193: 0 | P193: 1.499816895 | Q193: 0.7499084473 | R193: 1 | S193: 2 | T193: 2 | V193: 前端点処理 | W193: ゼロ | Z193: 4 | AA193: 3 | AB193: 0.953125 | AC193: 0.953125 | AD193: 0.953125 | AE193: 0.4765625 | AF193: 0 | AG193: 0 | AH193: 0 | AI193: 0 | AJ193: 0.4765625 | AK193: 0.4765625 | AL193: 1 | AM193: 2 | AN193: 0.953125 | AR193: 178 | AS193: 0.0348994967 | AT193: -0.999390827 | AV193: 178 | AW193: 0.0006091111247 | AX193: -0.01744266045 | AY193: 0.9993400727 | AZ193: 0.03489861078 | BA193: 0 | BB193: 0 | BC193: -5.075436392e-05 | BD193: -8.859207176e-07
G194: 3 | H194: 1.999633789 | I194: 1.999633789 | J194: 0.9996337891 | K194: 0.9998168945 | L194: 10 | M194: 19.99633789 | N194: 0 | O194: 0 | P194: 1.499816895 | Q194: 0.9998168945 | R194: 1 | S194: 2 | T194: 2 | V194: 後端点処理 | W194: 一定 | AA194: 4 | AB194: 0.953125 | AC194: 0.953125 | AD194: 0.953125 | AE194: 0.4765625 | AF194: 0 | AG194: 0 | AH194: 0 | AI194: 0 | AJ194: 0.953125 | AK194: 0.4765625 | AL194: 1 | AM194: 2 | AN194: 1.987731934 | AR194: 179 | AS194: 0.01745240644 | AT194: -0.9998476952 | AV194: 179 | AW194: 0.0003046019547 | AX194: -0.0174506343 | AY194: 0.9997969292 | AZ194: 0.01745196341 | BA194: 0 | BB194: 0 | BC194: -5.076596148e-05 | BD194: -4.430278338e-07
B195: t | C195: a | D195: f | E195: ∫f | G195: 4 | H195: 1.999633789 | I195: 1.999633789 | J195: 0.9996337891 | K195: 0.9998168945 | L195: 10 | M195: 19.99633789 | N195: 0 | O195: 0 | P195: 1.999633789 | Q195: 0.9998168945 | R195: 1 | S195: 2 | T195: 1.999931335 | V195: 節点処理 | W195: 積分 | AA195: 0 | AB195: 0.953125 | AC195: 1.987731934 | AD195: 0.953125 | AE195: 0.4765625 | AF195: 0 | AG195: 0 | AH195: 0 | AI195: 0 | AJ195: 0.953125 | AK195: 0.4765625 | AL195: 1 | AM195: 2 | AN195: 1.987731934 | AR195: 180 | AS195: 1.225148455e-16 | AT195: -1 | AV195: 180 | AW195: 2.138287436e-18 | AX195: -0.01745329252 | AY195: 0.9999492302 | AZ195: 1.624857656e-16 | BA195: 0 | BB195: 0 | BC195: -5.076982772e-05 | BD195: 3.997092009e-17
B196: 0 | C196: 0 | D196: 10 | E196: 0 | G196: 0 | H196: 1.999633789 | I196: 1.999931335 | J196: 0.9996337891 | K196: 0.9998168945 | L196: 10 | M196: 19.99633789 | N196: 0 | O196: 0 | P196: 1.999633789 | Q196: 0.9998168945 | R196: 1 | S196: 2 | T196: 1.999931335 | V196: 乗数 | W196: 1 | X196: 1 | AA196: 1 | AB196: 0.9765625 | AC196: 1.987731934 | AD196: 0.046875 | AE196: 0.48828125 | AF196: 0 | AG196: 0 | AH196: 0 | AI196: 0 | AJ196: 0.953125 | AK196: 0.48828125 | AL196: 1 | AM196: 2 | AN196: 1.987731934 | AR196: 181 | AS196: -0.01745240644 | AT196: -0.9998476952 | AV196: 181 | AW196: -0.0003046019547 | AX196: -0.0174506343 | AY196: 0.9997969292 | AZ196: -0.01745196341 | BA196: 0 | BB196: 0 | BC196: -5.076596148e-05 | BD196: 4.430278343e-07
B197: 1 | C197: 0.5 | D197: 10 | E197: =E196+(B197-B196)*D196 -> 10 | G197: 1 | H197: 1.999782562 | I197: 1.999931335 | J197: 0.0002975463864 | K197: 0.9998912811 | L197: 10 | M197: 19.99782562 | N197: 0 | O197: 0 | P197: 1.999633789 | Q197: 0.9998912811 | R197: 1 | S197: 2 | T197: 1.999931335 | V197: 加数 | W197: 0 | X197: 0 | Y197: ix | AA197: 2 | AB197: 0.9765625 | AC197: 1.987731934 | AD197: 0.046875 | AE197: 0.48828125 | AF197: 0 | AG197: 0 | AH197: 0 | AI197: 0 | AJ197: 0.9765625 | AK197: 0.48828125 | AL197: 1 | AM197: 2 | AN197: 1.987731934 | AR197: 182 | AS197: -0.0348994967 | AT197: -0.999390827 | AV197: 182 | AW197: -0.0006091111247 | AX197: -0.01744266045 | AY197: 0.9993400727 | AZ197: -0.03489861078 | BA197: 0 | BB197: 0 | BC197: -5.075436392e-05 | BD197: 8.859207176e-07
B198: 2 | C198: 1 | D198: 10 | E198: 20 | G198: 2 | H198: 1.999782562 | I198: 1.999931335 | J198: 0.0002975463864 | K198: 0.9998912811 | L198: 10 | M198: 19.99782562 | N198: 0 | O198: 0 | P198: 1.999782562 | Q198: 0.9998912811 | R198: 1 | S198: 2 | T198: 1.999931335 | V198: データ | W198: 1 | X198: 10 | Y198: 1 | AA198: 3 | AB198: 1 | AC198: 1.987731934 | AD198: 0.046875 | AE198: 0.5 | AF198: 0 | AG198: 0 | AH198: 0 | AI198: 0 | AJ198: 0.9765625 | AK198: 0.5 | AL198: 1 | AM198: 2 | AN198: 1.987731934 | AR198: 183 | AS198: -0.05233595624 | AT198: -0.9986295348 | AV198: 183 | AW198: -0.0009134347536 | AX198: -0.01742937339 | AY198: 0.9985787997 | AZ198: -0.0523346277 | BA198: 0 | BB198: 0 | BC198: -5.073503858e-05 | BD198: 1.328543741e-06
B199: 3 | C199: 2 | D199: 20 | E199: 30 | G199: 3 | H199: 1.999931335 | I199: 1.999931335 | J199: 0.0002975463864 | K199: 0.9999656677 | L199: 10 | M199: 19.99931335 | N199: 0 | O199: 0 | P199: 1.999782562 | Q199: 0.9999656677 | R199: 1 | S199: 2 | T199: 1.999931335 | W199: 2 | X199: 20 | Y199: =Y198+1 -> 2 | AA199: 4 | AB199: 1 | AC199: 1.987731934 | AD199: 0.046875 | AE199: 0.5 | AF199: 0 | AG199: 0 | AH199: 0 | AI199: 0 | AJ199: 1 | AK199: 0.5 | AL199: 1 | AM199: 2 | AN199: 1.997070312 | AR199: 184 | AS199: -0.06975647374 | AT199: -0.9975640503 | AV199: 184 | AW199: -0.001217480141 | AX199: -0.01741077718 | AY199: 0.9975133423 | AZ199: -0.06975470298 | BA199: 0 | BB199: 0 | BC199: -5.070799135e-05 | BD199: 1.770762077e-06
B200: 4 | C200: 3 | D200: 30 | E200: 50 | G200: 4 | H200: 1.999931335 | I200: 1.999931335 | J200: 0.0002975463864 | K200: 0.9999656677 | L200: 10 | M200: 19.99931335 | N200: 0 | O200: 0 | P200: 1.999931335 | Q200: 0.9999656677 | R200: 1 | S200: 2 | T200: 1.999996781 | W200: 3 | X200: 30 | Y200: =Y199+1 -> 3 | AA200: 1 | AB200: 1.493865967 | AC200: 1.987731934 | AD200: 0.9877319336 | AE200: 0.7469329834 | AF200: 0 | AG200: 0 | AH200: 0 | AI200: 0 | AJ200: 1 | AK200: 0.7469329834 | AL200: 1 | AM200: 2 | AN200: 1.997070312 | AR200: 185 | AS200: -0.08715574275 | AT200: -0.9961946981 | AV200: 185 | AW200: -0.001521154673 | AX200: -0.01738687747 | AY200: 0.9961440249 | AZ200: -0.08715353031 | BA200: 0 | BB200: 0 | BC200: -5.067323046e-05 | BD200: 2.212441022e-06
B201: 5 | C201: 3.5 | D201: 30 | E201: 80 | G201: 0 | H201: 1.999931335 | I201: 1.999996781 | J201: 0.0002975463864 | K201: 0.9999656677 | L201: 10 | M201: 19.99931335 | N201: 0 | O201: 0 | P201: 1.999931335 | Q201: 0.9999656677 | R201: 1 | S201: 2 | T201: 1.999996781 | AA201: 2 | AB201: 1.493865967 | AC201: 1.987731934 | AD201: 0.9877319336 | AE201: 0.7469329834 | AF201: 0 | AG201: 0 | AH201: 0 | AI201: 0 | AJ201: 1.493865967 | AK201: 0.7469329834 | AL201: 1 | AM201: 2 | AN201: 1.997070312 | AR201: 186 | AS201: -0.1045284633 | AT201: -0.9945218954 | AV201: 186 | AW201: -0.001824365846 | AX201: -0.01735768156 | AY201: 0.9944712646 | AZ201: -0.1045258098 | BA201: 0 | BB201: 0 | BC201: -5.063076651e-05 | BD201: 2.653446036e-06
B202: 6 | C202: 4 | D202: 30 | E202: 110 | G202: 1 | H202: 1.999964058 | I202: 1.999996781 | J202: 6.54458999e-05 | K202: 0.9999820292 | L202: 10 | M202: 19.99964058 | N202: 0 | O202: 0 | P202: 1.999931335 | Q202: 0.9999820292 | R202: 1 | S202: 2 | T202: 1.999996781 | AA202: 3 | AB202: 1.987731934 | AC202: 1.987731934 | AD202: 0.9877319336 | AE202: 0.9938659668 | AF202: 0 | AG202: 0 | AH202: 0 | AI202: 0 | AJ202: 1.493865967 | AK202: 0.9938659668 | AL202: 1 | AM202: 2 | AN202: 1.997070312 | AR202: 187 | AS202: -0.1218693434 | AT202: -0.9925461516 | AV202: 187 | AW202: -0.0021270213 | AX202: -0.01732319832 | AY202: 0.992495571 | AZ202: -0.1218662498 | BA202: 0 | BB202: 0 | BC202: -5.058061242e-05 | BD202: 3.093642785e-06
... 458 more rows

Sheet お問合せ
B2: 技術的なご質問のみお受けします。
B3: 何か問題が生じたらメールアドレスを削除しますので、予めご了承ください。
C5: sxsijk@yahoo.co.jp
F6: yahooメールのみ受信できる設定になっていたようです。
F7: 宛先が見つからず、戻ってくるようでしたら、下記に送ってください。
C9: sxsijk@Gmail.com | D9: sxsijk@Gmail.com

Sheet Sheet1
